Workbook

Sheet HOME
I8: Healthcare and Public Health Sector
I9: Rapid Infrastructure Survey Tool
I10: Vulnerability and Resilience Module
I12: Version 1.1
I13: Release Date: Feb. 3, 2017
I19: Click button to begin.
I21: ** For best results, this tool should be used with Microsoft Excel version 2013 or later **
I23: This tool is the property of the U.S. Department of Health and Human Services.
I24: Comments and questions can be directed to the Critical Infrastructure Protection (CIP) Office at cip@hhs.gov

Sheet MENU (hidden)
B3: RIST-V Menu
B4: This page lists each section of the RIST-V, and updates to reflect progress made within each section as the survey is completed. You may proceed directly to any section by clicking on the section heading. Otherwise, click Next at the bottom of the page to start from the beginning.
B5: Return to this page at any time by clicking the Menu button at the top of each screen.
J7: Questions Completed | N7: Total Completed
D8: 1 | E8: Facility/Asset Characterization | J8: =Scoring!$M$3&"/"&Scoring!$L$3 -> 0/7 | K8: ="("&Scoring!N3&"%)" -> (0%) | N8: =PROGRESS -> 0
C9: 0 | D9: 1.1 | E9: General Characterization | J9: =OFFSET(Scoring!$L$9, 0, C9*9) &"/"& OFFSET(Scoring!$K$9, 0, C9*9) -> 0/7 | K9: ="("& OFFSET(Scoring!$M$9, 0, C9*9) &"%)" -> (0%)
D11: 2 | E11: Resilience Management Profile | J11: =Scoring!V3&"/"&Scoring!U3 -> 0/77 | K11: ="("&Scoring!W3&"%)" -> (0%)
C12: 1 | D12: 2.1 | E12: Business Continuity | J12: =OFFSET(Scoring!$L$9, 0, C12*9) &"/"& OFFSET(Scoring!$K$9, 0, C12*9) -> 0/13 | K12: ="("& OFFSET(Scoring!$M$9, 0, C12*9) &"%)" -> (0%)
C13: 2 | D13: 2.2 | E13: Emergency Management | J13: =OFFSET(Scoring!$L$9, 0, C13*9) &"/"& OFFSET(Scoring!$K$9, 0, C13*9) -> 0/50 | K13: ="("& OFFSET(Scoring!$M$9, 0, C13*9) &"%)" -> (0%)
C14: 3 | D14: 2.3 | E14: Information Sharing | J14: =OFFSET(Scoring!$L$9, 0, C14*9) &"/"& OFFSET(Scoring!$K$9, 0, C14*9) -> 0/5 | K14: ="("& OFFSET(Scoring!$M$9, 0, C14*9) &"%)" -> (0%)
C15: 4 | D15: 2.4 | E15: Climate Change | J15: =OFFSET(Scoring!$L$9, 0, C15*9) &"/"& OFFSET(Scoring!$K$9, 0, C15*9) -> 0/9 | K15: ="("& OFFSET(Scoring!$M$9, 0, C15*9) &"%)" -> (0%)
D17: 3 | E17: Physical Security Management Profile | J17: =Scoring!BF3&"/"&Scoring!BE3 -> 0/99 | K17: ="("&Scoring!BG3&"%)" -> (0%)
C18: 5 | D18: 3.1 | E18: Physical Security Organization, Policies, and Plans | J18: =OFFSET(Scoring!$L$9, 0, C18*9) &"/"& OFFSET(Scoring!$K$9, 0, C18*9) -> 0/12 | K18: ="("& OFFSET(Scoring!$M$9, 0, C18*9) &"%)" -> (0%)
C19: 6 | D19: 3.2 | E19: Personnel Surety | J19: =OFFSET(Scoring!$L$9, 0, C19*9) &"/"& OFFSET(Scoring!$K$9, 0, C19*9) -> 0/7 | K19: ="("& OFFSET(Scoring!$M$9, 0, C19*9) &"%)" -> (0%)
C20: 7 | D20: 3.3 | E20: Security Training | J20: =OFFSET(Scoring!$L$9, 0, C20*9) &"/"& OFFSET(Scoring!$K$9, 0, C20*9) -> 0/8 | K20: ="("& OFFSET(Scoring!$M$9, 0, C20*9) &"%)" -> (0%)
C21: 8 | D21: 3.4 | E21: Security Force Profile | J21: =OFFSET(Scoring!$L$9, 0, C21*9) &"/"& OFFSET(Scoring!$K$9, 0, C21*9) -> 0/18 | K21: ="("& OFFSET(Scoring!$M$9, 0, C21*9) &"%)" -> (0%)
C22: 9 | D22: 3.5 | E22: Physical Access Control | J22: =OFFSET(Scoring!$L$9, 0, C22*9) &"/"& OFFSET(Scoring!$K$9, 0, C22*9) -> 0/26 | K22: ="("& OFFSET(Scoring!$M$9, 0, C22*9) &"%)" -> (0%)
C23: 10 | D23: 3.6 | E23: Lighting, Surveillance, and Intrusion Detection | J23: =OFFSET(Scoring!$L$9, 0, C23*9) &"/"& OFFSET(Scoring!$K$9, 0, C23*9) -> 0/17 | K23: ="("& OFFSET(Scoring!$M$9, 0, C23*9) &"%)" -> (0%)
C24: 11 | D24: 3.7 | E24: Badging and Internal Security | J24: =OFFSET(Scoring!$L$9, 0, C24*9) &"/"& OFFSET(Scoring!$K$9, 0, C24*9) -> 0/11 | K24: ="("& OFFSET(Scoring!$M$9, 0, C24*9) &"%)" -> (0%)
D26: 4 | E26: Critical Dependencies | J26: =Scoring!DQ3&"/"&Scoring!DP3 -> 0/93 | K26: ="("&Scoring!DR3&"%)" -> (0%)
C27: 12 | D27: 4.1 | E27: General Dependencies | J27: =OFFSET(Scoring!$L$9, 0, C27*9) &"/"& OFFSET(Scoring!$K$9, 0, C27*9) -> 0/11 | K27: ="("& OFFSET(Scoring!$M$9, 0, C27*9) &"%)" -> (0%)
C28: 13 | D28: 4.2 | E28: Information Technology (IT) | J28: =OFFSET(Scoring!$L$9, 0, C28*9) &"/"& OFFSET(Scoring!$K$9, 0, C28*9) -> 0/15 | K28: ="("& OFFSET(Scoring!$M$9, 0, C28*9) &"%)" -> (0%)
C29: 14 | D29: 4.3 | E29: Electricity | J29: =OFFSET(Scoring!$L$9, 0, C29*9) &"/"& OFFSET(Scoring!$K$9, 0, C29*9) -> 0/14 | K29: ="("& OFFSET(Scoring!$M$9, 0, C29*9) &"%)" -> (0%)
C30: 15 | D30: 4.4 | E30: Natural Gas | J30: =OFFSET(Scoring!$L$9, 0, C30*9) &"/"& OFFSET(Scoring!$K$9, 0, C30*9) -> 0/9 | K30: ="("& OFFSET(Scoring!$M$9, 0, C30*9) &"%)" -> (0%)
C31: 16 | D31: 4.5 | E31: Water | J31: =OFFSET(Scoring!$L$9, 0, C31*9) &"/"& OFFSET(Scoring!$K$9, 0, C31*9) -> 0/8 | K31: ="("& OFFSET(Scoring!$M$9, 0, C31*9) &"%)" -> (0%)
C32: 17 | D32: 4.6 | E32: Wastewater and Waste Disposal | J32: =OFFSET(Scoring!$L$9, 0, C32*9) &"/"& OFFSET(Scoring!$K$9, 0, C32*9) -> 0/8 | K32: ="("& OFFSET(Scoring!$M$9, 0, C32*9) &"%)" -> (0%)
C33: 18 | D33: 4.7 | E33: Communications | J33: =OFFSET(Scoring!$L$9, 0, C33*9) &"/"& OFFSET(Scoring!$K$9, 0, C33*9) -> 0/6 | K33: ="("& OFFSET(Scoring!$M$9, 0, C33*9) &"%)" -> (0%)
C34: 19 | D34: 4.8 | E34: Transportation | J34: =OFFSET(Scoring!$L$9, 0, C34*9) &"/"& OFFSET(Scoring!$K$9, 0, C34*9) -> 0/5 | K34: ="("& OFFSET(Scoring!$M$9, 0, C34*9) &"%)" -> (0%)
C35: 20 | D35: 4.9 | E35: Critical Products | J35: =OFFSET(Scoring!$L$9, 0, C35*9) &"/"& OFFSET(Scoring!$K$9, 0, C35*9) -> 0/17 | K35: ="("& OFFSET(Scoring!$M$9, 0, C35*9) &"%)" -> (0%)
D37: 5 | E37: Cybersecurity Management | J37: =Scoring!GT3&"/"&Scoring!GS3 -> 0/104 | K37: ="("&Scoring!GU3&"%)" -> (0%)
C38: 21 | D38: 5.1 | E38: Identify | J38: =OFFSET(Scoring!$L$9, 0, C38*9) &"/"& OFFSET(Scoring!$K$9, 0, C38*9) -> 0/24 | K38: ="("& OFFSET(Scoring!$M$9, 0, C38*9) &"%)" -> (0%)
C39: 22 | D39: 5.2 | E39: Protect | J39: =OFFSET(Scoring!$L$9, 0, C39*9) &"/"& OFFSET(Scoring!$K$9, 0, C39*9) -> 0/40 | K39: ="("& OFFSET(Scoring!$M$9, 0, C39*9) &"%)" -> (0%)
C40: 23 | D40: 5.3 | E40: Detect | J40: =OFFSET(Scoring!$L$9, 0, C40*9) &"/"& OFFSET(Scoring!$K$9, 0, C40*9) -> 0/17 | K40: ="("& OFFSET(Scoring!$M$9, 0, C40*9) &"%)" -> (0%)
C41: 24 | D41: 5.4 | E41: Response | J41: =OFFSET(Scoring!$L$9, 0, C41*9) &"/"& OFFSET(Scoring!$K$9, 0, C41*9) -> 0/18 | K41: ="("& OFFSET(Scoring!$M$9, 0, C41*9) &"%)" -> (0%)
C42: 25 | D42: 5.5 | E42: Recovery | J42: =OFFSET(Scoring!$L$9, 0, C42*9) &"/"& OFFSET(Scoring!$K$9, 0, C42*9) -> 0/5 | K42: ="("& OFFSET(Scoring!$M$9, 0, C42*9) &"%)" -> (0%)

Sheet 1.1 (hidden)
A2: 1 | B2: Facility/Asset Characterization
B4: 1.1 | D4: General Characterization
B7: 1.1.1 | C7: =IF(ISBLANK(D8)=TRUE,0,1) -> 0 | D7: Provide an identifier (e.g., name) for the facility
C8: =D8 -> 0
B10: 1.1.2 | C10: =IF(ISBLANK(D11)=TRUE,0,1) -> 0 | D10: Select the subsector below that best characterizes the facility.
C11: =D11 -> 0
D12: Direct Patient Care
D13: Laboratories
D14: Blood
D15: Pharmaceuticals
D16: Medical Materials
D17: Health Information Technology (IT)
D18: Health Plans and Payers
D19: Mass Fatality Management Services
D20: Public Health
D21: Federal Response and Program Offices
B23: 1.1.3 | C23: =IF(ISBLANK(D24)=TRUE,0,1) -> 0 | D23: What key services does the facility provide?
B26: 1.1.4 | C26: 0 | D26: Is the facility co-located with an open access academic institution?
B30: 1.1.5 | C30: 0 | D30: Does the facility house or is it co-located with a Bio Safety Lab (BSL)-designated facility and/or select agent laboratory?
B34: 1.1.6 | C34: =IF(C39=TRUE,99,COUNTIF(C36:C38,TRUE)) -> 0 | D34: Does the facility house any of the following hazardous substances?
D35: Check all that apply.
C36: FALSE | D36: Radioactive materials
C37: FALSE | D37: Highly hazardous chemicals
C38: FALSE | D38: Narcotics and/or other controlled substances?
C39: FALSE | D39: None of the above
B41: 1.1.7 | C41: =IF(C46=TRUE,99,COUNTIF(C43:C45,TRUE)) -> 0 | D41: Does the facility include the following sensitive patient care areas?
D42: Check all that apply.
C43: FALSE | D43: Radiopharmacies
C44: FALSE | D44: Nuclear medicine facilities
C45: FALSE | D45: Radiation treatment areas
C46: FALSE | D46: None of the above

Sheet 2.1.a (hidden)
A2: 2 | B2: Resilience Management Profile
B4: 2.1 | D4: Business Continuity (1 of 2)
B7: 2.1.1 | C7: 0 | D7: Is there a designated manager/department in charge of business continuity?
B11: 2.1.2 | C11: 0 | D11: Does the facility have a written business continuity plan?
C15: 0 | D15: 2.1.2.1 | E15: Does the business continuity plan identify mission essential functions and mission critical personnel?
C19: 0 | D19: 2.1.2.2 | E19: Does the business continuity plan include both physical and cyber assets and systems critical to the mission?
C23: 0 | D23: 2.1.2.3 | E23: Does the business continuity plan address external supply chain security and continuity?
C27: 0 | D27: 2.1.2.4 | E27: Does the business continuity plan provide for the alert and recall of essential personnel as well as for extended operations during a local or regional disaster?
C31: 0 | D31: 2.1.2.5 | E31: Are personnel trained on the business continuity plan?
C35: 0 | D35: 2.1.2.6 | E35: Is the business continuity plan exercised at least once a year?
C39: 0 | D39: 2.1.2.7 | E39: Does the business continuity plan define an acceptable recovery time for critical functions?

Sheet 2.1.b (hidden)
A2: 2 | B2: Resilience Management Profile
B4: 2.1 | D4: Business Continuity (2 of 2)
B7: 2.1.3 | C7: 0 | D7: Are agreements in place with partners, vendors, and other service providers for the provision of services to ensure continuity of essential functions during emergency/disaster situations?
B11: 2.1.4 | C11: 0 | D11: Are agreements in place with other similar facilities that can provide required services in the event of a critical service disruption to your facility or critical satellite operation?
B15: 2.1.5 | C15: 0 | D15: Have the agreements referenced in the above two questions (2.1.3 and 2.1.4) been assessed/tested to ensure their validity in major disaster scenarios where multiple entities may be relying on the same partners, vendors, and other service providers for similar commodities and services?
B19: 2.1.6 | C19: 0 | D19: Does management have a purchase card to use, or are prior arrangements made to invoice items purchased locally during an emergency situation?

Sheet 2.2.a (hidden)
A2: 2 | B2: Resilience Management Profile
B4: 2.2 | D4: Emergency Management (1 of 6)
B7: 2.2.1 | C7: 0 | D7: Is the facility a Joint Commission accredited healthcare facility?
B11: 2.2.2 | C11: 0 | D11: Is the facility compliant with all Centers for Medicare and Medicaid Services (CMS) Emergency Preparedness requirements for the Provider Type it represents?
B15: 2.2.3 | C15: 0 | D15: Is there a designated manager/department in charge of emergency management operations?
C19: 0 | D19: 2.2.3.1 | E19: Is the designated emergency manager professionally certified in the emergency management field?
B23: 2.2.4 | C23: 0 | D23: Does the facility have a written Emergency Operations Plan (EOP), including triggers for the alert, warning, and activation of managers and staff with emergency management duties?
C27: 0 | D27: 2.2.4.1 | E27: Is the EOP based on an all-hazards risk assessment?
C31: 0 | D31: 2.2.4.2 | E31: Is the EOP developed with the assistance of fire, safety, security, and other discipline-specific professionals?

Sheet 2.2.b (hidden)
A2: 2 | B2: Resilience Management Profile
B4: 2.2 | D4: Emergency Management (2 of 6)
C7: =IF(C20=TRUE,99,COUNTIF(C9:C19,TRUE)) -> 0 | D7: 2.2.4.3 | E7: Does the facility's EOP cover the following response actions?
E8: Check all that apply.
C9: FALSE | E9: Providing for crisis standards of care/critical services (including threshold criteria for switching to crisis standards of care)
C10: FALSE | E10: Maintaining or expanding services during emergencies
C11: FALSE | E11: Conserving resources during emergencies
C12: FALSE | E12: Curtailing services during emergencies
C13: FALSE | E13: Supplementing resources from outside the local community
C14: FALSE | E14: Closing the facility to new patients/customers
C15: FALSE | E15: Staged evacuation
C16: FALSE | E16: Shelter in place
C17: FALSE | E17: Scenario-based surge requirements
C18: FALSE | E18: Transportation/transfer of patients to alternate care locations
C19: FALSE | E19: Tracking of on-duty staff & sheltered patients/residents during and in the aftermath of an emergency
C20: FALSE | E20: None of the above
C22: =IF(C42=TRUE,99,COUNTIF(C24:C41,TRUE)) -> 0 | D22: 2.2.4.4 | E22: Does the EOP:
E23: Check all that apply.
C24: FALSE | E24: Contain the names and contact information of the manager/department in charge of emergency management operations?
C25: FALSE | E25: Describe the back-up systems (including power, water, communications, HVAC, etc.) and the recovery strategies and actions designed to help restore the systems that are critical to providing care, treatment, and other critical customer services in the aftermath of an emergency?
C26: FALSE | E26: Prescribe protocols or refer to separate policies and procedures that address the provision of alternative sources of energy to maintain: 1) temperatures to protect patient/staff health and safety and for the safe and sanitary storage of provisions; 2) emergency lighting; and 3) fire detection, extinguishing, and alarm systems?
C27: FALSE | E27: Contain protocols for responding to two or more simultaneous emergencies/disasters with second and third order cascading effects?
C28: FALSE | E28: Identify alternative sites for care, treatment, and other services that meet the needs of its patients/customers during emergencies?
C29: FALSE | E29: Establish an Incident Command System based on recognized national and healthcare sector emergency management standards?
C30: FALSE | E30: Is the facility’s incident command structure integrated into and consistent with the local community incident command structure?
C31: FALSE | E31: Include detailed actions to be undertaken by managers, staff, contractors, and volunteers in response to various emergency situations, with detailed protocols for all-hazards emergencies included as annexes?
C32: FALSE | E32: Detail how the facility will manage the activities required as part of patient scheduling, triage, assessment, treatment, admission, transfer, discharge, follow-up and clinical information management, as well as activities associated with the continuity of other critical functions/customer support services during an emergency?
C33: FALSE | E33: Describe how the facility will manage a potential increase in demand for clinical services for vulnerable populations served, such as patients who are pediatric, geriatric, disabled, or have serious chronic conditions or addictions?
C34: FALSE | E34: Include detailed reporting and communications protocols and response actions by incident type?
C35: FALSE | E35: Provide protocols for the response to emergencies posing unique safety or environmental hazards in the context of the facility or surrounding area?
C36: FALSE | E36: Describe how the facility will provide for radioactive, biological, and chemical isolation and decontamination, if required?
C37: FALSE | E37: Provide for integration with corresponding municipal and/or county EOPs?
C38: FALSE | E38: Establish response times for external partner agencies by incident type?
C39: FALSE | E39: Describe how the facility will manage staff support needs (i.e. housing, transportation, incident stress debriefing, etc.) and staff family support needs (i.e. child care, elder care, pet care, communication, etc.)?
C40: FALSE | E40: Describe how the facility will identify licensed independent practitioners, staff, and authorized volunteers during emergencies?
C41: FALSE | E41: Identify the process to be used for credentialing and authorized re-entry of critical personnel in the aftermath of a disaster where access may be limited?
C42: FALSE | E42: None of the above.
C44: 0 | D44: 2.2.4.5 | E44: Does the EOP contain a Communication Annex or linkages to a separate Emergency Preparedness (EP) Communications Plan that describes how and under what circumstances the facility will communicate information about patients to third parties (such as other health care organizations, the city/county/state health department, local law enforcement, FBI, etc.)?
C48: =IF(C55=TRUE,99,COUNTIF(C50:C54,TRUE)) -> 0 | E48: 2.2.4.5.1 | F48: Does the Communications Annex or separate EP Communications Plan:
E49: Check all that apply.
C50: FALSE | E50: Contain contact information for external first responder and emergency management agencies?
C51: FALSE | E51: Contain contact protocols for coordination and communication with external first responder and emergency management agencies?
C52: FALSE | E52: Include contact information for other hospitals and CAHs?
C53: FALSE | E53: Specify a method for sharing information and medical documentation for patients?
C54: FALSE | E54: Specify a protocol for releasing patient information consistent with the HIPAA Privacy Rule in the event of a facility evacuation?
C55: FALSE | E55: None of the above.
C57: 0 | E57: 2.2.4.5.2 | F57: Is the Communications Annex or separate EP Communications Plan compliant with Federal and State laws?
C61: =IF(C70=TRUE,99,COUNTIF(C63:C69,TRUE)) -> 0 | D61: 2.2.4.6 | E61: Does the facility's EOP cover the following event types, at a minimum?
E62: Check all that apply.
C63: FALSE | E63: Fire emergencies
C64: FALSE | E64: Power Failures
C65: FALSE | E65: Care-related Emergencies
C66: FALSE | E66: Active shooter and other malicious actor types
C67: FALSE | E67: Water Supply Disruption
C68: FALSE | E68: Natural disasters
C69: FALSE | E69: HAZMAT Releases
C70: FALSE | E70: None of the above.

Sheet 2.2.c (hidden)
A2: 2 | B2: Resilience Management Profile
B4: 2.2 | D4: Emergency Management (3 of 6)
C7: 0 | D7: 2.2.4.7 | E7: Are supplemental policies and procedures developed and implemented based on the requirements identified in the emergency plan, risk assessment, and separate EP communication plan?
C11: 0 | E11: 2.2.4.7.1 | F11: Are such policies and procedures reviewed/updated at least annually?
C15: 0 | D15: 2.2.4.8 | E15: Are managers, employees, contractor staff, and volunteers trained on the EOP, EP Communications Plan and supporting policies and procedures, including their roles and responsibilities (i.e., communications, resources and assets, safety and security, utilities, and patient management, etc.), chain of command, reporting instructions, etc., in the context of specific types of incidents?
C19: 0 | E19: 2.2.4.8.1 | F19: Is such training provided at least annually?
C23: 0 | D23: 2.2.4.9 | E23: Are managers, employees, contractor staff, and volunteers sufficiently cross-trained to enable the performance of specialized duties and supporting protocols identified in the EOP?
C27: 0 | D27: 2.2.4.10 | E27: How frequently is the EOP exercised against the most relevant hazards identified through the risk assessment process?
E28: At least semiannually (twice per year)
E29: Annually (once per year)
E30: Biannually (every two years)
E31: EOP is not exercised
C33: 0 | D33: 0 | E33: 2.2.4.10.1 | F33: Does the exercise of the EOP involve community participation, including participation from local first responder agencies and EOCs?
C37: 0 | D37: 0 | E37: 2.2.4.10.2 | F37: Does the exercise of the EOP include an escalating event in which the local community is unable to support the facility?
C41: 0 | D41: 0 | E41: 2.2.4.10.3 | F41: Does the facility’s exercise program align to DHS Homeland Security Exercise and Evaluation Program (HSEEP) guidance?
C45: 0 | D45: 0 | E45: 2.2.4.10.4 | F45: Does the exercise of the EOP involve the partners and/or private companies that hold supply agreements for dependencies?
C49: 0 | D49: 0 | E49: 2.2.4.10.5 | F49: Does the facility’s exercise program simulate impacts to critical functions and services and the timely restoration thereof?
C53: =IF(C61=TRUE,99,COUNTIF(C55:C60,TRUE)) -> 0 | E53: 2.2.4.10.6 | F53: Does the facility’s exercise program allow the facility to evaluate its handling of the following internal and external partner organization components?
F54: Check all that apply.
C55: FALSE | F55: Communications
C56: FALSE | F56: Resources and assets
C57: FALSE | F57: Security
C58: FALSE | F58: Staff
C59: FALSE | F59: Utilities
C60: FALSE | F60: Patients
C61: FALSE | F61: None of the above.

Sheet 2.2.d (hidden)
A2: 2 | B2: Resilience Management Profile
B4: 2.2 | D4: Emergency Management (4 of 6)
C7: 0 | D7: 2.2.4.11 | E7: Does the facility modify its EOP based on its evaluations of emergency response exercises and responses to actual emergencies?
C11: 0 | D11: 2.2.4.12 | E11: How frequently is the EOP reviewed, revised, and/or updated?
E12: At least semiannually (twice per year)
E13: Annually (once per year)
E14: Biannually (every two years)
E15: EOP is not reviewed, revised, or updated
C17: 0 | D17: 2.2.4.13 | E17: Is the EOP reviewed, revised, or updated in response to emergency events experienced by others?
E18: For example, lessons learned after a televised active shooter event.

Sheet 2.2.e (hidden)
A2: 2 | B2: Resilience Management Profile
B4: 2.2 | D4: Emergency Management (5 of 6)
B7: 2.2.5 | C7: 0 | D7: Does the facility conduct an annual review/prioritization of its risks, hazards, and potential emergencies as defined through a formal risk assessment process?
B11: 2.2.6 | C11: 0 | D11: Does the facility have protocols for coordination with relevant incident management structures at the Federal, state, local, tribal, and territorial government levels?
B15: 2.2.7 | C15: 0 | D15: Does the facility communicate its needs and vulnerabilities to community emergency response agencies and identify the community’s capability to meet its needs?
B19: 2.2.8 | C19: 0 | D19: Are Memoranda of Agreement (MOAs) in place specifying the type of support to be provided by local first responder and emergency management agencies, as well as the conditions under which such support can be expected?
C23: 0 | D23: 2.2.8.1 | E23: If so, have these agreements been tested/validated through exercises and other activities?
B27: 2.2.9 | C27: 0 | D27: Are MOAs in place specifying the type of support that can be provided by other local/regional and/or coalition healthcare facilities, as well as the conditions under which such support can be expected?
B31: 2.2.10 | C31: 0 | D31: Is the facility a member of a collaborative group designed to support emergency preparedness and response (e.g., a healthcare coalition)?
C35: 0 | D35: 2.2.10.1 | E35: Does the coalition or group have clearly defined roles and responsibilities for each participating member as related to disaster preparedness, response, and recovery?
B39: 2.2.11 | C39: =IF(C47=TRUE,99,COUNTIF(C41:C46,TRUE)) -> 0 | D39: Does the facility have a plan for multi-agency coordination during an incident response, including the following elements?
D40: Check all that apply.
C41: FALSE | D41: Representation (physical or virtual) in the local and state Emergency Operations Centers (EOCs)
C42: FALSE | D42: Identification of resource needs that require multi-agency coordination
C43: FALSE | D43: Protocols to communicate the resource needs of affected healthcare organizations at the outset of any emergency
C44: FALSE | D44: Processes to request and activate multi-agency coordination
C45: FALSE | D45: Protocols to ensure appropriate multi-agency coordination for emergency response and recovery operations
C46: FALSE | D46: Protocols to communicate the operational status of healthcare organizations
C47: FALSE | D47: None of the above.

Sheet 2.2.f (hidden)
A2: 2 | B2: Resilience Management Profile
B4: 2.2 | D4: Emergency Management (6 of 6)
B7: 2.2.12 | C7: =IF(C14=TRUE,99,COUNTIF(C9:C13,TRUE)) -> 0 | D7: Does the facility have processes to effectively obtain and manage resources during incident response, including the following?
D8: Check all that apply.
C9: FALSE | D9: Immediately request and obtain resources from available caches
C10: FALSE | D10: Retain viable options for resource allocation and sharing that involves the community, private sector, and other stakeholders
C11: FALSE | D11: Sharing resources and assets outside of the community
C12: FALSE | D12: Request resources from the local, state, and Federal level of emergency operations (e.g., NDMS)
C13: FALSE | D13: Monitor quantities of resources and assets
C14: FALSE | D14: None of the above.
B16: 2.2.13 | C16: 0 | D16: Has the facility de-conflicted emergency needs in agreements with other facilities in the area in anticipation of potential competing needs during major disasters?
C20: 0 | D20: 2.2.13.1 | E20: Have these de-conflicted agreements and resource sharing arrangements been tested/validated?
B24: 2.2.14 | C24: =IF(C32=TRUE,99,COUNTIF(C26:C31,TRUE)) -> 0 | D24: Does the facility have resources and/or supply caches on site that may be needed during an emergency, including, but not limited to:
D25: Check all that apply.
C26: FALSE | D26: Personal protective equipment
C27: FALSE | D27: Water
C28: FALSE | D28: Fuel
C29: FALSE | D29: Surgical-related resource and assets
C30: FALSE | D30: Medication-related resources and assets
C31: FALSE | D31: Other | I31: Specify other caches:
C32: FALSE | D32: None of the above.
C34: 0 | D34: 2.2.14.1 | E34: Does the facility keep a documented inventory of the resources and/or supply caches on site for emergency purposes?
B38: 2.2.15 | C38: =IF(C47=TRUE,99,COUNTIF(C40:C46,TRUE)) -> 0 | D38: Do emergency communications account for the following:
D39: Check all that apply.
C40: FALSE | D40: Internal staff, licensed independent providers or practitioners, contractors, volunteers, etc.
C41: FALSE | D41: Customers or patients and family members
C42: FALSE | D42: Local first responders and emergency management organizations
C43: FALSE | D43: Local disaster relief organizations
C44: FALSE | D44: Other local/regional health care facilities
C45: FALSE | D45: Providers of essential services, alternative care, equipment, and supplies
C46: FALSE | D46: The local community in general
C47: FALSE | D47: None of the above.
B49: 2.2.16 | C49: 0 | D49: Are there mechanisms in place to enable health authorities to identify and control environmental factors that arise during emergencies that are hazardous to human health?
B53: 2.2.17 | C53: 0 | D53: Do procedures and capabilities exist for the safe disposal of medical waste in emergencies?
B57: 2.2.18 | C57: 0 | D57: Does the facility maintain and exercise shelter-in-place and evacuation protocols detailing roles and responsibilities of assigned staff, contractors, and visitors?
C61: 0 | D61: 2.2.18.1 | E61: Do such protocols address patient/resident and staff tracking, continuous patient care, and patient follow-up during and after evacuation situations?
B65: 2.2.19 | C65: 0 | D65: Does capacity exist for the immediate assessment of structural, nonstructural, and functional safety issues following an incident?
B69: 2.2.20 | C69: =IF(C74=TRUE,99,COUNTIF(C71:C73,TRUE)) -> 0 | D69: Does the facility perform post-disaster assessment including the following elements?
D70: Check all that apply.
C71: FALSE | D71: Coordination with healthcare organizations to identify immediate operating needs for the delivery of essential healthcare services
C72: FALSE | D72: Coordination with partner healthcare organizations to identify possible long-term healthcare recovery priorities
C73: FALSE | D73: Processes to communicate healthcare recovery priorities to the local and state agencies responsible for recovery
C74: FALSE | D74: None of the above.
B76: 2.2.21 | C76: 0 | D76: Is there an emergency management logistics system in place that includes tracking, monitoring, and reporting components?

Sheet 2.3 (hidden)
A2: 2 | B2: Resilience Management Profile
B4: 2.3 | D4: Information Sharing
B7: 2.3.1 | C7: =IF(C32=TRUE,99,COUNTIF(C9:C31,TRUE)) -> 0 | D7: Does the facility receive physical and cyber threat information, security-related bulletins, advisories and/or alerts from external sources?
D8: Check all that apply.
C9: FALSE | D9: Department of Homeland Security (DHS)
C10: FALSE | D10: Federal Bureau of Investigation (FBI)
C11: FALSE | D11: Fusion Center
C12: FALSE | D12: Other federal law enforcement (e.g., Federal Protective Service [FPS], Transportation Security Administration [TSA], U.S. Immigration and Customs Enforcement [ICE])
C13: FALSE | D13: State Critical Infrastructure Protection (CIP) Coordinator
C14: FALSE | D14: Joint Terrorism Task Force (or equivalent)
C15: FALSE | D15: State Homeland Security Advisor
C16: FALSE | D16: Bureau of Alcohol, Tobacco, Firearms, and Explosives (ATF)
C17: FALSE | D17: State emergency management agency
C18: FALSE | D18: Information Sharing Analysis Center (ISAC)
C19: FALSE | D19: State law enforcement
C20: FALSE | D20: Homeland Security Information Network Portal (HSIN)
C21: FALSE | D21: Local emergency management agency
C22: FALSE | D22: InfraGard
C23: FALSE | D23: Local law enforcement
C24: FALSE | D24: US Attorney's Office Anti-Terrorism Advisor Council
C25: FALSE | D25: Industry group
C26: FALSE | D26: Public health agencies
C27: FALSE | D27: National Oceanic and Atmospheric Administration (NOAA)
C28: FALSE | D28: Corporate law enforcement or security
C29: FALSE | D29: United States Geological Survey (USGS)
C30: FALSE | D30: Centers for Disease Control and Prevention (CDC)
C31: FALSE | D31: Other (specify)
C32: FALSE | D32: None
B35: 2.3.2 | C35: 0 | D35: Does the facility share information related to intentional physical and cyber threats and/or security with outside organizations?
G37: Specify sources below
B41: 2.3.2 | C41: 0 | D41: Does the facility receive information on natural disasters and unintentional manmade/technological hazards from external sources?
G43: Specify sources below
B47: 2.3.2 | C47: 0 | D47: Does the facility receive vulnerability and/or protective measures recommendations/information, to include physical and cybersecurity-related bulletins, advisories, and/or alerts on technical vulnerabilities, from external sources?
G49: Specify sources below
B53: 2.3.3 | C53: 0 | D53: Does the facility have protocols for information sharing between healthcare organizations and relevant incident management structures?

Sheet 2.4 (hidden)
A2: 2 | B2: Resilience Management Profile
B4: 2.4 | D4: Climate Change
B7: 2.4.1 | C7: =IF(C16=TRUE,99,COUNTIF(C9:C15,TRUE)) -> 0 | D7: Which climate change impacts are potential hazards to the facility based on the facility's knowledge and location?
D8: Check all that apply.
C9: FALSE | D9: Precipitation (increase or decrease)
C10: FALSE | D10: Extreme increases in storms/storm patterns (e.g., winter storms, tornadoes, severe weather, hurricanes)
C11: FALSE | D11: Increased potential for flooding or storm surge
C12: FALSE | D12: Sea level rise
C13: FALSE | D13: Frost increase or decrease
C14: FALSE | D14: Ocean acidification increase
C15: FALSE | D15: Other
C16: FALSE | D16: None
B18: 2.4.2 | C18: 0 | D18: Has a climate change risk assessment been conducted at the facility either formally in response to a larger problem, or informally?
B22: 2.4.3 | C22: 0 | D22: Is there an official or department within the facility designated to serve as the lead for climate change issues/program implementation?
B26: 2.4.4 | C26: 0 | D26: Does the facility have a climate change adaptation plan?
C30: =IF(C39=TRUE,99,COUNTIF(C32:C38,TRUE)) -> 0 | D30: 2.4.4.1 | E30: Which of the following potential impacts are addressed in the climate change adaptation plan?
E31: Check all that apply.
C32: FALSE | E32: Precipitation (increase or decrease)
C33: FALSE | E33: Extreme increases in storms/storm patterns (e.g., winter storms, tornadoes, severe weather, hurricanes)
C34: FALSE | E34: Increased potential for flooding or storm surge
C35: FALSE | E35: Sea level rise
C36: FALSE | E36: Frost increase or decrease
C37: FALSE | E37: Ocean acidification increase
C38: FALSE | E38: Other
C39: FALSE | E39: None
B41: 2.4.5 | C41: 0 | D41: Does the facility have access to climate data to help inform future planning and decision making?
G43: Specify the sources below
B46: 2.4.6 | C46: 0 | D46: Are any improvements planned to the construction/design of the facility to reduce the impact of climate change?
B50: 2.4.7 | C50: 0 | D50: Has the facility explored the option/feasibility of diversifying suppliers to prepare for indirect climate change impacts?
B54: 2.4.8 | C54: 0 | D54: Is the facility engaged in climate change planning and risk mitigation activities with appropriate local, state, and/or federal agencies and/or committees?

Sheet 3.1.a (hidden)
A2: 3 | B2: Physical Security Management Profile
B4: 3.1 | D4: Physical Security Organization, Policies, and Plans (1 of 3)
B7: 3.1.1 | C7: 0 | D7: Is there a designated official/department in charge of physical security management?
C11: 0 | D11: 3.1.1.1 | E11: If so, is the designated official a full time security professional with appropriate training and certification?
B15: 3.1.2 | C15: 0 | D15: How frequently is a physical security risk assessment conducted?
D16: At least semiannually (twice per year)
D17: Annually (once per year)
D18: Biannually (every two years)
D19: Physical security risk assessment is not conducted
C21: 0 | D21: 3.1.2.1 | E21: Does the security risk assessment identify unique characteristics of the facility that may increase target attractiveness or the likelihood of a physical attack or security incident?
C25: 0 | D25: 3.1.2.2 | E25: How frequently is the physical security risk assessment reviewed?
E26: At least semiannually (twice per year)
E27: Annually (once per year)
E28: Biannually (every two years)
E29: Physical security risk assessment is not conducted
C31: 0 | D31: 3.1.2.3 | E31: Is the physical security risk assessment reviewed, and by whom?
E32: Reviewed by a committee
E33: Reviewed by an individual
E34: Physical security risk assessment is not reviewed

Sheet 3.1.b (hidden)
A2: 3 | B2: Physical Security Management Profile
B4: 3.1 | D4: Physical Security Organization, Policies, and Plans (2 of 3)
B7: 3.1.3 | C7: 0 | D7: Does the facility participate in any external security working groups or security forums?
G9: Specify the forums below
B13: 3.1.4 | C13: 0 | D13: Does the facility have a written physical security plan and/or policy(ies)?

Sheet 3.1.c (hidden)
A2: 3 | B2: Physical Security Management Profile
B4: 3.1 | D4: Physical Security Organization, Policies, and Plans (3 of 3)
B7: 3.1.5 | C7: =IF(C12=TRUE,99,COUNTIF(C9:C11,TRUE)) -> 0 | D7: Does the security plan/policy clearly outline the organizing construct for physical security employed by the facility, including the following:
D8: Check all that apply.
C9: FALSE | D9: A layered approach to physical security
C10: FALSE | D10: Chain-of-command relationships
C11: FALSE | D11: Organizational diagrams
C12: FALSE | D12: None of the above
B14: 3.1.6 | C14: =IF(C23=TRUE,99,COUNTIF(C16:C22,TRUE)) -> 0 | D14: Does the security plan/policy establish specific security zones, including the following:
D15: Check all that apply.
C16: FALSE | D16: General areas accessible to the public at all times
C17: FALSE | D17: General areas restricted to the public during non-visiting hours or periods of lesser activity
C18: FALSE | D18: Screened public areas
C19: FALSE | D19: Staff and accompanied public areas
C20: FALSE | D20: General staff-only areas
C21: FALSE | D21: Areas for designated staff with the appropriate access privileges
C22: FALSE | D22: High-risk areas (e.g. the pharmacy, radiation treatment areas, hazardous materials storage facilities, places where cash is stored, etc.)
C23: FALSE | D23: None of the above
B25: 3.1.7 | C25: =IF(C38=TRUE,99,COUNTIF(C27:C37,TRUE)) -> 0 | D25: Does the security plan/policy:
D26: Check all that apply.
C27: FALSE | D27: Provide for physical separation between general public areas, patient/customer waiting areas, and access-restricted areas?
C28: FALSE | D28: Provide for the separation of loading docks and mail rooms from patient care/customer service and designated critical areas?
C29: FALSE | D29: Clearly define the areas, buildings, and other structures as well as equipment considered critical and/or sensitive and establish priorities for their protection?
C30: FALSE | D30: Identify; provide contact information for; and contain an alert, notification, and assembly protocol for the officials responsible for physical security and facility operations?
C31: FALSE | D31: Contain contact information and protocols for communication and coordination with local law enforcement agencies?
C32: FALSE | D32: Contain specific decision criteria as well as specific provisions for facility operations and heightened security measures during periods of elevated security alert?
C33: FALSE | D33: Address the unique risks presented by the storage and handling of hazardous materials (i.e. radiological and bio-hazard materials), narcotics, and other controlled materials/substances?
C34: FALSE | D34: Establish appropriate protocols for the receipt, inspection, routing and storage of incoming material, including routine mail and packages, as well as suspicious mail and packages?
C35: FALSE | D35: Address procedures for on-site mail/package/equipment delivery after normal operating hours?
C36: FALSE | D36: Contain provisions for reporting and investigating security threats and incidents?
C37: FALSE | D37: Contain provisions for documenting security checks and alarm response?
C38: FALSE | D38: None of the above.
B40: 3.1.8 | C40: =IF(C61=TRUE,99,COUNTIF(C42:C60,TRUE)) -> 0 | D40: Are special topic areas, including but not limited to the following, addressed in the security plan/policy?
D41: Check all that apply.
C42: FALSE | D42: Weapons
C43: FALSE | D43: Use of force
C44: FALSE | D44: Child abduction
C45: FALSE | D45: Workplace violence
C46: FALSE | D46: Patient/visitor hostile actions
C47: FALSE | D47: Active shooter
C48: FALSE | D48: Hostage situation
C49: FALSE | D49: Search and seizure
C50: FALSE | D50: Special events
C51: FALSE | D51: Media handling
C52: FALSE | D52: Security alarm response
C53: FALSE | D53: Trespassing
C54: FALSE | D54: Patient care and handling
C55: FALSE | D55: Prisoners/forensic patients and high profile patients
C56: FALSE | D56: Controlled substances
C57: FALSE | D57: Biological and radiological materials storage and handling
C58: FALSE | D58: Cash transfer operations
C59: FALSE | D59: Security of high value equipment and tangible assets
C60: FALSE | D60: Other
C61: FALSE | D61: None

Sheet 3.2 (hidden)
A2: 3 | B2: Physical Security Management Profile
B4: 3.2 | D4: Personnel Surety
B7: 3.2.1 | C7: 0 | D7: Is there a screening process in place for new hires, including a criminal background check?
B11: 3.2.2 | C11: =IF(C16=TRUE,99,COUNTIF(C13:C15,TRUE)) -> 0 | D11: Are security/criminal background checks conducted?
D12: Check all that apply.
C13: FALSE | D13: On all employees
C14: FALSE | D14: On volunteers
C15: FALSE | D15: On contractors/vendors/third party service providers
C16: FALSE | D16: None of the above
B18: 3.2.3 | C18: =IF(C22=TRUE,99,COUNTIF(C20:C21,TRUE)) -> 0 | D18: Are recurring background checks conducted?
D19: Check all that apply.
C20: FALSE | D20: On all employees
C21: FALSE | D21: On contractors/vendors/third party service providers
C22: FALSE | D22: None of the above
B24: 3.2.4 | C24: 0 | D24: Are audits conducted of contractor/vendor/third party service provider background check processes?
B28: 3.2.5 | C28: 0 | D28: Does the facility have an employee mental/emotional wellness and monitoring program in place?
B32: 3.2.6 | C32: 0 | D32: Does the facility maintain a threat assessment team to assess all people and items that enter the facility to determine if they pose a potential hazard or threat to the facility itself, facility staff and visitors, or the facility's operations?
B36: 3.2.7 | C36: 0 | D36: Does the security plan/policy contain protocols for reporting suspicious activities and/or suspicious behavior in the workplace?

Sheet 3.3 (hidden)
A2: 3 | B2: Physical Security Management Profile
B4: 3.3 | D4: Security Training
B7: 3.3.1 | C7: 0 | D7: Are security staff and facility managers, staff, contractors, and volunteers trained on the security plan/policies, including their roles and responsibilities in response to physical security and specific security-related emergencies?
B11: 3.3.2 | C11: 0 | D11: Does the employee security training program include both an onboarding and a recurring training component?
B15: 3.3.3 | C15: 0 | D15: Does the employee security training program contain an insider threat awareness component?
B19: 3.3.4 | C19: 0 | D19: Is there a comprehensive onboarding and recurring training program in place for security personnel (employees and contractors) tailored to the healthcare environment?
B23: 3.3.5 | C23: 0 | D23: Is employee security training documented in accordance with applicable standards?
B27: 3.3.6 | C27: 0 | D27: Is the security plan exercised at least once a year against the most relevant threat scenarios?
B31: 3.3.7 | C31: 0 | D31: Does the facility conduct threat-specific training (i.e. active shooter, infant abduction, hostile patient, etc.) on a recurring basis as defined in facility policy or other mandates?
B35: 3.3.8 | C35: 0 | D35: Do security exercise activities include the participation of local law enforcement and first responder agencies and other appropriate external organizations?

Sheet 3.4.a (hidden)
A2: 3 | B2: Physical Security Management Profile
B4: 3.4 | D4: Security Force Profile
D6: A security force is a specially organized and trained group of employees or contractors with specific security duties and responsibilities (e.g. guards). The security force does not include general employees who are trained in security awareness to observe and report security issues in addition to their regular duties.
B9: 3.4.1 | C9: 0 | D9: Does the facility have a security force?
B13: 3.4.2 | C13: 0 | D13: If there is no dedicated security force, is there a policy/procedure in place that addresses how facility security functions are performed in the absence of dedicated security personnel?

Sheet 3.4.b (hidden)
A2: 3 | B2: Physical Security Management Profile
B4: 3.4 | D4: Security Force Profile
C7: 0 | D7: 3.4.1.1 | E7: Are security staff:
E8: Facility employees
E9: Contractor personnel
E10: A hybrid of employees and contractor personnel
C12: 0 | D12: 3.4.1.2 | E12: Does the facility maintain a professional police force with law enforcement authority?
C16: 0 | D16: 3.4.1.3 | E16: Have security staffing levels been determined in accordance with applicable standards such as recommendations from the International Association of Healthcare Security and Safety?
C20: 0 | D20: 3.4.1.4 | E20: Are there policies in place that define the general orders and authorities of facility security personnel?
C24: 0 | D24: 3.4.1.5 | E24: Are use-of-force and detention protocols clearly established?
C28: =IF(C33=TRUE,99,COUNTIF(C30:C32,TRUE)) -> 0 | D28: 3.4.1.6 | E28: With what type of weapons is the security force armed?
E29: Check all that apply.
C30: FALSE | E30: Lethal weapons
C31: FALSE | E31: Less-than-lethal weapons
C32: FALSE | E32: Non-lethal weapons
C33: FALSE | E33: Security force is not armed
C35: 0 | D35: 3.4.1.7 | E35: Does the security force participate in a formal weapons training and certification program appropriate for their most lethal weapons?
C39: 0 | D39: 3.4.1.8 | E39: Is the security force located on site?
C43: 0 | E43: 3.4.1.8.1 | F43: What is the estimated response time of the off-site security force?
F44: Immediate
F45: Within 10 minutes
F46: Within 1 hour
F47: Greater than 1 hour
C49: 0 | D49: 3.4.1.9 | E49: Does the security force man static posts?
C53: 0 | E53: 3.4.1.9.1 | F53: Is the facility, including designated sensitive areas, adequately covered by the layout of static security posts?
C57: 0 | D57: 3.4.1.10 | E57: Are roving security patrols, including vehicular patrols, used to augment static posts?
C61: 0 | E61: 3.4.1.10.1 | F61: If so, are sensitive areas covered by roving patrols, including vehicular patrols?
C65: 0 | D65: 3.4.1.11 | E65: Is there a defined response protocol for the security force including notification, alert, and response time components?
C69: 0 | D69: 3.4.1.12 | E69: Are there protocols in place to provide for a surge in security staff in response to an emergent threat or security incident?
C73: 0 | D73: 3.4.1.13 | E73: Are policies in place detailing how security personnel will interface with local law enforcement and other external agencies in support of the response to an emergency situation?

Sheet 3.5.a (hidden)
A2: 3 | B2: Physical Security Management Profile
B4: 3.5 | D4: Physical Access Control
B7: 3.5.1 | C7: 0 | D7: Does the facility maintain open access to the public?
D8: Fully open to the public
D9: Partially open to the public
D10: Not open to the public
B12: 3.5.2 | C12: 0 | D12: Is the facility connected to a mass transit station or other key transportation node?
C16: 0 | D16: 3.5.2.1 | E16: Is the facility access from the station:
E17: Secured
E18: Open to the public
B20: 3.5.3 | C20: 0 | D20: Is there a written facility access control policy in place?
B24: 3.5.4 | C24: 0 | D24: Does the access control policy address an end-of-the-day security check to ensure that the public doesn't have access to the secured areas of the facility (i.e. ensure doors are locked, a floor sweep to ensure no one is hiding in the facility, etc.)?
B28: 3.5.5 | C28: 0 | D28: Is appropriate signage posted at the entrances to restricted areas?
B32: 3.5.6 | C32: 0 | D32: Is access to medical treatment areas and other sensitive areas, including all doors, interior elevators, and stairwells, controlled and restricted to authorized personnel only?
B36: 3.5.7 | C36: 0 | D36: Are facility doors, locks and locking hardware, configuration, and supporting protocols routinely inspected/reviewed (facility entry points, sensitive/critical areas, hazmat storage areas, building access, emergency egress, utility areas, etc.)?
B40: 3.5.8 | C40: 0 | D40: Are all facility entrances that are not open to the public (including loading dock areas) equipped with an electronic system that would alert staff to unauthorized entry/exit, or if a door has been propped open?
B44: 3.5.9 | C44: 0 | D44: Are all facility entrances that are normally open to the public but closed after hours equipped with an electronic system that would alert staff to unauthorized entry/exit, or if a door has been propped open?
B48: 3.5.10 | C48: 0 | D48: Are entrances that cannot be secured during facility operating hours monitored by security personnel or surveillance cameras?
B52: 3.5.11 | C52: 0 | D52: Does the access control policy include a provision for recording and investigating unauthorized entry attempts?
B56: 3.5.12 | C56: 0 | D56: Is there a process established to quickly shut down/lock down all or part of the facility if so required?
B60: 3.5.13 | C60: 0 | D60: Are access control systems backed up immediately in the event of a loss of primary power?

Sheet 3.5.b (hidden)
A2: 3 | B2: Physical Security Management Profile
B4: 3.5 | D4: Physical Access Control
B7: 3.5.14 | C7: 0 | D7: Does the facility have ground floor windows (less than 18 feet from the ground)?
C11: 0 | D11: 3.5.14.1 | E11: Are there protective measures in place for the ground floor windows?
B15: 3.5.15 | C15: 0 | D15: Does the facility have an air handling system with an external air intake less than or equal to 10 feet from the ground?
C19: 0 | D19: 3.5.15.1 | E19: Is the air intake protected?
B23: 3.5.16 | C23: 0 | D23: Does the facility utilize perimeter and/or sensitive area fencing (including fencing around critical equipment such as generators and propane tanks), and is it routinely inspected?
B27: 3.5.17 | C27: 0 | D27: Does the facility use securable pedestrian gates?
B31: 3.5.18 | C31: 0 | D31: Does the facility use securable vehicle gates?
B35: 3.5.19 | C35: 0 | D35: Can any vehicle be placed (legally or illegally) within 400 feet of the facility?
B39: 3.5.20 | C39: 0 | D39: Does the facility have one or more avenues of high speed approach?
B43: 3.5.21 | C43: 0 | D43: Does the facility use barriers to mitigate the risk associated with a high speed avenue of approach?
B47: 3.5.22 | C47: 0 | D47: Does the facility use barriers to enforce potential explosive blast standoff distances?
B51: 3.5.23 | C51: =IF(C58=TRUE,99,COUNTIF(C53:C57,TRUE)) -> 0 | D51: Are there protocols in place for the following:
D52: Check all that apply.
C53: FALSE | D53: Vehicle access?
C54: FALSE | D54: Parking, including overnight parking?
C55: FALSE | D55: Vehicle registration?
C56: FALSE | D56: Emergency vehicles?
C57: FALSE | D57: Vehicle inspection and searches?
C58: FALSE | D58: None of the above.

Sheet 3.6.a (hidden)
A2: 3 | B2: Physical Security Management Profile
B4: 3.6 | D4: Lighting, Surveillance, and Intrusion Detection (1 of 3)
B7: 3.6.1 | C7: 0 | D7: Is the illumination of facility approaches, fences, gates, and parking areas similar and uniform in type with overlapping light pattern coverage in most areas?
B11: 3.6.2 | C11: 0 | D11: Is the illumination of building entrance and delivery areas similar and uniform in type with overlapping light pattern coverage in most areas?
B15: 3.6.3 | C15: 0 | D15: Are illumination systems controlled by software applications?
B19: 3.6.4 | C19: 0 | D19: Are lighting systems backed up immediately in the event of a loss of primary power?
B23: 3.6.5 | C23: 0 | D23: Does the facility have a policy regarding the timely inspection, repair, and or replacement of broken lighting components?

Sheet 3.6.b (hidden)
A2: 3 | B2: Physical Security Management Profile
B4: 3.6 | D4: Lighting, Surveillance, and Intrusion Detection (2 of 3)
B7: 3.6.6 | C7: 0 | D7: To what extent does the facility utilize exterior video surveillance?
D8: Exterior video surveillance is not used
D9: 1-10% of facility exterior is under video surveillance
D10: 10-25% of facility exterior is under video surveillance
D11: 25-50% of facility exterior is under video surveillance
D12: 50-75% of facility exterior is under video surveillance
D13: 75-100% of facility exterior is under video surveillance
B15: 3.6.7 | C15: 0 | D15: To what extent does the facility utilize interior video surveillance?
D16: Interior video surveillance is not used
D17: 1-10% of facility interior is under video surveillance
D18: 10-25% of facility interior is under video surveillance
D19: 25-50% of facility interior is under video surveillance
D20: 50-75% of facility interior is under video surveillance
D21: 75-100% of facility interior is under video surveillance
B23: 3.6.8 | C23: 0 | D23: Are sensitive areas of the facility monitored using surveillance cameras?
B27: 3.6.9 | C27: 0 | D27: Does a trained security staff continuously monitor the video surveillance?
B31: 3.6.10 | C31: 0 | D31: Are electronic surveillance systems backed up immediately in the event of a loss of primary power?
B35: 3.6.11 | C35: 0 | D35: Is video surveillance footage recorded, and how long is it stored for?
D36: Video surveillance is not recorded
D37: Video surveillance recordings are stored for 24 hours
D38: Video surveillance recordings are stored for up to a week
D39: Video surveillance recordings are stored for up to a month
D40: Video surveillance recordings are stored for up to 180 days
D41: Video surveillance recordings are stored for greater than 180 days
B43: 3.6.12 | C43: 0 | D43: Are body cameras used to augment facility video surveillance?
B47: 3.6.13 | C47: 0 | D47: Does the facility have a policy regarding the timely inspection, repair, and or replacement of broken surveillance components?

Sheet 3.6.c (hidden)
A2: 3 | B2: Physical Security Management Profile
B4: 3.6 | D4: Lighting, Surveillance, and Intrusion Detection (3 of 3)
B7: 3.6.14 | C7: 0 | D7: Does the facility utilize an interior intrusion detection method or application?
C11: 0 | D11: 3.6.14.1 | E11: Are the intrusion detection systems controlled by software applications?
C15: 0 | D15: 3.6.14.2 | E15: Are the intrusion detection systems continuously monitored?
C19: 0 | D19: 3.6.14.3 | E19: Are intrusion detection and alarm systems backed up immediately in the event of a loss of primary power?

Sheet 3.7 (hidden)
A2: 3 | B2: Physical Security Management Profile
B4: 3.7 | D4: Badging and Internal Security
B7: 3.7.1 | C7: 0 | D7: Does the facility have a policy and supporting procedures in place that cover visitor sign-in and monitoring?
B11: 3.7.2 | C11: =IF(C19=TRUE,99,COUNTIF(C13:C18,TRUE)) -> 0 | D11: Does the facility have an identification card/badging policy that covers the issuance and re-issuance of proper means of identification for:
D12: Check all that apply.
C13: FALSE | D13: Employees
C14: FALSE | D14: Contractors
C15: FALSE | D15: Volunteers
C16: FALSE | D16: Vendors
C17: FALSE | D17: Visitors
C18: FALSE | D18: Privileged medical staff that have access to multiple facilities (e.g., physicians that have privileges at hospitals but aren't hospital employees)
C19: FALSE | D19: None of the above
C21: 0 | D21: 3.7.2.7 | E21: Do ID cards/badges allowing employee/contractor access to designated sensitive areas of the facility have distinguishing markings?
C25: 0 | D25: 3.7.2.8 | E25: Does the identification card/badging policy hold managers accountable for compliance in their respective areas?
C29: 0 | D29: 3.7.2.9 | E29: Does the identification card/badging policy contain provisions for handling the theft or loss of ID cards/badges?
C33: 0 | D33: 3.7.2.10 | E33: Does the identification card/badging policy address the inventorying of ID cards and badges?
C37: 0 | D37: 3.7.2.11 | E37: Does the identification card/badging policy contain provisions for collecting ID cards/badges from departing or terminated employees/contractors?
C41: 0 | D41: 3.7.2.12 | E41: Does the identification card/badging policy contain guidance regarding the use of double-sided badging and the prohibition of stickers or obstructive attachments?
B45: 3.7.3 | C45: 0 | D45: Are visitors screened and issued appropriate means of identification upon entrance to the facility?
B49: 3.7.4 | C49: 0 | D49: Are sensitive areas of the facility and facility visitor reception areas equipped with panic alarms?
B53: 3.7.5 | C53: 0 | D53: Does the facility have a key issuance, control, inventory, and accountability policy in place, including protocols for lost/stolen keys and for collecting keys from departing or terminated staff?

Sheet 4.1 (hidden)
A2: 4 | B2: Critical Dependencies
B4: 4.1 | D4: General Dependencies
B7: 4.1.1 | C7: 0 | D7: Does the facility identify single points of failure and protect areas in which systems, such as HVAC, and utilities, including water, steam, electrical power, communications, compressed gases, and/or chilled water, are produced or distributed in order to minimize the opportunity for disruption of those services?
B11: 4.1.2 | C11: 0 | D11: Has the facility identified and documented its critical dependencies across the spectrum of the critical services it provides (including critical satellite operations)?
B15: 4.1.3 | C15: =IF(C20=TRUE,99,COUNTIF(C17:C19,TRUE)) -> 0 | D15: Does the facility identify alternative means of providing the following at both the main facility and satellite operations:
D16: Check all that apply.
C17: FALSE | D17: Supporting systems that the facility defines as essential (e.g., vertical and horizontal transport, heating and cooling systems, and steam for sterilization)
C18: FALSE | D18: Critical supplies (e.g., critical chemicals, medical gas, fuel, potable water)
C19: FALSE | D19: Critical equipment (e.g., generators, HVAC spare parts)
C20: FALSE | D20: None of the above
B22: 4.1.4 | C22: 0 | D22: Does the facility identify how it will monitor the quantities of resources and assets expended during an emergency?
B26: 4.1.5 | C26: 0 | D26: Has the facility determined how long it can sustain critical operations given a disruption or loss of critical external commodities or services, and is this timeframe accounted for in facility emergency operations plans?
B30: 4.1.6 | C30: 0 | D30: Does the facility identify how it will obtain and replenish medications and other critical medical supplies that will be required throughout the response and recovery phases of an emergency, including access to and distribution of caches that may be stockpiled by the facility; its affiliates; and/or local, state, or federal sources?
B34: 4.1.7 | C34: 0 | D34: Does the facility identify how it will obtain and replenish nonmedical supplies that will be required throughout the response and recovery phases of an emergency?
B38: 4.1.8 | C38: 0 | D38: Does the facility account for the loss of critical systems such as HVAC and utilities and include separate means for redundancy in the delivery of purchased utilities, including gas, water, steam, electrical power, telecommunications, and IT services?
B42: 4.1.9 | C42: 0 | D42: Are MOAs in place with publicly owned utilities to help ensure the availability of critical services during an emergency or disaster?
B46: 4.1.10 | C46: 0 | D46: Have such MOAs been deconflicted to account for a surge in demand for similar services on the part of other customers impacted by the same emergency/disaster?
B50: 4.1.11 | C50: 0 | D50: Has the facility tested/validated contractual mechanisms, MOAs, supply chain continuity arrangements, and identified critical dependency mitigation measures through exercises or other such activities?

Sheet 4.2 (hidden)
A2: 4 | B2: Critical Dependencies
B4: 4.2 | D4: Information Technology (IT)
B7: 4.2.1 | C7: 0 | D7: Are the facility’s core functions (including critical satellite operations) dependent on data processing systems (mainframes, cloud providers, server farms, etc.)?
B11: 4.2.2 | C11: 0 | D11: Are managers, employees, and contractor personnel aware of critical IT-related dependencies linked to essential functions, as well as corresponding back-up systems and protocols?
C15: 0 | D15: 4.2.2.1 | E15: If so, have these dependencies been documented?
B19: 4.2.3 | C19: 0 | D19: Where are the primary data processing devices/systems (including those supporting critical satellite operations) located?
D20: On-site
D21: Off-site
B23: 4.2.4 | C23: 0 | D23: Is there an encrypted back-up capability in place in the event of a failure or disruption of primary devices/systems?
B27: 4.2.5 | C27: =IF(C32=TRUE,99,COUNTIF(C29:C31,TRUE)) -> 0 | D27: Are back-up capabilities:
D28: Check all that apply.
C29: FALSE | D29: Tape based
C30: FALSE | D30: Cloud based
C31: FALSE | D31: Physical server based
C32: FALSE | D32: None of the above
B34: 4.2.6 | C34: 0 | D34: Has the facility determined a recovery time objective for their primary software capabilities (internal, e.g. billing, as well as external)?
B38: 4.2.7 | C38: 0 | D38: Are data processing and cybersecurity functions (including those supporting critical satellite operations) managed, in whole or in part, by a third-party service provider, vendor, or contractor?
C42: 0 | D42: 4.2.7.1 | E42: Are third-party service providers bound by contract to maintain an appropriate back-up capability in the event of a failure or disruption of primary systems?
C46: 0 | E46: 4.2.7.1.1 | F46: If so, has this capability been tested, including relevant “hand-off” protocols?
B50: 4.2.8 | C50: 0 | D50: Does the facility participate in a provider priority plan for restoration of critical IT services, including those associated with critical satellite operations?
B54: 4.2.9 | C54: 0 | D54: Does the organization have alternative or backup storage capabilities that can be used in case of loss of the primary data storage?
B58: 4.2.10 | C58: 0 | D58: If internal data service, such as company-owned assets including mobile devices with access to the network, is lost (without considering any backup or alternative mode), how soon would the facility be severely impacted (i.e., greater than 50% reduction of priority services)?
D59: Immediately
D60: Within 24 hours
D61: Within 72 hours
D62: Within one week
D63: More than one week
B65: 4.2.11 | C65: 0 | D65: If external data service is lost (without considering any backup or alternative mode), how soon would the facility and/or critical satellite operations be severely impacted (i.e., greater than 50% reduction of priority services)?
D66: Immediately
D67: Within 24 hours
D68: Within 72 hours
D69: Within one week
D70: More than one week
B72: 4.2.12 | C72: 0 | D72: Once external data service is lost (without considering any backup or alternative mode), how soon would normal functionality of the facility and/or critical satellite operations be restored?
D73: Immediately
D74: Within 24 hours
D75: Within 72 hours
D76: Within one week
D77: More than one week

Sheet 4.3 (hidden)
A2: 4 | B2: Critical Dependencies
B4: 4.3 | D4: Electricity
B7: 4.3.1 | C7: 0 | D7: Is the facility dependent upon an external source of electrical power?
B11: 4.3.2 | C11: 0 | D11: Does the facility maintain more than one connection for electric service?
B15: 4.3.3 | C15: 0 | D15: Does the facility possess and maintain back-up batteries and/or backup generator(s) capable of immediately powering and running mission critical services for 96 hours?
B19: 4.3.4 | C19: 0 | D19: Are weekly/monthly backup generator testing and inspections conducted and documented?
B23: 4.3.5 | C23: 0 | D23: Are there parts on hand for switch gear equipment that may fail?
B27: 4.3.6 | C27: 0 | D27: Are back-up sources of electric power positioned in “survivable” locations?
B31: 4.3.7 | C31: 0 | D31: Does the facility maintain “quick connects” to enable the rapid installation of external generators?
B35: 4.3.8 | C35: 0 | D35: Does the facility have any specialty fuel needs?
G38: Specify specialty fuel needs below
B42: 4.3.9 | C42: 0 | D42: Does the facility maintain a fuel supply on hand to power emergency generators for at least 96 hours?
B46: 4.3.10 | C46: 0 | D46: Are contracts in place to bring in additional fuel for long-term outages?
C50: 0 | D50: 4.3.10.1 | E50: If not, is there an additional contingency plan to ensure fuel availability for outages lasting more than 96 hours?
B54: 4.3.11 | C54: 0 | D54: Does the facility participate in a power provider priority plan for restoration?
B58: 4.3.12 | C58: 0 | D58: If external electric service is lost (without considering any backup or alternative mode), how soon would the facility and/or critical satellite operations be severely impacted (i.e., greater than 50% reduction of priority services)?
D59: Immediately
D60: Within 24 hours
D61: Within 72 hours
D62: Within one week
D63: More than one week
B65: 4.3.13 | C65: 0 | D65: Once external electric service is lost (without considering any backup or alternative mode), how soon would normal functionality of the facility and/or critical satellite operations be restored?
D66: Immediately
D67: Within 24 hours
D68: Within 72 hours
D69: Within one week
D70: More than one week

Sheet 4.4 (hidden)
A2: 4 | B2: Critical Dependencies
B4: 4.4 | D4: Natural Gas
B7: 4.4.1 | C7: 0 | D7: Is the facility’s core function dependent on access to natural gas?
B11: 4.4.2 | C11: 0 | D11: Does the facility have a combined heat and power system?
B15: 4.4.3 | C15: 0 | D15: Is the primary source of natural gas an external provider?
B19: 4.4.4 | C19: 0 | D19: Is there more than one natural gas connection or service line to the facility?
B23: 4.4.5 | C23: 0 | D23: Is there a secondary source of natural gas?
B27: 4.4.6 | C27: 0 | D27: Can alternate forms of energy, such as biogas, be substituted for natural gas in the context of a long duration supply disruption?
B31: 4.4.7 | C31: 0 | D31: Does the facility participate in a natural gas provider priority plan for restoration?
B35: 4.4.8 | C35: 0 | D35: If external natural gas service is lost (without considering any backup or alternative mode), how soon would the facility and/or critical satellite operations be severely impacted (i.e., greater than 50% reduction of priority services)?
D36: Immediately
D37: Within 24 hours
D38: Within 72 hours
D39: Within one week
D40: More than one week
B42: 4.4.9 | C42: 0 | D42: Once external natural gas service is lost (without considering any backup or alternative mode), how soon would normal functionality of the facility and/or critical satellite operations be restored?
D43: Immediately
D44: Within 24 hours
D45: Within 72 hours
D46: Within one week
D47: More than one week

Sheet 4.5 (hidden)
A2: 4 | B2: Critical Dependencies
B4: 4.5 | D4: Water
B7: 4.5.1 | C7: 0 | D7: Does the facility rely on an external source for primary supply of water?
B11: 4.5.2 | C11: =IF(C15=TRUE,99,COUNTIF(C13:C14,TRUE)) -> 0 | D11: Is there a secondary source of water?
D12: Check all that apply.
C13: FALSE | D13: On-site
C14: FALSE | D14: Off-site
C15: FALSE | D15: No secondary source of water
B17: 4.5.3 | C17: 0 | D17: Does the facility have a mutual aid agreement or contract services for potable and service use water?
B21: 4.5.4 | C21: 0 | D21: Does the facility maintain onsite water storage capacity capable of sustaining human needs, designated critical operations, and critical systems such as HVAC?
B25: 4.5.5 | C25: 0 | D25: Does the facility have a backup in case of loss of water pressure, especially if it is a multiple story facility?
B29: 4.5.6 | C29: 0 | D29: Does the facility participate in a water provider priority plan for restoration?
B33: 4.5.7 | C33: 0 | D33: If external water service is lost (without considering any backup or alternative mode), how soon would the facility and/or critical satellite operations be severely impacted (i.e., greater than 50% reduction of priority services)?
D34: Immediately
D35: Within 24 hours
D36: Within 72 hours
D37: Within one week
D38: More than one week
B40: 4.5.8 | C40: 0 | D40: Once external water service is lost (without considering any backup or alternative mode), how soon would normal functionality of the facility and/or critical satellite operations be restored?
D41: Immediately
D42: Within 24 hours
D43: Within 72 hours
D44: Within one week
D45: More than one week

Sheet 4.6 (hidden)
A2: 4 | B2: Critical Dependencies
B4: 4.6 | D4: Wastewater and Waste Disposal
B7: 4.6.1 | C7: 0 | D7: Is the facility’s core function dependent on continuous access to wastewater discharge and waste disposal services?
B11: 4.6.2 | C11: 0 | D11: Is there an on-site waste incineration capability?
B15: 4.6.3 | C15: 0 | D15: Is there on-site sterilization (e.g., autoclave) capability?
B19: 4.6.4 | C19: 0 | D19: Does the facility have the ability to bring in portable wastewater and waste disposal services (including hazmat disposal)?
B23: 4.6.5 | C23: 0 | D23: Is there a secondary source of wastewater discharge and waste disposal services (including hazmat disposal)?
B27: 4.6.6 | C27: 0 | D27: Does the facility participate in wastewater discharge service provider priority plan for restoration?
B31: 4.6.7 | C31: 0 | D31: If external wastewater service and/or waste disposal service (including hazmat disposal) is lost (without considering any backup or alternative mode), how soon would the facility and/or critical satellite operations be severely impacted (i.e., greater than 50% reduction of priority services)?
D32: Immediately
D33: Within 24 hours
D34: Within 72 hours
D35: Within one week
D36: More than one week
B38: 4.6.8 | C38: 0 | D38: Once external wastewater service and/or waste disposal service (including hazmat disposal) is lost (without considering any backup or alternative mode), how soon would normal functionality of the facility and/or critical satellite operations be restored?
D39: Immediately
D40: Within 24 hours
D41: Within 72 hours
D42: Within one week
D43: More than one week

Sheet 4.7 (hidden)
A2: 4 | B2: Critical Dependencies
B4: 4.7 | D4: Communications
B7: 4.7.1 | C7: 0 | D7: Are the facility’s core functions dependent on continuous access to communications infrastructure?
D8: For example: wired phone, wired data, cell phone, etc.
B12: 4.7.2 | C12: 0 | D12: If the primary mode of communication service is lost, is there a backup mode of communication?
B16: 4.7.3 | C16: 0 | D16: Does the facility participate in a communications provider priority plan for restoration?
B20: 4.7.4 | C20: =IF(C25=TRUE,99,COUNTIF(C22:C24,TRUE)) -> 0 | D20: Does the facility have an emergency backup for phone service including the following?
D21: Check all that apply.
C22: FALSE | D22: Wireless Provider Service (WPS)
C23: FALSE | D23: Government Emergency Telecommunication Services (GETS)
C24: FALSE | D24: Telecommunications Service Priority (TSP)
C25: FALSE | D25: None of the above
B27: 4.7.5 | C27: 0 | D27: If external communications service is lost (without considering any backup or alternative mode), how soon would the facility and/or critical satellite operations be severely impacted (i.e., greater than 50% reduction of priority services)?
D28: Immediately
D29: Within 24 hours
D30: Within 72 hours
D31: Within one week
D32: More than one week
B34: 4.7.6 | C34: 0 | D34: Once external communications service is lost (without considering any backup or alternative mode), how soon would normal functionality of the facility and/or critical satellite operations be restored?
D35: Immediately
D36: Within 24 hours
D37: Within 72 hours
D38: Within one week
D39: More than one week

Sheet 4.8 (hidden)
A2: 4 | B2: Critical Dependencies
B4: 4.8 | D4: Transportation
B7: 4.8.1 | C7: 0 | D7: Are the facility’s core functions (including continuity in critical supply chains and the ability of essential staff to report for duty during local or regional emergencies) dependent on access to specific transportation modes or routes with a single point of failure?
D8: For example, specific roadways, bridges, tunnels, or mass transit lines
G11: If Yes, specify key transportation dependencies below
B15: 4.8.2 | C15: 0 | D15: Does the facility identify alternative means of essential transportation services for staff and patients?
B19: 4.8.3 | C19: 0 | D19: Does the facility have an established plan for credentialing and authorized movement of critical staff in emergency situations where access into the impacted are may be limited?
B23: 4.8.4 | C23: 0 | D23: If key external transportation service is lost (without considering any backup or alternative mode), how soon would the facility and/or critical satellite operations be severely impacted (i.e., greater than 50% reduction of priority services)?
D24: Immediately
D25: Within 24 hours
D26: Within 72 hours
D27: Within one week
D28: More than one week
B30: 4.8.5 | C30: 0 | D30: Once key external transportation service is lost (without considering any backup or alternative mode), how soon would normal functionality of the facility and/or critical satellite operations be restored?
D31: Immediately
D32: Within 24 hours
D33: Within 72 hours
D34: Within one week
D35: More than one week

Sheet 4.9 (hidden)
A2: 4 | B2: Critical Dependencies
B4: 4.9 | D4: Critical Products
B7: 4.9.1 | C7: =SUM(C9:C10) -> 0 | D7: Are the facility’s core functions dependent on access to the following critical products?
C9: 0 | D9: 4.9.1.1 | E9: Chemicals
C10: 0 | D10: 4.9.1.2 | E10: Other critical supplies/equipment
I12: Specify other critical supplies/equipment below
B15: 4.9.2 | C15: 0 | D15: If the critical chemical supply source(s) is lost (without considering any backup or alternative mode), how soon would the facility and/or critical satellite operations be severely impacted (i.e., greater than 50% reduction of priority services)?
D16: Immediately
D17: Within 24 hours
D18: Within 72 hours
D19: Within one week
D20: More than one week
B22: 4.9.3 | C22: 0 | D22: Once the critical chemical supply source(s) is lost (without considering any backup or alternative mode), how soon would normal functionality of the facility and/or critical satellite operations be restored?
D23: Immediately
D24: Within 24 hours
D25: Within 72 hours
D26: Within one week
D27: More than one week
B29: 4.9.4 | C29: 0 | D29: If access to critical supplies/equipment is lost (without considering any backup or alternative mode), how soon would the facility and/or critical satellite operations be severely impacted (i.e., greater than 50% reduction of priority services)?
D30: Immediately
D31: Within 24 hours
D32: Within 72 hours
D33: Within one week
D34: More than one week
B36: 4.9.5 | C36: 0 | D36: Once access to critical supplies/equipment is lost (without considering any backup or alternative mode), how soon would normal functionality of the facility and/or critical satellite operations be restored?
D37: Immediately
D38: Within 24 hours
D39: Within 72 hours
D40: Within one week
D41: More than one week
B43: 4.9.6 | C43: 0 | D43: In the event of a disruption affecting critical product suppliers, are back-up arrangements and/or contracts in place with alternate suppliers?
C47: 0 | D47: 4.9.6.1 | E47: Have such arrangements been deconflicted to account for a surge in demand for similar commodities and services on the part of other customers impacted by the same emergency/disaster?
C51: 0 | D51: 4.9.6.2 | E51: Have these been tested to ensure their validity in emergency situations in which multiple affected facilities are relying on the same vendors/contractors for similar services?
B55: 4.9.7 | C55: 0 | D55: Are critical products for emergency operations determined on the basis of risk assessments and analyses?
B59: 4.9.8 | C59: 0 | D59: Are there any critical supplies that the facility obtains from a single supplier/distributor?
B63: 4.9.9 | C63: 0 | D63: Are current contracts designed to reflect emergency needs (e.g. type of commodity, quantity of commodity, and timeliness of delivery) based on risk assessments and analysis as well as exercise lessons learned?
B67: 4.9.10 | C67: 0 | D67: Are critical products readily available in sufficient quantities?
B71: 4.9.11 | C71: 0 | D71: Are critical products periodically tested, and are expired or inappropriate items disposed of in accordance with established guidelines?
B75: 4.9.12 | C75: 0 | D75: Are maintenance of the inventory and the rotation and safe stockpiling of critical products executed in accordance with established guidelines?
B79: 4.9.13 | C79: 0 | D79: Is there a system in place for the distribution of critical products in the event of an HPH Sector emergency?
B83: 4.9.14 | C83: 0 | D83: Do procedures exist for the exceptional procurement of critical products that are not on the list of basic equipment?

Sheet 5.1 (hidden)
A2: 5 | B2: Cybersecurity Management Profile
B4: 5.1 | D4: Identify
A7: 5.1.1 | B7: Asset Management
B9: 5.1.1.1 | C9: 0 | D9: How frequently are physical IT devices and systems and back-ups within the organization inventoried?
D10: At least semiannually (twice per year)
D11: Annually (once per year)
D12: Biannually (every two years)
D13: Inventory of physical IT devices, systems, and backups is not conducted
B15: 5.1.1.2 | C15: 0 | D15: How frequently are IT software platforms and applications and back-ups within the organization inventoried?
D16: At least semiannually (twice per year)
D17: Annually (once per year)
D18: Biannually (every two years)
D19: Inventory of IT software platforms, applications, and backups is not conducted
B21: 5.1.1.3 | C21: 0 | D21: Are IT resources (e.g., hardware, devices, data, and software) prioritized based on their classification, criticality, and business value?
B25: 5.1.1.4 | C25: 0 | D25: Has a compliance audit been conducted of all identified primary and back-up critical IT assets?
B29: 5.1.1.5 | C29: 0 | D29: Are organizational communication and data flows linked to identified primary and back-up Critical IT assets?
B33: 5.1.1.6 | C33: 0 | D33: Are external IT services catalogued and audited for security purposes appropriately?
A37: 5.1.2 | B37: Governance
B39: 5.1.2.1 | C39: 0 | D39: Is there a designated manager/department in charge of information security management?
B43: 5.1.2.2 | C43: 0 | D43: Is organizational information security policy established?
B47: 5.1.2.3 | C47: 0 | D47: Is there a documented cybersecurity plan and IT security architecture in place, including appropriate physical security protocols, that includes each of the identified primary and back-up critical cybersecurity assets?
B51: 5.1.2.4 | C51: 0 | D51: Are information security roles and responsibilities defined in policy/plans for management, employees, and third-party stakeholders (e.g., suppliers, customers, partners)?
B55: 5.1.2.5 | C55: 0 | D55: Are appropriate procurement and contracting measures employed to specify and enforce cybersecurity requirements for third party service providers, vendors, and contractors?
B59: 5.1.2.6 | C59: 0 | D59: Are recognized cyber-security standards of practice adhered to?
D60: E.g., NIST Cybersecurity Framework, HIPAA, ISO/IEC 27000 series, etc.
G62: Specify standards followed
B66: 5.1.2.7 | C66: 0 | D66: Are legal and regulatory requirements regarding cybersecurity, including privacy and civil liberties obligations, understood and managed?
B70: 5.1.2.8 | C70: 0 | D70: Do corporate governance and risk management processes identify and address cybersecurity risks?
B74: 5.1.2.9 | C74: 0 | D74: Are security policy violations on system networks (e.g., unauthorized reads, writes, access, etc.), both primary and back-up, recorded and audited?
A78: 5.1.3 | B78: Risk Assessment
B80: 5.1.3.1 | C80: 0 | D80: Are cyber threats, both internal and external, identified and documented?
B84: 5.1.3.2 | C84: 0 | D84: Are IT asset vulnerabilities identified and documented?
B88: 5.1.3.3 | C88: 0 | D88: Is cyber threat and vulnerability information received from external information sharing forums and sources?
G90: Specify sources below
B94: 5.1.3.4 | C94: 0 | D94: Are potential mission business impacts and likelihoods of occurrence related to catalogued threats and vulnerabilities identified?
B98: 5.1.3.5 | C98: 0 | D98: Are cyber threats, vulnerabilities, likelihoods of occurrence, and impacts used to determine risk?
B102: 5.1.3.6 | C102: =IF(C108=TRUE,99,COUNTIF(C104:C107,TRUE)) -> 0 | D102: Does the facility conduct a periodic cyber risk assessment and security gap analysis, including:
D103: Check all that apply.
C104: FALSE | D104: Identification and documentation of asset vulnerabilities
C105: FALSE | D105: Identification and documentation of threats, both internal and external
C106: FALSE | D106: Receipt of threat and vulnerability information from outside sources
C107: FALSE | D107: Determination of business impacts and likelihoods
C108: FALSE | D108: None of the above
B110: 5.1.3.7 | C110: 0 | D110: Is a cyber risk assessment and security gap analysis conducted on a recurring basis?
D111: At least semiannually (twice per year)
D112: Annually (once per year)
D113: Biannually (every two years)
D114: Cyber risk assessment and security gap analysis is not conducted
A116: 5.1.4 | B116: Risk Management Strategy
B118: 5.1.4.1 | C118: 0 | D118: Are cyber risk management processes established, managed, and agreed to by internal and external organizational stakeholders?
B122: 5.1.4.2 | C122: 0 | D122: Is organizational cyber risk tolerance determined and clearly expressed in policy?

Sheet 5.2.a (hidden)
A2: 5 | B2: Cybersecurity Management Profile
B4: 5.2 | D4: Protect (1 of 2)
A7: 5.2.1 | B7: Access Control
B9: 5.2.1.1 | C9: 0 | D9: Is a process established for identity proofing and authentication to limit access to critical primary and back-up IT systems to only authorized persons and automated systems?
C13: 0 | D13: 5.2.1.1.1 | E13: If so, has it been tested for effectiveness?
B17: 5.2.1.2 | C17: 0 | D17: Is the concept of least privileges and separation of duties practiced (i.e., users are only granted access to the information, files and applications required to perform their specific duties)?
B21: 5.2.1.3 | C21: 0 | D21: Is physical access to IT assets managed and protected?
B25: 5.2.1.4 | C25: 0 | D25: Is remote access to critical cyber services/assets allowed?
B29: 5.2.1.5 | C29: 0 | D29: Is there a protocol in place to protect remotely accessed primary and back-up systems?
C33: 0 | D33: 5.2.1.5.1 | E33: If so, has it been tested for effectiveness?
B37: 5.2.1.6 | C37: 0 | D37: Is there a protocol for removing, suspending, or modifying user accounts upon change of employment status?
A41: 5.2.2 | B41: Awareness and Training
B43: 5.2.2.1 | C43: 0 | D43: Are all IT system users trained to the appropriate level of competency on the cybersecurity plan/policy both during initial onboarding as well as on a recurring basis?
C47: 0 | D47: 5.2.2.1.1 | E47: Is such training appropriately documented and reviewed?
B51: 5.2.2.2 | C51: 0 | D51: Do IT system users take part in specialized cybersecurity drill and exercise activities?
D52: At least semiannually (twice per year)
D53: Annually (once per year)
D54: Biannually (every two years)
D55: IT system users do not take part in specialized cybersecurity drills and exercise activities
B57: 5.2.2.3 | C57: 0 | D57: Are appropriate levels of cybersecurity training provided to senior executive staff and managers?
C61: 0 | D61: 5.2.2.3.1 | E61: Is such training appropriately documented and reviewed?
B65: 5.2.2.4 | C65: 0 | D65: Do senior executives/managers take part in specialized cybersecurity drill and exercise activities?
B69: 5.2.2.5 | C69: 0 | D69: Are appropriate levels of cybersecurity training provided for IT/cybersecurity staff?
C73: 0 | D73: 5.2.2.5.1 | E73: Is such training appropriately documented and reviewed?
B77: 5.2.2.6 | C77: 0 | D77: Do IT/cybersecurity staff members take part in specialized cybersecurity drill and exercise activities?
B81: 5.2.2.7 | C81: 0 | D81: Are third-party stakeholder (e.g., suppliers, customers, partners) cybersecurity training requirements established in contracts, memoranda of understanding, etc.?
B85: 5.2.2.8 | C85: 0 | D85: Do third party stakeholders take part in specialized cybersecurity drill and exercise activities?

Sheet 5.2.b (hidden)
A2: 5 | B2: Cybersecurity Management Profile
B4: 5.2 | D4: Protect (2 of 2)
A7: 5.2.3 | B7: Data Security
B9: 5.2.3.1 | C9: 0 | D9: Is data protection enhanced through the use of data encryption practices?
C13: 0 | D13: 5.2.3.1.1 | E13: If so, have such practices been tested for effectiveness?
B17: 5.2.3.2 | C17: 0 | D17: Is data-at-rest protected?
C21: 0 | D21: 5.2.3.2.1 | E21: If so, have corresponding protocols been tested for effectiveness?
B25: 5.2.3.3 | C25: 0 | D25: Is data in transit protected?
C29: 0 | D29: 5.2.3.3.1 | E29: If so, have corresponding protocols been tested for effectiveness?
B33: 5.2.3.4 | C33: 0 | D33: Are appropriate measures employed to address data confidentiality and integrity for both primary and back-up systems?
C37: 0 | D37: 5.2.3.4.1 | E37: If so, have corresponding protocols been tested for effectiveness?
B41: 5.2.3.5 | C41: 0 | D41: Are protocols aligned with relevant standards/regulations for the protection of personal healthcare information in place for both primary and back-up systems?
B45: 5.2.3.6 | C45: 0 | D45: Are protections against data leaks implemented?
A49: 5.2.4 | B49: Protect
B51: 5.2.4.1 | C51: 0 | D51: Are protocols in place for the protection of medical devices and related information?
B55: 5.2.4.2 | C55: 0 | D55: Are backups of information conducted, maintained, and tested periodically?
B59: 5.2.4.3 | C59: 0 | D59: Are policy and regulatory requirements regarding the physical operating environment for organizational IT assets met?
B63: 5.2.4.4 | C63: 0 | D63: Is data destroyed according to established policy?
B67: 5.2.4.5 | C67: 0 | D67: Are protection processes continuously improved?
B71: 5.2.4.6 | C71: 0 | D71: Is cybersecurity included in human resources practices (e.g., personnel screening, performance appraisals, etc.)?
A75: 5.2.5 | B75: Maintenance
B77: 5.2.5.1 | C77: 0 | D77: Are maintenance and repair of organizational IT assets performed and logged in a timely manner, with approved and controlled tools?
B81: 5.2.5.2 | C81: 0 | D81: Are remote maintenance of organizational IT assets approved, logged, and performed in a manner that prevents unauthorized access?
A85: 5.2.6 | B85: Protective Technology
B87: 5.2.6.1 | C87: 0 | D87: Are audit/log records determined, documented, implemented, and reviewed in accordance with policy?
B91: 5.2.6.2 | C91: 0 | D91: Is removable media protected and its use restricted according to policy?
B95: 5.2.6.3 | C95: 0 | D95: Are communications and control networks protected?

Sheet 5.3 (hidden)
A2: 5 | B2: Cybersecurity Management Profile
B4: 5.3 | D4: Detect
A7: 5.3.1 | B7: Anomalies and Events
B9: 5.3.1.1 | C9: 0 | D9: Is a baseline of network operations and expected data flows for users and systems established and managed?
B13: 5.3.1.2 | C13: 0 | D13: Are detected events analyzed to understand attack targets and methods?
B17: 5.3.1.4 | C17: 0 | D17: Is the impact of events determined and catalogued?
B21: 5.3.1.5 | C21: 0 | D21: Are cyber incident alert thresholds established?
A25: 5.3.2 | B25: Security Continuous Monitoring
B27: 5.3.2.1 | C27: 0 | D27: Is the network monitored to detect potential cybersecurity events?
B31: 5.3.2.2 | C31: 0 | D31: Is the physical environment monitored to detect potential cybersecurity events?
B35: 5.3.2.3 | C35: 0 | D35: Is personnel activity monitored to detect potential cybersecurity events?
B39: 5.3.2.4 | C39: 0 | D39: Are system configuration monitoring procedures and/or tools used that measure secure configuration elements and report configuration vulnerability information for both primary and back-up systems?
B43: 5.3.2.5 | C43: =IF(C51=TRUE,99,COUNTIF(C45:C50,TRUE)) -> 0 | D43: Are cybersecurity measures employed to monitor networks related to critical primary and back-up IT systems for the following threats?
D44: Check all that apply.
C45: FALSE | D45: Malicious code
C46: FALSE | D46: Unauthorized access
C47: FALSE | D47: Intrusion detection
C48: FALSE | D48: Ransomware
C49: FALSE | D49: Data exfiltration
C50: FALSE | D50: Unauthorized mobile code
C51: FALSE | D51: None of the above
B53: 5.3.2.6 | C53: 0 | D53: Is external service provider activity monitored to detect potential cybersecurity events?
B57: 5.3.2.7 | C57: 0 | D57: Is monitoring for unauthorized personnel, connections, devices, and software performed?
B61: 5.3.2.8 | C61: 0 | D61: Are vulnerability scans performed?
A65: 5.3.3 | B65: Detection Processes
B67: 5.3.3.1 | C67: 0 | D67: Are roles and responsibilities for detection well defined to ensure accountability?
B71: 5.3.3.2 | C71: 0 | D71: Do detection activities comply with all applicable requirements?
B75: 5.3.3.3 | C75: 0 | D75: Are detection processes tested?
B79: 5.3.3.4 | C79: 0 | D79: Is event detection information communicated to appropriate parties?
B83: 5.3.3.5 | C83: 0 | D83: Are detection processes continuously improved?

Sheet 5.4 (hidden)
A2: 5 | B2: Cybersecurity Management Profile
B4: 5.4 | D4: Response
A7: 5.4.1 | B7: Response Planning
B9: 5.4.1.1 | C9: 0 | D9: Are predefined plans/policies for responding to cybersecurity incidents in place?
B13: 5.4.1.2 | C13: 0 | D13: Do cyber response plans/policies include threshold criteria for activation of response protocols?
B17: 5.4.1.3 | C17: 0 | D17: Is there an IT service provider or an internal cyber team responsible for immediately responding to, coordinating and/or managing cyber incidents?
B21: 5.4.1.4 | C21: 0 | D21: Should the primary IT systems become inoperable, is there access to alternative systems for performing mission essential IT functions?
A25: 5.4.2 | B25: Communications
B27: 5.4.2.1 | C27: 0 | D27: Do personnel know their roles, responsibilities, and order of operations when a response is needed?
B31: 5.4.2.2 | C31: 0 | D31: Are cybersecurity event logs maintained, routinely reviewed, and reported on?
B35: 5.4.2.3 | C35: 0 | D35: Are events reported consistent with established criteria and other requirements?
B39: 5.4.2.4 | C39: 0 | D39: Does voluntary information sharing occur with external stakeholders to achieve broader cybersecurity situational awareness?
A43: 5.4.3 | B43: Analysis
B45: 5.4.3.1 | C45: 0 | D45: Are notifications from detection systems investigated?
B49: 5.4.3.2 | C49: 0 | D49: Is the impact of the incident understood?
B53: 5.4.3.3 | C53: 0 | D53: Are forensics performed?
B57: 5.4.3.4 | C57: 0 | D57: Are incidents categorized consistent with response plans?
A61: 5.4.4 | B61: Mitigation
B63: 5.4.4.1 | C63: 0 | D63: Are incidents contained?
B67: 5.4.4.2 | C67: 0 | D67: Are incidents mitigated?
B71: 5.4.4.3 | C71: 0 | D71: Are newly identified vulnerabilities mitigated or documented as accepted risks?
A75: 5.4.5 | B75: Improvements
B77: 5.4.5.1 | C77: 0 | D77: Is incident response included in cybersecurity drills and exercises?
B81: 5.4.5.2 | C81: 0 | D81: Do response plans incorporate lessons learned from drills, exercises, and real world events?
B85: 5.4.5.3 | C85: 0 | D85: Are response strategies updated based on industry best practices and lessons learned from drills, exercises, and real world events?

Sheet 5.5 (hidden)
A2: 5 | B2: Cybersecurity Management Profile
B4: 5.5 | D4: Recovery
A7: 5.5.1 | B7: Recovery Planning
B9: 5.5.1.1 | C9: 0 | D9: Are predefined plans/policies for recovering from cybersecurity incidents in place?
B13: 5.5.1.2 | C13: 0 | D13: Is the cyber recovery plan executed consistent with a defined activation threshold?
A17: 5.5.2 | B17: Improvements
B19: 5.5.2.1 | C19: 0 | D19: Do cyber recovery plans incorporate lessons learned from drills, exercises and real world events?
B23: 5.5.2.2 | C23: 0 | D23: Are recovery plans updated based on industry best practices and lessons learned from drills, exercises, and real world events?
A27: 5.5.3 | B27: Communications
B29: 5.5.3.2 | C29: 0 | D29: Are recovery activities communicated to internal stakeholders and executive and management teams?

Sheet RESULTS (hidden)
C3: Results
C5: The responses entered into this assessment tool are tabulated into an overall Vulnerability and Resilience Score, ranging from zero to 100. A score closer to 100 indicates the facility or asset being assessed has low overall vulnerability and is highly resilient. The Vulnerability and Resilience Score is composed of four equally weighted subscores, which reflect the four major sections of the RIST. Each subscore is also reported on a scale from zero to 100, and represents the percentage of available points received within each section. For further detail on the make-up of the subscores, click the Show/Hide Details button. To return to any specific section of the RIST, click the Menu button at the top of this page. Scores can be exported to a single, simplified spreadsheet using the Export Results button at the bottom of this page. This exported sheet can be imported into the multiple assessment viewer to compare a group of assets (e.g., within a coalition or region).
C9: Vulnerability and Resilience Score | T9: =AVERAGE(Scoring!H11,Scoring!H17,Scoring!H26,Scoring!H37) -> 0
T10: =1-T9 -> 1
E11: =T9 -> 0 | T11: OVERALL
C15: =IF(PROGRESS < 1,"NOTICE: Not all survey questions have been completed (" & ROUND(1-PROGRESS, 3)*100 & "% Remaining). Results may not accurately reflect the vulnerability and resilience of the facility.","") -> NOTICE: Not all survey questions have been completed (100% Remaining). Results may not accurately reflect the vulnerability and resilience of the facility.
J24: Resilience | T24: Physical Security
B25: 2 | C25: Resilience Management Profile | H25: =Scoring!H11 -> 0 | J25: =1-H25 -> 1 | L25: 3 | M25: Physical Security Management Profile | R25: =Scoring!H17 -> 0 | T25: =1-R25 -> 1
B26: 2.1 | C26: Business Continuity | H26: =Scoring!H12 -> 0 | L26: 3.1 | M26: Physical Security Organization, Policies, and Plans | R26: =Scoring!H18 -> 0
B27: 2.2 | C27: Emergency Management | H27: =Scoring!H13 -> 0 | L27: 3.2 | M27: Personnel Surety | R27: =Scoring!H19 -> 0
B28: 2.3 | C28: Information Sharing | H28: =Scoring!H14 -> 0 | L28: 3.3 | M28: Security Training | R28: =Scoring!H20 -> 0
B29: 2.4 | C29: Climate Change | H29: =Scoring!H15 -> 0 | L29: 3.4 | M29: Security Force Profile | R29: =Scoring!H21 -> 0
L30: 3.5 | M30: Physical Access Control | R30: =Scoring!H22 -> 0
L31: 3.6 | M31: Lighting, Surveillance, and Intrusion Detection | R31: =Scoring!H23 -> 0
L32: 3.7 | M32: Badging and Internal Security | R32: =Scoring!H24 -> 0
J41: Dependencies | T41: Cybersecurity
B42: 4 | C42: Critical Dependencies | H42: =Scoring!H26 -> 0 | J42: =1-H42 -> 1 | L42: 5 | M42: Cybersecurity Management | R42: =Scoring!H37 -> 0 | T42: =1-R42 -> 1
B43: 4.1 | C43: General Dependencies | H43: =Scoring!H27 -> 0 | L43: 5.1 | M43: Identify | R43: =Scoring!H38 -> 0
B44: 4.2 | C44: Information Technology (IT) | H44: =Scoring!H28 -> 0 | L44: 5.2 | M44: Protect | R44: =Scoring!H39 -> 0
B45: 4.3 | C45: Electricity | H45: =Scoring!H29 -> 0 | L45: 5.3 | M45: Detect | R45: =Scoring!H40 -> 0
B46: 4.4 | C46: Natural Gas | H46: =Scoring!H30 -> 0 | L46: 5.4 | M46: Response | R46: =Scoring!H41 -> 0
B47: 4.5 | C47: Water | H47: =Scoring!H31 -> 0 | L47: 5.5 | M47: Recovery | R47: =Scoring!H42 -> 0
B48: 4.6 | C48: Wastewater and Waste Disposal | H48: =Scoring!H32 -> 0
B49: 4.7 | C49: Communications | H49: =Scoring!H33 -> 0
B50: 4.8 | C50: Transportation | H50: =Scoring!H34 -> 0
B51: 4.9 | C51: Critical Products | H51: =Scoring!H35 -> 0

Sheet Scoring (hidden)
L1: 1 | M1: Facility/Asset Characterization | U1: 2 | V1: Resilience Management Profile | BE1: 3 | BF1: Physical Security Management Profile | DP1: 4 | DQ1: Critical Dependencies | GS1: 5 | GT1: Cybersecurity Management Profile
L2: Section Count | M2: Section Completed | N2: % | U2: Section Count | V2: Section Completed | W2: % | Y2: Section Max | Z2: Section Total | BE2: Section Count | BF2: Section Completed | BG2: % | BI2: Section Max | BJ2: Section Total | DP2: Section Count | DQ2: Section Completed | DR2: % | DT2: Section Max | DU2: Section Total | GS2: Section Count | GT2: Total Completed | GU2: % | GW2: Section Max | GX2: Section Total | IF2: Total Count | IG2: Total Completed
L3: =K9 -> 7 | M3: =L9 -> 0 | N3: =ROUND(M3/L3,2)*100 -> 0 | U3: =SUM(T9,AC9,AL9,AU9) -> 77 | V3: =SUM(U9,AD9,AM9,AV9) -> 0 | W3: =ROUND(V3/U3,2)*100 -> 0 | Y3: =SUM(Z9,AI9,AR9,BA9) -> 122 | Z3: =SUM(W9,AF9,AO9,AX9) -> 0 | BE3: =SUM(BD9,BM9,BV9,CE9,CN9,CW9,DF9) -> 99 | BF3: =SUM(BE9,BN9,BW9,CF9,CO9,CX9,DG9) -> 0 | BG3: =ROUND(BF3/BE3,2)*100 -> 0 | BI3: =SUM(BJ9,BS9,CB9,CK9,CT9,DC9,DL9) -> 108 | BJ3: =SUM(BG9,BP9,BY9,CH9,CQ9,CZ9,DI9) -> 0 | DP3: =SUM(DO9,DX9,EG9,EP9,EY9,FH9,FQ9,FZ9,GI9) -> 93 | DQ3: =SUM(DP9,DY9,EH9,EQ9,EZ9,FI9,FR9,GA9,GJ9) -> 0 | DR3: =ROUND(DQ3/DP3,2)*100 -> 0 | DT3: =SUM(DU9,ED9,EM9,EV9,FE9,FN9,FW9,GF9,GO9) -> 84 | DU3: =SUM(DR9,EA9,EJ9,ES9,FB9,FK9,FT9,GC9,GL9) -> 0 | GS3: =SUM(GR9,HA9,HJ9,HS9,IB9) -> 104 | GT3: =SUM(GS9,HB9,HK9,HT9,IC9) -> 0 | GU3: =ROUND(GT3/GS3,2)*100 -> 0 | GW3: =SUM(GX9,HG9,HP9,HY9,IH9) -> 104 | GX3: =SUM(GU9,HD9,HM9,HV9,IE9) -> 0 | IF3: =SUM(K9,T9,AC9,AL9,AU9,BD9,BM9,BV9,CE9,CN9,CW9,DF9,DO9,DX9,EG9,EP9,EY9,FH9,FQ9,FZ9,GI9,GR9,HA9,HJ9,HS9,IB9) -> 380 | IG3: =SUM(M3,V3,BF3,DQ3,GT3) -> 0 | IH3: =IG3/IF3 -> 0
L7: 1.1 | M7: General Characterization | U7: 2.1 | V7: Business Continuity | AD7: 2.2 | AE7: Emergency Management | AM7: 2.3 | AN7: Information Sharing | AV7: 2.4 | AW7: Climate Change | BE7: 3.1 | BF7: Physical Security Organization, Policies, and Plans | BN7: 3.2 | BO7: Personnel Surety | BW7: 3.3 | BX7: Security Training | CF7: 3.4 | CG7: Security Force Profile | CO7: 3.5 | CP7: Physical Access Control | CX7: 3.6 | CY7: Lighting, Surveillance, and Intrusion Detection | DG7: 3.7 | DH7: Badging and Internal Security | DP7: 4.1 | DQ7: General Dependencies | DY7: 4.2 | DZ7: Information Technology (IT) | EH7: 4.3 | EI7: Electricity | EQ7: 4.4 | ER7: Natural Gas | EZ7: 4.5 | FA7: Water | FI7: 4.6 | FJ7: Wastewater and Waste Disposal | FR7: 4.7 | FS7: Communications | GA7: 4.8 | GB7: Transportation | GJ7: 4.9 | GK7: Critical Products | GS7: 5.1 | GT7: Identify | HB7: 5.2 | HC7: Protect | HK7: 5.3 | HL7: Detect | HT7: 5.4 | HU7: Response | IC7: 5.5 | ID7: Recovery
K8: Count | L8: Completed | M8: % | N8: Subtotal | Q8: Max Subtotal | T8: Count | U8: Completed | V8: % | W8: Subtotal | Z8: Max Subtotal | AC8: Count | AD8: Completed | AE8: % | AF8: Subtotal | AI8: Max Subtotal | AL8: Count | AM8: Completed | AN8: % | AO8: Subtotal | AR8: Max Subtotal | AU8: Count | AV8: Completed | AW8: % | AX8: Subtotal | BA8: Max Subtotal | BD8: Count | BE8: Completed | BF8: % | BG8: Subtotal | BJ8: Max Subtotal | BM8: Count | BN8: Completed | BO8: % | BP8: Subtotal | BS8: Max Subtotal | BV8: Count | BW8: Completed | BX8: % | BY8: Subtotal | CB8: Max Subtotal | CE8: Count | CF8: Completed | CG8: % | CH8: Subtotal | CK8: Max Subtotal | CN8: Count | CO8: Completed | CP8: % | CQ8: Subtotal | CT8: Max Subtotal | CW8: Count | CX8: Completed | CY8: % | CZ8: Subtotal | DC8: Max Subtotal | DF8: Count | DG8: Completed | DH8: % | DI8: Subtotal | DL8: Max Subtotal | DO8: Count | DP8: Completed | DQ8: % | DR8: Subtotal | DU8: Max Subtotal | DX8: Count | DY8: Completed | DZ8: % | EA8: Subtotal | ED8: Max Subtotal | EG8: Count | EH8: Completed | EI8: % | EJ8: Subtotal | EM8: Max Subtotal | EP8: Count | EQ8: Completed | ER8: % | ES8: Subtotal | EV8: Max Subtotal | EY8: Count | EZ8: Completed | FA8: % | FB8: Subtotal | FE8: Max Subtotal | FH8: Count | FI8: Completed | FJ8: % | FK8: Subtotal | FN8: Max Subtotal | FQ8: Count | FR8: Completed | FS8: % | FT8: Subtotal | FW8: Max Subtotal | FZ8: Count | GA8: Completed | GB8: % | GC8: Subtotal | GF8: Max Subtotal | GI8: Count | GJ8: Completed | GK8: % | GL8: Subtotal | GO8: Max Subtotal | GR8: Count | GS8: Completed | GT8: % | GU8: Subtotal | GX8: Max Subtotal | HA8: Count | HB8: Completed | HC8: % | HD8: Subtotal | HG8: Max Subtotal | HJ8: Count | HK8: Completed | HL8: % | HM8: Subtotal | HP8: Max Subtotal | HS8: Count | HT8: Completed | HU8: % | HV8: Subtotal | HY8: Max Subtotal | IB8: Count | IC8: Completed | ID8: % | IE8: Subtotal | IH8: Max Subtotal
K9: =COUNTA(L11:L79) -> 7 | L9: =COUNTIF(M11:M79,">" & 0) -> 0 | M9: =ROUND(L9/K9,2)*100 -> 0 | N9: =SUM(N12:N79) -> 0 | Q9: =SUM(Q12:Q79) -> 0 | T9: =COUNTA(U11:U79) -> 13 | U9: =COUNTIF(V11:V79,">" & 0) -> 0 | V9: =ROUND(U9/T9,2)*100 -> 0 | W9: =SUM(W11:W79) -> 0 | Z9: =SUM(Z11:Z79) -> 13 | AC9: =COUNTA(AD11:AD79) -> 50 | AD9: =COUNTIF(AE11:AE79,">" & 0) -> 0 | AE9: =ROUND(AD9/AC9,2)*100 -> 0 | AF9: =SUM(AF11:AF79) -> 0 | AI9: =SUM(AI11:AI79) -> 95 | AL9: =COUNTA(AM11:AM79) -> 5 | AM9: =COUNTIF(AN11:AN79,">" & 0) -> 0 | AN9: =ROUND(AM9/AL9,2)*100 -> 0 | AO9: =SUM(AO11:AO79) -> 0 | AR9: =SUM(AR11:AR79) -> 5 | AU9: =COUNTA(AV11:AV79) -> 9 | AV9: =COUNTIF(AW11:AW79,">" & 0) -> 0 | AW9: =ROUND(AV9/AU9,2)*100 -> 0 | AX9: =SUM(AX11:AX79) -> 0 | BA9: =SUM(BA11:BA79) -> 9 | BD9: =COUNTA(BE11:BE79) -> 12 | BE9: =COUNTIF(BF11:BF79,">" & 0) -> 0 | BF9: =ROUND(BE9/BD9,2)*100 -> 0 | BG9: =SUM(BG11:BG79) -> 0 | BJ9: =SUM(BJ11:BJ79) -> 22 | BM9: =COUNTA(BN11:BN79) -> 7 | BN9: =COUNTIF(BO11:BO79,">" & 0) -> 0 | BO9: =ROUND(BN9/BM9,2)*100 -> 0 | BP9: =SUM(BP11:BP79) -> 0 | BS9: =SUM(BS11:BS79) -> 7 | BV9: =COUNTA(BW11:BW79) -> 8 | BW9: =COUNTIF(BX11:BX79,">" & 0) -> 0 | BX9: =ROUND(BW9/BV9,2)*100 -> 0 | BY9: =SUM(BY11:BY79) -> 0 | CB9: =SUM(CB11:CB79) -> 8 | CE9: =COUNTA(CF11:CF79) -> 18 | CF9: =COUNTIF(CG11:CG79,">" & 0) -> 0 | CG9: =ROUND(CF9/CE9,2)*100 -> 0 | CH9: =SUM(CH11:CH79) -> 0 | CK9: =SUM(CK11:CK79) -> 16 | CN9: =COUNTA(CO11:CO79) -> 26 | CO9: =COUNTIF(CP11:CP79,">" & 0) -> 0 | CP9: =ROUND(CO9/CN9,2)*100 -> 0 | CQ9: =SUM(CQ11:CQ79) -> 0 | CT9: =SUM(CT11:CT79) -> 27 | CW9: =COUNTA(CX11:CX79) -> 17 | CX9: =COUNTIF(CY11:CY79,">" & 0) -> 0 | CY9: =ROUND(CX9/CW9,2)*100 -> 0 | CZ9: =SUM(CZ11:CZ79) -> 0 | DC9: =SUM(DC11:DC79) -> 17 | DF9: =COUNTA(DG11:DG79) -> 11 | DG9: =COUNTIF(DH11:DH79,">" & 0) -> 0 | DH9: =ROUND(DG9/DF9,2)*100 -> 0 | DI9: =SUM(DI11:DI79) -> 0 | DL9: =SUM(DL11:DL79) -> 11 | DO9: =COUNTA(DP11:DP79) -> 11 | DP9: =COUNTIF(DQ11:DQ79,">" & 0) -> 0 | DQ9: =ROUND(DP9/DO9,2)*100 -> 0 | DR9: =SUM(DR11:DR79) -> 0 | DU9: =SUM(DU11:DU79) -> 13 | DX9: =COUNTA(DY11:DY79) -> 15 | DY9: =COUNTIF(DZ11:DZ79,">" & 0) -> 0 | DZ9: =ROUND(DY9/DX9,2)*100 -> 0 | EA9: =SUM(EA11:EA79) -> 0 | ED9: =SUM(ED11:ED79) -> 12 | EG9: =COUNTA(EH11:EH79) -> 14 | EH9: =COUNTIF(EI11:EI79,">" & 0) -> 0 | EI9: =ROUND(EH9/EG9,2)*100 -> 0 | EJ9: =SUM(EJ11:EJ79) -> 0 | EM9: =SUM(EM11:EM79) -> 13 | EP9: =COUNTA(EQ11:EQ79) -> 9 | EQ9: =COUNTIF(ER11:ER79,">" & 0) -> 0 | ER9: =ROUND(EQ9/EP9,2)*100 -> 0 | ES9: =SUM(ES11:ES79) -> 0 | EV9: =SUM(EV11:EV79) -> 8 | EY9: =COUNTA(EZ11:EZ79) -> 8 | EZ9: =COUNTIF(FA11:FA79,">" & 0) -> 0 | FA9: =ROUND(EZ9/EY9,2)*100 -> 0 | FB9: =SUM(FB11:FB79) -> 0 | FE9: =SUM(FE11:FE79) -> 7 | FH9: =COUNTA(FI11:FI79) -> 8 | FI9: =COUNTIF(FJ11:FJ79,">" & 0) -> 0 | FJ9: =ROUND(FI9/FH9,2)*100 -> 0 | FK9: =SUM(FK11:FK79) -> 0 | FN9: =SUM(FN11:FN79) -> 7 | FQ9: =COUNTA(FR11:FR79) -> 6 | FR9: =COUNTIF(FS11:FS79,">" & 0) -> 0 | FS9: =ROUND(FR9/FQ9,2)*100 -> 0 | FT9: =SUM(FT11:FT79) -> 0 | FW9: =SUM(FW11:FW79) -> 5 | FZ9: =COUNTA(GA11:GA79) -> 5 | GA9: =COUNTIF(GB11:GB79,">" & 0) -> 0 | GB9: =ROUND(GA9/FZ9,2)*100 -> 0 | GC9: =SUM(GC11:GC79) -> 0 | GF9: =SUM(GF11:GF79) -> 4 | GI9: =COUNTA(GJ11:GJ79) -> 17 | GJ9: =COUNTIF(GK11:GK79,">" & 0) -> 0 | GK9: =ROUND(GJ9/GI9,2)*100 -> 0 | GL9: =SUM(GL11:GL79) -> 0 | GO9: =SUM(GO11:GO79) -> 15 | GR9: =COUNTA(GS11:GS79) -> 24 | GS9: =COUNTIF(GT11:GT79,">" & 0) -> 0 | GT9: =ROUND(GS9/GR9,2)*100 -> 0 | GU9: =SUM(GU11:GU79) -> 0 | GX9: =SUM(GX11:GX79) -> 24 | HA9: =COUNTA(HB11:HB78) -> 40 | HB9: =COUNTIF(HC11:HC79,">" & 0) -> 0 | HC9: =ROUND(HB9/HA9,2)*100 -> 0 | HD9: =SUM(HD11:HD78) -> 0 | HG9: =SUM(HG11:HG78) -> 40 | HJ9: =COUNTA(HK11:HK79) -> 17 | HK9: =COUNTIF(HL11:HL79,">" & 0) -> 0 | HL9: =ROUND(HK9/HJ9,2)*100 -> 0 | HM9: =SUM(HM11:HM79) -> 0 | HP9: =SUM(HP11:HP79) -> 17 | HS9: =COUNTA(HT11:HT79) -> 18 | HT9: =COUNTIF(HU11:HU79,">" & 0) -> 0 | HU9: =ROUND(HT9/HS9,2)*100 -> 0 | HV9: =SUM(HV11:HV79) -> 0 | HY9: =SUM(HY11:HY79) -> 18 | IB9: =COUNTA(IC11:IC79) -> 5 | IC9: =COUNTIF(ID11:ID79,">" & 0) -> 0 | ID9: =ROUND(IC9/IB9,2)*100 -> 0 | IE9: =SUM(IE11:IE79) -> 0 | IH9: =SUM(IH11:IH79) -> 5
J10: Cumulative Progress | L10: Question | M10: Response | N10: Score | S10: Cumulative Progress | U10: Question | V10: Response | W10: Score | X10: Type | Y10: Max Response | Z10: Max Score | AB10: Cumulative Progress | AD10: Question | AE10: Response | AF10: Score | AG10: Type | AH10: Max Response | AI10: Max Score | AK10: Cumulative Progress | AM10: Question | AN10: Response | AO10: Score | AP10: Type | AQ10: Max Response | AR10: Max Score | AT10: Cumulative Progress | AV10: Question | AW10: Response | AX10: Score | AY10: Type | AZ10: Max Response | BA10: Max Score | BC10: Cumulative Progress | BE10: Question | BF10: Response | BG10: Score | BH10: Type | BI10: Max Response | BJ10: Max Score | BL10: Cumulative Progress | BN10: Question | BO10: Response | BP10: Score | BQ10: Type | BR10: Max Response | BS10: Max Score | BU10: Cumulative Progress | BW10: Question | BX10: Response | BY10: Score | BZ10: Type | CA10: Max Response | CB10: Max Score | CD10: Cumulative Progress | CF10: Question | CG10: Response | CH10: Score | CI10: Type | CJ10: Max Response | CK10: Max Score | CM10: Cumulative Progress | CO10: Question | CP10: Response | CQ10: Score | CR10: Type | CS10: Max Response | CT10: Max Score | CV10: Cumulative Progress | CX10: Question | CY10: Response | CZ10: Score | DA10: Type | DB10: Max Response | DC10: Max Score | DE10: Cumulative Progress | DG10: Question | DH10: Response | DI10: Score | DJ10: Type | DK10: Max Response | DL10: Max Score | DN10: Cumulative Progress | DP10: Question | DQ10: Response | DR10: Score | DS10: Type | DT10: Max Response | DU10: Max Score | DW10: Cumulative Progress | DY10: Question | DZ10: Response | EA10: Score | EB10: Type | EC10: Max Response | ED10: Max Score | EF10: Cumulative Progress | EH10: Question | EI10: Response | EJ10: Score | EK10: Type | EL10: Max Response | EM10: Max Score | EO10: Cumulative Progress | EQ10: Question | ER10: Response | ES10: Score | ET10: Type | EU10: Max Response | EV10: Max Score | EX10: Cumulative Progress | EZ10: Question | FA10: Response | FB10: Score | FC10: Type | FD10: Max Response | FE10: Max Score | FG10: Cumulative Progress | FI10: Question | FJ10: Response | FK10: Score | FL10: Type | FM10: Max Response | FN10: Max Score | FP10: Cumulative Progress | FR10: Question | FS10: Response | FT10: Score | FU10: Type | FV10: Max Response | FW10: Max Score | FY10: Cumulative Progress | GA10: Question | GB10: Response | GC10: Score | GD10: Type | GE10: Max Response | GF10: Max Score | GH10: Cumulative Progress | GJ10: Question | GK10: Response | GL10: Score | GM10: Type | GN10: Max Response | GO10: Max Score | GQ10: Cumulative Progress | GS10: Question | GT10: Response | GU10: Score | GV10: Type | GW10: Max Response | GX10: Max Score | GZ10: Cumulative Progress | HB10: Question | HC10: Response | HD10: Score | HE10: Type | HF10: Max Response | HG10: Max Score | HI10: Cumulative Progress | HK10: Question | HL10: Response | HM10: Score | HN10: Type | HO10: Max Response | HP10: Max Score | HR10: Cumulative Progress | HT10: Question | HU10: Response | HV10: Score | HW10: Type | HX10: Max Response | HY10: Max Score | IA10: Cumulative Progress | IC10: Question | ID10: Response | IE10: Score | IF10: Type | IG10: Max Response | IH10: Max Score
B11: 2 | C11: Resilience Management Profile | H11: =Z3/Y3 -> 0 | J11: 1 | K11: =J11/$IF$3 -> 0.002631578947 | L11: ='1.1'!B7 -> 1.1.1 | M11: ='1.1'!C7 -> 0 | N11: x | S11: =MAX(J12:J79)+1 -> 8 | T11: =S11/$IF$3 -> 0.02105263158 | U11: ='2.1.a'!B7 -> 2.1.1 | V11: ='2.1.a'!C7 -> 0 | W11: =IF(V11=1,1,0) -> 0 | X11: YN | Z11: 1 | AB11: =MAX(S11:S79)+1 -> 21 | AC11: =AB11/$IF$3 -> 0.05526315789 | AD11: ='2.2.a'!B7 -> 2.2.1 | AE11: ='2.2.a'!C7 -> 0 | AF11: x | AG11: YN | AK11: =MAX(AB11:AB79)+1 -> 71 | AL11: =AK11/$IF$3 -> 0.1868421053 | AM11: ='2.3'!B7 -> 2.3.1 | AN11: ='2.3'!C7 -> 0 | AO11: =IF(AN11=99,0,MIN(AN11,AR11)) -> 0 | AP11: CB3 | AQ11: 23 | AR11: 1 | AT11: =MAX(AK11:AK79)+1 -> 76 | AU11: =AT11/$IF$3 -> 0.2 | AV11: ='2.4'!B7 -> 2.4.1 | AW11: ='2.4'!C7 -> 0 | AX11: =IF(AW11=99,0,MIN(AW11,BA11)) -> 0 | AY11: CB3 | AZ11: 7 | BA11: 1 | BC11: =MAX(AT11:AT79)+1 -> 85 | BD11: =BC11/$IF$3 -> 0.2236842105 | BE11: ='3.1.a'!B7 -> 3.1.1 | BF11: ='3.1.a'!C7 -> 0 | BG11: =IF(BF11=1,1,0) -> 0 | BH11: YN | BJ11: 1 | BL11: =MAX(BC11:BC79)+1 -> 97 | BM11: =BL11/$IF$3 -> 0.2552631579 | BN11: ='3.2'!B7 -> 3.2.1 | BO11: ='3.2'!C7 -> 0 | BP11: =IF(BO11=1,1,0) -> 0 | BQ11: YN | BS11: 1 | BU11: =MAX(BL11:BL79)+1 -> 104 | BV11: =BU11/$IF$3 -> 0.2736842105 | BW11: ='3.3'!B7 -> 3.3.1 | BX11: ='3.3'!C7 -> 0 | BY11: =IF(BX11=1,1,0) -> 0 | BZ11: YN | CB11: 1 | CD11: =MAX(BU11:BU79)+1 -> 112 | CE11: =CD11/$IF$3 -> 0.2947368421 | CF11: ='3.4.a'!B9 -> 3.4.1 | CG11: ='3.4.a'!C9 -> 0 | CH11: x | CI11: YN | CM11: =MAX(CD11:CD79)+1 -> 130 | CN11: =CM11/$IF$3 -> 0.3421052632 | CO11: ='3.5.a'!B7 -> 3.5.1 | CP11: ='3.5.a'!C7 -> 0 | CQ11: =MAX(0,(1-CP11)/(1-CS11)) -> 0 | CR11: MC | CS11: 3 | CT11: 1 | CV11: =MAX(CM11:CM79)+1 -> 156 | CW11: =CV11/$IF$3 -> 0.4105263158 | CX11: ='3.6.a'!B7 -> 3.6.1 | CY11: ='3.6.a'!C7 -> 0 | CZ11: =IF(CY11=1,1,0) -> 0 | DA11: YN | DC11: 1 | DE11: =MAX(CV11:CV79)+1 -> 173 | DF11: =DE11/$IF$3 -> 0.4552631579 | DG11: ='3.7'!B7 -> 3.7.1 | DH11: ='3.7'!C7 -> 0 | DI11: =IF(DH11=1,1,0) -> 0 | DJ11: YN | DL11: 1 | DN11: =MAX(DE11:DE79)+1 -> 184 | DO11: =DN11/$IF$3 -> 0.4842105263 | DP11: ='4.1'!B7 -> 4.1.1 | DQ11: ='4.1'!C7 -> 0 | DR11: =IF(DQ11=1,1,0) -> 0 | DS11: YN | DU11: 1 | DW11: =MAX(DN11:DN79)+1 -> 195 | DX11: =DW11/$IF$3 -> 0.5131578947 | DY11: ='4.2'!B7 -> 4.2.1 | DZ11: ='4.2'!C7 -> 0 | EA11: x | EB11: YN | EF11: =MAX(DW11:DW79)+1 -> 210 | EG11: =EF11/$IF$3 -> 0.5526315789 | EH11: ='4.3'!B7 -> 4.3.1 | EI11: ='4.3'!C7 -> 0 | EJ11: x | EK11: YN | EO11: =MAX(EF11:EF79)+1 -> 224 | EP11: =EO11/$IF$3 -> 0.5894736842 | EQ11: ='4.4'!B7 -> 4.4.1 | ER11: ='4.4'!C7 -> 0 | ES11: x | ET11: YN | EX11: =MAX(EO11:EO79)+1 -> 233 | EY11: =EX11/$IF$3 -> 0.6131578947 | EZ11: ='4.5'!B7 -> 4.5.1 | FA11: ='4.5'!C7 -> 0 | FB11: x | FC11: YN | FG11: =MAX(EX11:EX79)+1 -> 241 | FH11: =FG11/$IF$3 -> 0.6342105263 | FI11: ='4.6'!B7 -> 4.6.1 | FJ11: ='4.6'!C7 -> 0 | FK11: x | FL11: YN | FP11: =MAX(FG11:FG79)+1 -> 249 | FQ11: =FP11/$IF$3 -> 0.6552631579 | FR11: ='4.7'!B7 -> 4.7.1 | FS11: ='4.7'!C7 -> 0 | FT11: x | FU11: YN | FY11: =MAX(FP11:FP79)+1 -> 255 | FZ11: =FY11/$IF$3 -> 0.6710526316 | GA11: ='4.8'!B7 -> 4.8.1 | GB11: ='4.8'!C7 -> 0 | GC11: x | GD11: YN | GH11: =MAX(FY11:FY79)+1 -> 260 | GI11: =GH11/$IF$3 -> 0.6842105263 | GJ11: ='4.9'!D9 -> 4.9.1.1 | GK11: ='4.9'!C9 -> 0 | GL11: x | GM11: YN | GQ11: =MAX(GH11:GH79)+1 -> 277 | GR11: =GQ11/$IF$3 -> 0.7289473684 | GS11: ='5.1'!B9 -> 5.1.1.1 | GT11: ='5.1'!C9 -> 0 | GU11: =MAX(0,(1-GT11)/(1-GW11)) -> 0 | GV11: MC | GW11: 4 | GX11: 1 | GZ11: =MAX(GQ11:GQ79)+1 -> 301 | HA11: =GZ11/$IF$3 -> 0.7921052632 | HB11: ='5.2.a'!B9 -> 5.2.1.1 | HC11: ='5.2.a'!C9 -> 0 | HD11: =IF(HC11=1,1,0) -> 0 | HE11: YN | HG11: 1 | HI11: =MAX(GZ11:GZ79)+1 -> 341 | HJ11: =HI11/$IF$3 -> 0.8973684211 | HK11: ='5.3'!B9 -> 5.3.1.1 | HL11: ='5.3'!C9 -> 0 | HM11: =IF(HL11=1,1,0) -> 0 | HN11: YN | HP11: 1 | HR11: =MAX(HI11:HI79)+1 -> 358 | HS11: =HR11/$IF$3 -> 0.9421052632 | HT11: ='5.4'!B9 -> 5.4.1.1 | HU11: ='5.4'!C9 -> 0 | HV11: =IF(HU11=1,1,0) -> 0 | HW11: YN | HY11: 1 | IA11: =MAX(HR11:HR79)+1 -> 376 | IB11: =IA11/$IF$3 -> 0.9894736842 | IC11: ='5.5'!B9 -> 5.5.1.1 | ID11: ='5.5'!C9 -> 0 | IE11: =IF(ID11=1,1,0) -> 0 | IF11: YN | IH11: 1
B12: 2.1 | C12: Business Continuity | H12: =W9/Z9 -> 0 | J12: 2 | K12: 0.005263157895 | L12: ='1.1'!B10 -> 1.1.2 | M12: ='1.1'!C10 -> 0 | N12: x | S12: =S11+1 -> 9 | T12: 0.02368421053 | U12: ='2.1.a'!B11 -> 2.1.2 | V12: ='2.1.a'!C11 -> 0 | W12: 0 | X12: YN | Z12: 1 | AB12: =AB11+1 -> 22 | AC12: 0.05789473684 | AD12: ='2.2.a'!B11 -> 2.2.2 | AE12: ='2.2.a'!C11 -> 0 | AF12: =IF(AE12=1,1,0) -> 0 | AG12: YN | AI12: 1 | AK12: =AK11+1 -> 72 | AL12: =AK12/$IF$3 -> 0.1894736842 | AM12: ='2.3'!B35 -> 2.3.2 | AN12: ='2.3'!C35 -> 0 | AO12: =IF(AN12=1,1,0) -> 0 | AP12: YN | AR12: 1 | AT12: =AT11+1 -> 77 | AU12: 0.2026315789 | AV12: ='2.4'!B18 -> 2.4.2 | AW12: ='2.4'!C18 -> 0 | AX12: =IF(AW12=1,1,0) -> 0 | AY12: YN | BA12: 1 | BC12: =BC11+1 -> 86 | BD12: 0.2263157895 | BE12: ='3.1.a'!D11 -> 3.1.1.1 | BF12: ='3.1.a'!C11 -> 0 | BG12: =IF(BF12=1,1,0) -> 0 | BH12: YN | BJ12: 1 | BL12: =BL11+1 -> 98 | BM12: 0.2578947368 | BN12: ='3.2'!B11 -> 3.2.2 | BO12: ='3.2'!C11 -> 0 | BP12: =IF(BO12=99,0,BO12/BR12) -> 0 | BQ12: CB2 | BR12: 3 | BS12: 1 | BU12: =BU11+1 -> 105 | BV12: 0.2763157895 | BW12: ='3.3'!B11 -> 3.3.2 | BX12: ='3.3'!C11 -> 0 | BY12: 0 | BZ12: YN | CB12: 1 | CD12: =CD11+1 -> 113 | CE12: 0.2973684211 | CF12: ='3.4.a'!B13 -> 3.4.2 | CG12: ='3.4.a'!C13 -> 0 | CH12: =IF(OR(CG11=1,CG12=1),1,0) -> 0 | CI12: YN | CK12: 1 | CM12: =CM11+1 -> 131 | CN12: 0.3447368421 | CO12: ='3.5.a'!B12 -> 3.5.2 | CP12: ='3.5.a'!C12 -> 0 | CQ12: x | CR12: YN | CV12: =CV11+1 -> 157 | CW12: 0.4131578947 | CX12: ='3.6.a'!B11 -> 3.6.2 | CY12: ='3.6.a'!C11 -> 0 | CZ12: =IF(CY12=1,1,0) -> 0 | DA12: YN | DC12: 1 | DE12: =DE11+1 -> 174 | DF12: 0.4578947368 | DG12: ='3.7'!B11 -> 3.7.2 | DH12: ='3.7'!C11 -> 0 | DI12: =IF(DH12=99,0,DH12/DK12) -> 0 | DJ12: CB2 | DK12: 6 | DL12: 1 | DN12: =DN11+1 -> 185 | DO12: 0.4868421053 | DP12: ='4.1'!B11 -> 4.1.2 | DQ12: ='4.1'!C11 -> 0 | DR12: =IF(DQ12=1,1,0) -> 0 | DS12: YN | DU12: 1 | DW12: =DW11+1 -> 196 | DX12: 0.5157894737 | DY12: ='4.2'!B11 -> 4.2.2 | DZ12: ='4.2'!C11 -> 0 | EA12: =IF(DZ$11=2,ED12, IF(DZ12=1,1,0)) -> 0 | EB12: YN | EC12: 1 | ED12: 1 | EF12: =EF11+1 -> 211 | EG12: 0.5552631579 | EH12: ='4.3'!B11 -> 4.3.2 | EI12: ='4.3'!C11 -> 0 | EJ12: =IF(EI$11=2,EM12, IF(EI12=1,1,0)) -> 0 | EK12: YN | EM12: 1 | EO12: =EO11+1 -> 225 | EP12: 0.5921052632 | EQ12: ='4.4'!B11 -> 4.4.2 | ER12: ='4.4'!C11 -> 0 | ES12: =IF(ER$11=2,EV12, IF(ER12=1,1,0)) -> 0 | ET12: YN | EV12: 1 | EX12: =EX11+1 -> 234 | EY12: 0.6157894737 | EZ12: ='4.5'!B11 -> 4.5.2 | FA12: ='4.5'!C11 -> 0 | FB12: =IF(FA$11=2,FE12, IF(FA12=99,0,MIN(FA12,FE12))) -> 0 | FC12: CB | FD12: 2 | FE12: 1 | FG12: =FG11+1 -> 242 | FH12: 0.6368421053 | FI12: ='4.6'!B11 -> 4.6.2 | FJ12: ='4.6'!C11 -> 0 | FK12: =IF(FJ$11=2,FN12, IF(FJ12=1,1,0)) -> 0 | FL12: YN | FN12: 1 | FP12: =FP11+1 -> 250 | FQ12: 0.6578947368 | FR12: ='4.7'!B12 -> 4.7.2 | FS12: ='4.7'!C12 -> 0 | FT12: =IF(FS$11=2,FW12, IF(FS12=1,1,0)) -> 0 | FU12: YN | FW12: 1 | FY12: =FY11+1 -> 256 | FZ12: =FY12/$IF$3 -> 0.6736842105 | GA12: ='4.8'!B15 -> 4.8.2 | GB12: ='4.8'!C15 -> 0 | GC12: =IF(GB$11=2,GF12, IF(GB12=1,1,0)) -> 0 | GD12: YN | GF12: 1 | GH12: =GH11+1 -> 261 | GI12: 0.6868421053 | GJ12: ='4.9'!D10 -> 4.9.1.2 | GK12: ='4.9'!C10 -> 0 | GL12: x | GM12: YN | GQ12: =GQ11+1 -> 278 | GR12: 0.7315789474 | GS12: ='5.1'!B15 -> 5.1.1.2 | GT12: ='5.1'!C15 -> 0 | GU12: =MAX(0,(1-GT12)/(1-GW12)) -> 0 | GV12: MC | GW12: 4 | GX12: 1 | GZ12: =GZ11+1 -> 302 | HA12: 0.7947368421 | HB12: ='5.2.a'!D13 -> 5.2.1.1.1 | HC12: ='5.2.a'!C13 -> 0 | HD12: 0 | HE12: YN | HG12: 1 | HI12: =HI11+1 -> 342 | HJ12: 0.9 | HK12: ='5.3'!B13 -> 5.3.1.2 | HL12: ='5.3'!C13 -> 0 | HM12: 0 | HN12: YN | HP12: 1 | HR12: =HR11+1 -> 359 | HS12: 0.9447368421 | HT12: ='5.4'!B13 -> 5.4.1.2 | HU12: ='5.4'!C13 -> 0 | HV12: 0 | HW12: YN | HY12: 1 | IA12: =IA11+1 -> 377 | IB12: =IA12/$IF$3 -> 0.9921052632 | IC12: ='5.5'!B13 -> 5.5.1.2 | ID12: ='5.5'!C13 -> 0 | IE12: =IF(ID12=1,1,0) -> 0 | IF12: YN | IH12: 1
B13: 2.2 | C13: Emergency Management/EOP | H13: =AF9/AI9 -> 0 | J13: 3 | K13: 0.007894736842 | L13: ='1.1'!B23 -> 1.1.3 | M13: ='1.1'!C23 -> 0 | N13: x | S13: =S12+1 -> 10 | T13: 0.02631578947 | U13: ='2.1.a'!D15 -> 2.1.2.1 | V13: ='2.1.a'!C15 -> 0 | W13: 0 | X13: YN | Z13: 1 | AB13: =AB12+1 -> 23 | AC13: 0.06052631579 | AD13: ='2.2.a'!B15 -> 2.2.3 | AE13: ='2.2.a'!C15 -> 0 | AF13: 0 | AG13: YN | AI13: 1 | AK13: =AK12+1 -> 73 | AL13: =AK13/$IF$3 -> 0.1921052632 | AM13: ='2.3'!B41 -> 2.3.2 | AN13: ='2.3'!C41 -> 0 | AO13: =IF(AN13=1,1,0) -> 0 | AP13: YN | AR13: 1 | AT13: =AT12+1 -> 78 | AU13: 0.2052631579 | AV13: ='2.4'!B22 -> 2.4.3 | AW13: ='2.4'!C22 -> 0 | AX13: =IF(AW13=1,1,0) -> 0 | AY13: YN | BA13: 1 | BC13: =BC12+1 -> 87 | BD13: 0.2289473684 | BE13: ='3.1.a'!B15 -> 3.1.2 | BF13: ='3.1.a'!C15 -> 0 | BG13: =MAX(0,(1-BF13)/(1-BI13)) -> 0 | BH13: MC | BI13: 4 | BJ13: 1 | BL13: =BL12+1 -> 99 | BM13: 0.2605263158 | BN13: ='3.2'!B18 -> 3.2.3 | BO13: ='3.2'!C18 -> 0 | BP13: =IF(BO13=99,0,BO13/BR13) -> 0 | BQ13: CB2 | BR13: 2 | BS13: 1 | BU13: =BU12+1 -> 106 | BV13: 0.2789473684 | BW13: ='3.3'!B15 -> 3.3.3 | BX13: ='3.3'!C15 -> 0 | BY13: 0 | BZ13: YN | CB13: 1 | CD13: 114 | CE13: 0.3 | CF13: ='3.4.b'!D7 -> 3.4.1.1 | CG13: ='3.4.b'!C7 -> 0 | CH13: 0 | CI13: MC | CJ13: 3 | CM13: =CM12+1 -> 132 | CN13: 0.3473684211 | CO13: ='3.5.a'!D16 -> 3.5.2.1 | CP13: ='3.5.a'!C16 -> 0 | CQ13: =IF(CP12=1,1, IF(CP13=1,1,0)) -> 0 | CR13: MC | CS13: 2 | CT13: 1 | CV13: =CV12+1 -> 158 | CW13: 0.4157894737 | CX13: ='3.6.a'!B15 -> 3.6.3 | CY13: ='3.6.a'!C15 -> 0 | CZ13: =IF(CY13=1,1,0) -> 0 | DA13: YN | DC13: 1 | DE13: =DE12+1 -> 175 | DF13: 0.4605263158 | DG13: ='3.7'!D21 -> 3.7.2.7 | DH13: ='3.7'!C21 -> 0 | DI13: =IF(DH13=1,1,0) -> 0 | DJ13: YN | DL13: 1 | DN13: =DN12+1 -> 186 | DO13: 0.4894736842 | DP13: ='4.1'!B15 -> 4.1.3 | DQ13: ='4.1'!C15 -> 0 | DR13: =IF(DQ13=99,0,DQ13) -> 0 | DS13: CB1 | DT13: 3 | DU13: 3 | DW13: =DW12+1 -> 197 | DX13: 0.5184210526 | DY13: ='4.2'!D15 -> 4.2.2.1 | DZ13: ='4.2'!C15 -> 0 | EA13: =IF(DZ$11=2,ED13, IF(DZ13=1,1,0)) -> 0 | EB13: YN | EC13: 1 | ED13: 1 | EF13: =EF12+1 -> 212 | EG13: 0.5578947368 | EH13: ='4.3'!B15 -> 4.3.3 | EI13: ='4.3'!C15 -> 0 | EJ13: 0 | EK13: YN | EM13: 1 | EO13: =EO12+1 -> 226 | EP13: 0.5947368421 | EQ13: ='4.4'!B15 -> 4.4.3 | ER13: ='4.4'!C15 -> 0 | ES13: 0 | ET13: YN | EV13: 1 | EX13: =EX12+1 -> 235 | EY13: 0.6184210526 | EZ13: ='4.5'!B17 -> 4.5.3 | FA13: ='4.5'!C17 -> 0 | FB13: =IF(FA$11=2,FE13, IF(FA13=1,1,0)) -> 0 | FC13: YN | FE13: 1 | FG13: =FG12+1 -> 243 | FH13: 0.6394736842 | FI13: ='4.6'!B15 -> 4.6.3 | FJ13: ='4.6'!C15 -> 0 | FK13: =IF(FJ$11=2,FN13, IF(FJ13=1,1,0)) -> 0 | FL13: YN | FN13: 1 | FP13: =FP12+1 -> 251 | FQ13: 0.6605263158 | FR13: ='4.7'!B16 -> 4.7.3 | FS13: ='4.7'!C16 -> 0 | FT13: =IF(FS$11=2,FW13, IF(FS13=1,1,0)) -> 0 | FU13: YN | FW13: 1 | FY13: =FY12+1 -> 257 | FZ13: =FY13/$IF$3 -> 0.6763157895 | GA13: ='4.8'!B19 -> 4.8.3 | GB13: ='4.8'!C19 -> 0 | GC13: =IF(GB$11=2,GF13, IF(GB13=1,1,0)) -> 0 | GD13: YN | GF13: 1 | GH13: =GH12+1 -> 262 | GI13: 0.6894736842 | GJ13: ='4.9'!B15 -> 4.9.2 | GK13: ='4.9'!C15 -> 0 | GL13: =IF(GK$11=2,GO13, MAX(0,(1-GK13)/(1-GN13))) -> 0 | GM13: MC | GN13: 5 | GO13: 1 | GQ13: =GQ12+1 -> 279 | GR13: 0.7342105263 | GS13: ='5.1'!B21 -> 5.1.1.3 | GT13: ='5.1'!C21 -> 0 | GU13: =IF(GT13=1,1,0) -> 0 | GV13: YN | GX13: 1 | GZ13: =GZ12+1 -> 303 | HA13: 0.7973684211 | HB13: ='5.2.a'!B17 -> 5.2.1.2 | HC13: ='5.2.a'!C17 -> 0 | HD13: 0 | HE13: YN | HG13: 1 | HI13: =HI12+1 -> 343 | HJ13: 0.9026315789 | HK13: ='5.3'!B17 -> 5.3.1.4 | HL13: ='5.3'!C17 -> 0 | HM13: 0 | HN13: YN | HP13: 1 | HR13: =HR12+1 -> 360 | HS13: 0.9473684211 | HT13: ='5.4'!B17 -> 5.4.1.3 | HU13: ='5.4'!C17 -> 0 | HV13: 0 | HW13: YN | HY13: 1 | IA13: =IA12+1 -> 378 | IB13: =IA13/$IF$3 -> 0.9947368421 | IC13: ='5.5'!B19 -> 5.5.2.1 | ID13: ='5.5'!C19 -> 0 | IE13: =IF(ID13=1,1,0) -> 0 | IF13: YN | IH13: 1
B14: 2.3 | C14: Information Sharing | H14: =AO9/AR9 -> 0 | J14: 4 | K14: 0.01052631579 | L14: ='1.1'!B26 -> 1.1.4 | M14: ='1.1'!C26 -> 0 | N14: x | S14: 11 | T14: 0.02894736842 | U14: ='2.1.a'!D19 -> 2.1.2.2 | V14: ='2.1.a'!C19 -> 0 | W14: 0 | X14: YN | Z14: 1 | AB14: 24 | AC14: 0.06315789474 | AD14: ='2.2.a'!D19 -> 2.2.3.1 | AE14: ='2.2.a'!C19 -> 0 | AF14: 0 | AG14: YN | AI14: 1 | AK14: 74 | AL14: =AK14/$IF$3 -> 0.1947368421 | AM14: ='2.3'!B47 -> 2.3.2 | AN14: ='2.3'!C47 -> 0 | AO14: =IF(AN14=1,1,0) -> 0 | AP14: YN | AR14: 1 | AT14: 79 | AU14: 0.2078947368 | AV14: ='2.4'!B26 -> 2.4.4 | AW14: ='2.4'!C26 -> 0 | AX14: =IF(AW14=1,1,0) -> 0 | AY14: YN | BA14: 1 | BC14: 88 | BD14: 0.2315789474 | BE14: ='3.1.a'!D21 -> 3.1.2.1 | BF14: ='3.1.a'!C21 -> 0 | BG14: =IF(BF14=1,1,0) -> 0 | BH14: YN | BJ14: 1 | BL14: 100 | BM14: 0.2631578947 | BN14: ='3.2'!B24 -> 3.2.4 | BO14: ='3.2'!C24 -> 0 | BP14: =IF(BO14=1,1,0) -> 0 | BQ14: YN | BS14: 1 | BU14: 107 | BV14: 0.2815789474 | BW14: ='3.3'!B19 -> 3.3.4 | BX14: ='3.3'!C19 -> 0 | BY14: 0 | BZ14: YN | CB14: 1 | CD14: 115 | CE14: 0.3026315789 | CF14: ='3.4.b'!D12 -> 3.4.1.2 | CG14: ='3.4.b'!C12 -> 0 | CH14: =IF(CG14=1,1,0) -> 0 | CI14: YN | CK14: 1 | CM14: 133 | CN14: 0.35 | CO14: ='3.5.a'!B20 -> 3.5.3 | CP14: ='3.5.a'!C20 -> 0 | CQ14: =IF(CP14=1,1,0) -> 0 | CR14: YN | CT14: 1 | CV14: 159 | CW14: 0.4184210526 | CX14: ='3.6.a'!B19 -> 3.6.4 | CY14: ='3.6.a'!C19 -> 0 | CZ14: =IF(CY14=1,1,0) -> 0 | DA14: YN | DC14: 1 | DE14: 176 | DF14: 0.4631578947 | DG14: ='3.7'!D25 -> 3.7.2.8 | DH14: ='3.7'!C25 -> 0 | DI14: 0 | DJ14: YN | DL14: 1 | DN14: 187 | DO14: 0.4921052632 | DP14: ='4.1'!B22 -> 4.1.4 | DQ14: ='4.1'!C22 -> 0 | DR14: =IF(DQ14=1,1,0) -> 0 | DS14: YN | DU14: 1 | DW14: 198 | DX14: 0.5210526316 | DY14: ='4.2'!B19 -> 4.2.3 | DZ14: ='4.2'!C19 -> 0 | EB14: MC | EC14: 2 | EF14: 213 | EG14: 0.5605263158 | EH14: ='4.3'!B19 -> 4.3.4 | EI14: ='4.3'!C19 -> 0 | EJ14: 0 | EK14: YN | EM14: 1 | EO14: 227 | EP14: 0.5973684211 | EQ14: ='4.4'!B19 -> 4.4.4 | ER14: ='4.4'!C19 -> 0 | ES14: 0 | ET14: YN | EV14: 1 | EX14: 236 | EY14: 0.6210526316 | EZ14: ='4.5'!B21 -> 4.5.4 | FA14: ='4.5'!C21 -> 0 | FB14: =IF(FA$11=2,FE14, IF(FA14=1,1,0)) -> 0 | FC14: YN | FE14: 1 | FG14: 244 | FH14: 0.6421052632 | FI14: ='4.6'!B19 -> 4.6.4 | FJ14: ='4.6'!C19 -> 0 | FK14: =IF(FJ$11=2,FN14, IF(FJ14=1,1,0)) -> 0 | FL14: YN | FN14: 1 | FP14: 252 | FQ14: 0.6631578947 | FR14: ='4.7'!B20 -> 4.7.4 | FS14: ='4.7'!C20 -> 0 | FT14: =IF(FS$11=2,FW14, IF(FS14=99,0,MIN(FS14,FW14))) -> 0 | FU14: CB | FV14: 3 | FW14: 1 | FY14: 258 | FZ14: =FY14/$IF$3 -> 0.6789473684 | GA14: ='4.8'!B23 -> 4.8.4 | GB14: ='4.8'!C23 -> 0 | GC14: =IF(GB$11=2,GF14, MAX(0,(1-GB14)/(1-GE14))) -> 0 | GD14: MC | GE14: 5 | GF14: 1 | GH14: 263 | GI14: 0.6921052632 | GJ14: ='4.9'!B22 -> 4.9.3 | GK14: ='4.9'!C22 -> 0 | GL14: =IF(GK$11=2,GO14, MAX(0,(1-GK14)/(1-GN14))) -> 0 | GM14: MC | GN14: 5 | GO14: 1 | GQ14: 280 | GR14: 0.7368421053 | GS14: ='5.1'!B25 -> 5.1.1.4 | GT14: ='5.1'!C25 -> 0 | GU14: 0 | GV14: YN | GX14: 1 | GZ14: 304 | HA14: 0.8 | HB14: ='5.2.a'!B21 -> 5.2.1.3 | HC14: ='5.2.a'!C21 -> 0 | HD14: 0 | HE14: YN | HG14: 1 | HI14: 344 | HJ14: 0.9052631579 | HK14: ='5.3'!B21 -> 5.3.1.5 | HL14: ='5.3'!C21 -> 0 | HM14: 0 | HN14: YN | HP14: 1 | HR14: 361 | HS14: 0.95 | HT14: ='5.4'!B21 -> 5.4.1.4 | HU14: ='5.4'!C21 -> 0 | HV14: 0 | HW14: YN | HY14: 1 | IA14: 379 | IB14: =IA14/$IF$3 -> 0.9973684211 | IC14: ='5.5'!B23 -> 5.5.2.2 | ID14: ='5.5'!C23 -> 0 | IE14: =IF(ID14=1,1,0) -> 0 | IF14: YN | IH14: 1
B15: 2.4 | C15: Climate Change | H15: =AX9/BA9 -> 0 | J15: 5 | K15: 0.01315789474 | L15: ='1.1'!B30 -> 1.1.5 | M15: ='1.1'!C30 -> 0 | N15: x | S15: 12 | T15: 0.03157894737 | U15: ='2.1.a'!D23 -> 2.1.2.3 | V15: ='2.1.a'!C23 -> 0 | W15: 0 | X15: YN | Z15: 1 | AB15: 25 | AC15: 0.06578947368 | AD15: ='2.2.a'!B23 -> 2.2.4 | AE15: ='2.2.a'!C23 -> 0 | AF15: 0 | AG15: YN | AI15: 1 | AK15: 75 | AL15: =AK15/$IF$3 -> 0.1973684211 | AM15: ='2.3'!B53 -> 2.3.3 | AN15: ='2.3'!C53 -> 0 | AO15: =IF(AN15=1,1,0) -> 0 | AP15: YN | AR15: 1 | AT15: 80 | AU15: 0.2105263158 | AV15: ='2.4'!D30 -> 2.4.4.1 | AW15: ='2.4'!C30 -> 0 | AX15: =IF(AW15=99,0,MIN(AW15,BA15)) -> 0 | AY15: CB3 | AZ15: 7 | BA15: 1 | BC15: 89 | BD15: 0.2342105263 | BE15: ='3.1.a'!D25 -> 3.1.2.2 | BF15: ='3.1.a'!C25 -> 0 | BG15: =MAX(0,(1-BF15)/(1-BI15)) -> 0 | BH15: MC | BI15: 4 | BJ15: 1 | BL15: 101 | BM15: 0.2657894737 | BN15: ='3.2'!B28 -> 3.2.5 | BO15: ='3.2'!C28 -> 0 | BP15: =IF(BO15=1,1,0) -> 0 | BQ15: YN | BS15: 1 | BU15: 108 | BV15: 0.2842105263 | BW15: ='3.3'!B23 -> 3.3.5 | BX15: ='3.3'!C23 -> 0 | BY15: 0 | BZ15: YN | CB15: 1 | CD15: 116 | CE15: 0.3052631579 | CF15: ='3.4.b'!D16 -> 3.4.1.3 | CG15: ='3.4.b'!C16 -> 0 | CH15: =IF(CG15=1,1,0) -> 0 | CI15: YN | CK15: 1 | CM15: 134 | CN15: 0.3526315789 | CO15: ='3.5.a'!B24 -> 3.5.4 | CP15: ='3.5.a'!C24 -> 0 | CQ15: 0 | CR15: YN | CT15: 1 | CV15: 160 | CW15: 0.4210526316 | CX15: ='3.6.a'!B23 -> 3.6.5 | CY15: ='3.6.a'!C23 -> 0 | CZ15: =IF(CY15=1,1,0) -> 0 | DA15: YN | DC15: 1 | DE15: 177 | DF15: 0.4657894737 | DG15: ='3.7'!D29 -> 3.7.2.9 | DH15: ='3.7'!C29 -> 0 | DI15: 0 | DJ15: YN | DL15: 1 | DN15: 188 | DO15: 0.4947368421 | DP15: ='4.1'!B26 -> 4.1.5 | DQ15: ='4.1'!C26 -> 0 | DR15: 0 | DS15: YN | DU15: 1 | DW15: 199 | DX15: 0.5236842105 | DY15: ='4.2'!B23 -> 4.2.4 | DZ15: ='4.2'!C23 -> 0 | EA15: =IF(DZ$11=2,ED15, IF(DZ15=1,1,0)) -> 0 | EB15: YN | EC15: 1 | ED15: 1 | EF15: 214 | EG15: 0.5631578947 | EH15: ='4.3'!B23 -> 4.3.5 | EI15: ='4.3'!C23 -> 0 | EJ15: 0 | EK15: YN | EM15: 1 | EO15: 228 | EP15: 0.6 | EQ15: ='4.4'!B23 -> 4.4.5 | ER15: ='4.4'!C23 -> 0 | ES15: 0 | ET15: YN | EV15: 1 | EX15: 237 | EY15: 0.6236842105 | EZ15: ='4.5'!B25 -> 4.5.5 | FA15: ='4.5'!C25 -> 0 | FB15: =IF(FA$11=2,FE15, IF(FA15=1,1,0)) -> 0 | FC15: YN | FE15: 1 | FG15: 245 | FH15: 0.6447368421 | FI15: ='4.6'!B23 -> 4.6.5 | FJ15: ='4.6'!C23 -> 0 | FK15: =IF(FJ$11=2,FN15, IF(FJ15=1,1,0)) -> 0 | FL15: YN | FN15: 1 | FP15: 253 | FQ15: 0.6657894737 | FR15: ='4.7'!B27 -> 4.7.5 | FS15: ='4.7'!C27 -> 0 | FT15: =IF(FS$11=2,FW15, MAX(0,(1-FS15)/(1-FV15))) -> 0 | FU15: MC | FV15: 5 | FW15: 1 | FY15: 259 | FZ15: =FY15/$IF$3 -> 0.6815789474 | GA15: ='4.8'!B30 -> 4.8.5 | GB15: ='4.8'!C30 -> 0 | GC15: =IF(GB$11=2,GF15, MAX(0,(1-GB15)/(1-GE15))) -> 0 | GD15: MC | GE15: 5 | GF15: 1 | GH15: 264 | GI15: 0.6947368421 | GJ15: ='4.9'!B29 -> 4.9.4 | GK15: ='4.9'!C29 -> 0 | GL15: =IF(GK$12=2,GO15, MAX(0,(1-GK15)/(1-GN15))) -> 0 | GM15: MC | GN15: 5 | GO15: 1 | GQ15: 281 | GR15: 0.7394736842 | GS15: ='5.1'!B29 -> 5.1.1.5 | GT15: ='5.1'!C29 -> 0 | GU15: 0 | GV15: YN | GX15: 1 | GZ15: 305 | HA15: 0.8026315789 | HB15: ='5.2.a'!B25 -> 5.2.1.4 | HC15: ='5.2.a'!C25 -> 0 | HD15: 0 | HE15: YN | HG15: 1 | HI15: 345 | HJ15: 0.9078947368 | HK15: ='5.3'!B27 -> 5.3.2.1 | HL15: ='5.3'!C27 -> 0 | HM15: 0 | HN15: YN | HP15: 1 | HR15: 362 | HS15: 0.9526315789 | HT15: ='5.4'!B27 -> 5.4.2.1 | HU15: ='5.4'!C27 -> 0 | HV15: 0 | HW15: YN | HY15: 1 | IA15: 380 | IB15: =IA15/$IF$3 -> 1 | IC15: ='5.5'!B29 -> 5.5.3.2 | ID15: ='5.5'!C29 -> 0 | IE15: =IF(ID15=1,1,0) -> 0 | IF15: YN | IH15: 1
J16: 6 | K16: 0.01578947368 | L16: ='1.1'!B34 -> 1.1.6 | M16: ='1.1'!C34 -> 0 | N16: x | S16: 13 | T16: 0.03421052632 | U16: ='2.1.a'!D27 -> 2.1.2.4 | V16: ='2.1.a'!C27 -> 0 | W16: 0 | X16: YN | Z16: 1 | AB16: 26 | AC16: 0.06842105263 | AD16: ='2.2.a'!D27 -> 2.2.4.1 | AE16: ='2.2.a'!C27 -> 0 | AF16: 0 | AG16: YN | AI16: 1 | AT16: 81 | AU16: 0.2131578947 | AV16: ='2.4'!B41 -> 2.4.5 | AW16: ='2.4'!C41 -> 0 | AX16: =IF(AW16=1,1,0) -> 0 | AY16: YN | BA16: 1 | BC16: 90 | BD16: 0.2368421053 | BE16: ='3.1.a'!D31 -> 3.1.2.3 | BF16: ='3.1.a'!C31 -> 0 | BG16: =MAX(0,(1-BF16)/(1-BI16)) -> 0 | BH16: MC | BI16: 3 | BJ16: 1 | BL16: 102 | BM16: 0.2684210526 | BN16: ='3.2'!B32 -> 3.2.6 | BO16: ='3.2'!C32 -> 0 | BP16: =IF(BO16=1,1,0) -> 0 | BQ16: YN | BS16: 1 | BU16: 109 | BV16: 0.2868421053 | BW16: ='3.3'!B27 -> 3.3.6 | BX16: ='3.3'!C27 -> 0 | BY16: 0 | BZ16: YN | CB16: 1 | CD16: 117 | CE16: 0.3078947368 | CF16: ='3.4.b'!D20 -> 3.4.1.4 | CG16: ='3.4.b'!C20 -> 0 | CH16: =IF(CG16=1,1,0) -> 0 | CI16: YN | CK16: 1 | CM16: 135 | CN16: 0.3552631579 | CO16: ='3.5.a'!B28 -> 3.5.5 | CP16: ='3.5.a'!C28 -> 0 | CQ16: 0 | CR16: YN | CT16: 1 | CV16: 161 | CW16: 0.4236842105 | CX16: ='3.6.b'!B7 -> 3.6.6 | CY16: ='3.6.b'!C7 -> 0 | CZ16: =MAX(0,(1-CY16)/(1-DB16)) -> 0 | DA16: MC | DB16: 6 | DC16: 1 | DE16: 178 | DF16: 0.4684210526 | DG16: ='3.7'!D33 -> 3.7.2.10 | DH16: ='3.7'!C33 -> 0 | DI16: 0 | DJ16: YN | DL16: 1 | DN16: 189 | DO16: 0.4973684211 | DP16: ='4.1'!B30 -> 4.1.6 | DQ16: ='4.1'!C30 -> 0 | DR16: 0 | DS16: YN | DU16: 1 | DW16: 200 | DX16: 0.5263157895 | DY16: ='4.2'!B27 -> 4.2.5 | DZ16: ='4.2'!C27 -> 0 | EB16: CB | EC16: 3 | EF16: 215 | EG16: 0.5657894737 | EH16: ='4.3'!B27 -> 4.3.6 | EI16: ='4.3'!C27 -> 0 | EJ16: 0 | EK16: YN | EM16: 1 | EO16: 229 | EP16: 0.6026315789 | EQ16: ='4.4'!B27 -> 4.4.6 | ER16: ='4.4'!C27 -> 0 | ES16: 0 | ET16: YN | EV16: 1 | EX16: 238 | EY16: 0.6263157895 | EZ16: ='4.5'!B29 -> 4.5.6 | FA16: ='4.5'!C29 -> 0 | FB16: =IF(FA$11=2,FE16, IF(FA16=1,1,0)) -> 0 | FC16: YN | FE16: 1 | FG16: 246 | FH16: 0.6473684211 | FI16: ='4.6'!B27 -> 4.6.6 | FJ16: ='4.6'!C27 -> 0 | FK16: =IF(FJ$11=2,FN16, IF(FJ16=1,1,0)) -> 0 | FL16: YN | FN16: 1 | FP16: 254 | FQ16: 0.6684210526 | FR16: ='4.7'!B34 -> 4.7.6 | FS16: ='4.7'!C34 -> 0 | FT16: =IF(FS$11=2,FW16, MAX(0,(1-FS16)/(1-FV16))) -> 0 | FU16: MC | FV16: 5 | FW16: 1 | GH16: 265 | GI16: 0.6973684211 | GJ16: ='4.9'!B36 -> 4.9.5 | GK16: ='4.9'!C36 -> 0 | GL16: =IF(GK$12=2,GO16, MAX(0,(1-GK16)/(1-GN16))) -> 0 | GM16: MC | GN16: 5 | GO16: 1 | GQ16: 282 | GR16: 0.7421052632 | GS16: ='5.1'!B33 -> 5.1.1.6 | GT16: ='5.1'!C33 -> 0 | GU16: 0 | GV16: YN | GX16: 1 | GZ16: 306 | HA16: 0.8052631579 | HB16: ='5.2.a'!B29 -> 5.2.1.5 | HC16: ='5.2.a'!C29 -> 0 | HD16: 0 | HE16: YN | HG16: 1 | HI16: 346 | HJ16: 0.9105263158 | HK16: ='5.3'!B31 -> 5.3.2.2 | HL16: ='5.3'!C31 -> 0 | HM16: 0 | HN16: YN | HP16: 1 | HR16: 363 | HS16: 0.9552631579 | HT16: ='5.4'!B31 -> 5.4.2.2 | HU16: ='5.4'!C31 -> 0 | HV16: 0 | HW16: YN | HY16: 1
B17: 3 | C17: Physical Security Management Profile | H17: =BJ3/BI3 -> 0 | J17: 7 | K17: 0.01842105263 | L17: ='1.1'!B41 -> 1.1.7 | M17: ='1.1'!C41 -> 0 | N17: x | S17: 14 | T17: 0.03684210526 | U17: ='2.1.a'!D31 -> 2.1.2.5 | V17: ='2.1.a'!C31 -> 0 | W17: 0 | X17: YN | Z17: 1 | AB17: 27 | AC17: 0.07105263158 | AD17: ='2.2.a'!D31 -> 2.2.4.2 | AE17: ='2.2.a'!C31 -> 0 | AF17: 0 | AG17: YN | AI17: 1 | AT17: 82 | AU17: 0.2157894737 | AV17: ='2.4'!B46 -> 2.4.6 | AW17: ='2.4'!C46 -> 0 | AX17: =IF(AW17=1,1,0) -> 0 | AY17: YN | BA17: 1 | BC17: 91 | BD17: 0.2394736842 | BE17: ='3.1.b'!B7 -> 3.1.3 | BF17: ='3.1.b'!C7 -> 0 | BG17: =IF(BF17=1,1,0) -> 0 | BH17: YN | BJ17: 1 | BL17: 103 | BM17: 0.2710526316 | BN17: ='3.2'!B36 -> 3.2.7 | BO17: ='3.2'!C36 -> 0 | BP17: =IF(BO17=1,1,0) -> 0 | BQ17: YN | BS17: 1 | BU17: 110 | BV17: 0.2894736842 | BW17: ='3.3'!B31 -> 3.3.7 | BX17: ='3.3'!C31 -> 0 | BY17: 0 | BZ17: YN | CB17: 1 | CD17: 118 | CE17: 0.3105263158 | CF17: ='3.4.b'!D24 -> 3.4.1.5 | CG17: ='3.4.b'!C24 -> 0 | CH17: =IF(CG17=1,1,0) -> 0 | CI17: YN | CK17: 1 | CM17: 136 | CN17: 0.3578947368 | CO17: ='3.5.a'!B32 -> 3.5.6 | CP17: ='3.5.a'!C32 -> 0 | CQ17: 0 | CR17: YN | CT17: 1 | CV17: 162 | CW17: 0.4263157895 | CX17: ='3.6.b'!B15 -> 3.6.7 | CY17: ='3.6.b'!C15 -> 0 | CZ17: =MAX(0,(1-CY17)/(1-DB17)) -> 0 | DA17: MC | DB17: 6 | DC17: 1 | DE17: 179 | DF17: 0.4710526316 | DG17: ='3.7'!D37 -> 3.7.2.11 | DH17: ='3.7'!C37 -> 0 | DI17: 0 | DJ17: YN | DL17: 1 | DN17: 190 | DO17: 0.5 | DP17: ='4.1'!B34 -> 4.1.7 | DQ17: ='4.1'!C34 -> 0 | DR17: 0 | DS17: YN | DU17: 1 | DW17: 201 | DX17: 0.5289473684 | DY17: ='4.2'!B34 -> 4.2.6 | DZ17: ='4.2'!C34 -> 0 | EA17: =IF(DZ$11=2,ED17, IF(DZ17=1,1,0)) -> 0 | EB17: YN | EC17: 1 | ED17: 1 | EF17: 216 | EG17: 0.5684210526 | EH17: ='4.3'!B31 -> 4.3.7 | EI17: ='4.3'!C31 -> 0 | EJ17: 0 | EK17: YN | EM17: 1 | EO17: 230 | EP17: 0.6052631579 | EQ17: ='4.4'!B31 -> 4.4.7 | ER17: ='4.4'!C31 -> 0 | ES17: 0 | ET17: YN | EV17: 1 | EX17: 239 | EY17: 0.6289473684 | EZ17: ='4.5'!B33 -> 4.5.7 | FA17: ='4.5'!C33 -> 0 | FB17: =IF(FA$11=2,FE17, MAX(0,(1-FA17)/(1-FD17))) -> 0 | FC17: MC | FD17: 5 | FE17: 1 | FG17: 247 | FH17: 0.65 | FI17: ='4.6'!B31 -> 4.6.7 | FJ17: ='4.6'!C31 -> 0 | FK17: =IF(FJ$11=2,FN17, MAX(0,(1-FJ17)/(1-FM17))) -> 0 | FL17: MC | FM17: 5 | FN17: 1 | GH17: 266 | GI17: 0.7 | GJ17: ='4.9'!B43 -> 4.9.6 | GK17: ='4.9'!C43 -> 0 | GL17: =IF(AND(GK$11=2,GK$12=2),GO17, IF(GK17=1,1,0)) -> 0 | GM17: YN | GO17: 1 | GQ17: 283 | GR17: 0.7447368421 | GS17: ='5.1'!B39 -> 5.1.2.1 | GT17: ='5.1'!C39 -> 0 | GU17: 0 | GV17: YN | GX17: 1 | GZ17: 307 | HA17: 0.8078947368 | HB17: ='5.2.a'!D33 -> 5.2.1.5.1 | HC17: ='5.2.a'!C33 -> 0 | HD17: 0 | HE17: YN | HG17: 1 | HI17: 347 | HJ17: 0.9131578947 | HK17: ='5.3'!B35 -> 5.3.2.3 | HL17: ='5.3'!C35 -> 0 | HM17: 0 | HN17: YN | HP17: 1 | HR17: 364 | HS17: 0.9578947368 | HT17: ='5.4'!B35 -> 5.4.2.3 | HU17: ='5.4'!C35 -> 0 | HV17: 0 | HW17: YN | HY17: 1
B18: 3.1 | C18: Physical Security Organization, Policies, and Plans | H18: =BG9/BJ9 -> 0 | S18: 15 | T18: 0.03947368421 | U18: ='2.1.a'!D35 -> 2.1.2.6 | V18: ='2.1.a'!C35 -> 0 | W18: 0 | X18: YN | Z18: 1 | AB18: 28 | AC18: 0.07368421053 | AD18: ='2.2.b'!D7 -> 2.2.4.3 | AE18: ='2.2.b'!C7 -> 0 | AF18: =IF(AE18=99,0,AE18) -> 0 | AG18: CB1 | AH18: 11 | AI18: 11 | AT18: 83 | AU18: 0.2184210526 | AV18: ='2.4'!B50 -> 2.4.7 | AW18: ='2.4'!C50 -> 0 | AX18: =IF(AW18=1,1,0) -> 0 | AY18: YN | BA18: 1 | BC18: 92 | BD18: 0.2421052632 | BE18: ='3.1.b'!B13 -> 3.1.4 | BF18: ='3.1.b'!C13 -> 0 | BG18: =IF(BF18=1,1,0) -> 0 | BH18: YN | BJ18: 1 | BU18: 111 | BV18: 0.2921052632 | BW18: ='3.3'!B35 -> 3.3.8 | BX18: ='3.3'!C35 -> 0 | BY18: 0 | BZ18: YN | CB18: 1 | CD18: 119 | CE18: 0.3131578947 | CF18: ='3.4.b'!D28 -> 3.4.1.6 | CG18: ='3.4.b'!C28 -> 0 | CH18: =IF(CG18=99,0,MIN(CG18,CK18)) -> 0 | CI18: CB3 | CJ18: 3 | CK18: 1 | CM18: 137 | CN18: 0.3605263158 | CO18: ='3.5.a'!B36 -> 3.5.7 | CP18: ='3.5.a'!C36 -> 0 | CQ18: 0 | CR18: YN | CT18: 1 | CV18: 163 | CW18: 0.4289473684 | CX18: ='3.6.b'!B23 -> 3.6.8 | CY18: ='3.6.b'!C23 -> 0 | CZ18: =IF(CY18=1,1,0) -> 0 | DA18: YN | DC18: 1 | DE18: 180 | DF18: 0.4736842105 | DG18: ='3.7'!D41 -> 3.7.2.12 | DH18: ='3.7'!C41 -> 0 | DI18: 0 | DJ18: YN | DL18: 1 | DN18: 191 | DO18: 0.5026315789 | DP18: ='4.1'!B38 -> 4.1.8 | DQ18: ='4.1'!C38 -> 0 | DR18: 0 | DS18: YN | DU18: 1 | DW18: 202 | DX18: 0.5315789474 | DY18: ='4.2'!D42 -> 4.2.7.1 | DZ18: ='4.2'!C42 -> 0 | EA18: 0 | EB18: YN | EC18: 1 | ED18: 1 | EF18: 217 | EG18: 0.5710526316 | EH18: ='4.3'!B35 -> 4.3.8 | EI18: ='4.3'!C35 -> 0 | EJ18: 0 | EK18: YN | EM18: 1 | EO18: 231 | EP18: 0.6078947368 | EQ18: ='4.4'!B35 -> 4.4.8 | ER18: ='4.4'!C35 -> 0 | ES18: =IF(ER$11=2,EV18, MAX(0,(1-ER18)/(1-EU18))) -> 0 | ET18: MC | EU18: 5 | EV18: 1 | EX18: 240 | EY18: 0.6315789474 | EZ18: ='4.5'!B40 -> 4.5.8 | FA18: ='4.5'!C40 -> 0 | FB18: =IF(FA$11=2,FE18, MAX(0,(1-FA18)/(1-FD18))) -> 0 | FC18: MC | FD18: 5 | FE18: 1 | FG18: 248 | FH18: 0.6526315789 | FI18: ='4.6'!B38 -> 4.6.8 | FJ18: ='4.6'!C38 -> 0 | FK18: =IF(FJ$11=2,FN18, MAX(0,(1-FJ18)/(1-FM18))) -> 0 | FL18: MC | FM18: 5 | FN18: 1 | GH18: 267 | GI18: 0.7026315789 | GJ18: ='4.9'!D47 -> 4.9.6.1 | GK18: ='4.9'!C47 -> 0 | GL18: 0 | GM18: YN | GO18: 1 | GQ18: 284 | GR18: 0.7473684211 | GS18: ='5.1'!B43 -> 5.1.2.2 | GT18: ='5.1'!C43 -> 0 | GU18: 0 | GV18: YN | GX18: 1 | GZ18: 308 | HA18: 0.8105263158 | HB18: ='5.2.a'!B37 -> 5.2.1.6 | HC18: ='5.2.a'!C37 -> 0 | HD18: 0 | HE18: YN | HG18: 1 | HI18: 348 | HJ18: 0.9157894737 | HK18: ='5.3'!B39 -> 5.3.2.4 | HL18: ='5.3'!C39 -> 0 | HM18: 0 | HN18: YN | HP18: 1 | HR18: 365 | HS18: 0.9605263158 | HT18: ='5.4'!B39 -> 5.4.2.4 | HU18: ='5.4'!C39 -> 0 | HV18: 0 | HW18: YN | HY18: 1
B19: 3.2 | C19: Personnel Surety | H19: =BP9/BS9 -> 0 | S19: 16 | T19: 0.04210526316 | U19: ='2.1.a'!D39 -> 2.1.2.7 | V19: ='2.1.a'!C39 -> 0 | W19: 0 | X19: YN | Z19: 1 | AB19: 29 | AC19: 0.07631578947 | AD19: ='2.2.b'!D22 -> 2.2.4.4 | AE19: ='2.2.b'!C22 -> 0 | AF19: =IF(AE19=99,0,AE19) -> 0 | AG19: CB1 | AH19: 18 | AI19: 18 | AT19: 84 | AU19: 0.2210526316 | AV19: ='2.4'!B54 -> 2.4.8 | AW19: ='2.4'!C54 -> 0 | AX19: =IF(AW19=1,1,0) -> 0 | AY19: YN | BA19: 1 | BC19: 93 | BD19: 0.2447368421 | BE19: ='3.1.c'!B7 -> 3.1.5 | BF19: ='3.1.c'!C7 -> 0 | BG19: =IF(BF19=99,0,BF19/BI19) -> 0 | BH19: CB2 | BI19: 3 | BJ19: 1 | CD19: 120 | CE19: 0.3157894737 | CF19: ='3.4.b'!D35 -> 3.4.1.7 | CG19: ='3.4.b'!C35 -> 0 | CH19: =IF(CG19=1,1,0) -> 0 | CI19: YN | CK19: 1 | CM19: 138 | CN19: 0.3631578947 | CO19: ='3.5.a'!B40 -> 3.5.8 | CP19: ='3.5.a'!C40 -> 0 | CQ19: 0 | CR19: YN | CT19: 1 | CV19: 164 | CW19: 0.4315789474 | CX19: ='3.6.b'!B27 -> 3.6.9 | CY19: ='3.6.b'!C27 -> 0 | CZ19: =IF(CY19=1,1,0) -> 0 | DA19: YN | DC19: 1 | DE19: 181 | DF19: 0.4763157895 | DG19: ='3.7'!B45 -> 3.7.3 | DH19: ='3.7'!C45 -> 0 | DI19: 0 | DJ19: YN | DL19: 1 | DN19: 192 | DO19: 0.5052631579 | DP19: ='4.1'!B42 -> 4.1.9 | DQ19: ='4.1'!C42 -> 0 | DR19: 0 | DS19: YN | DU19: 1 | DW19: 203 | DX19: 0.5342105263 | DY19: ='4.2'!E46 -> 4.2.7.1.1 | DZ19: ='4.2'!C46 -> 0 | EA19: 0 | EB19: YN | EC19: 1 | ED19: 1 | EF19: 218 | EG19: 0.5736842105 | EH19: ='4.3'!B42 -> 4.3.9 | EI19: ='4.3'!C42 -> 0 | EJ19: 0 | EK19: YN | EM19: 1 | EO19: 232 | EP19: 0.6105263158 | EQ19: ='4.4'!B42 -> 4.4.9 | ER19: ='4.4'!C42 -> 0 | ES19: =IF(ER$11=2,EV19, MAX(0,(1-ER19)/(1-EU19))) -> 0 | ET19: MC | EU19: 5 | EV19: 1 | GH19: 268 | GI19: 0.7052631579 | GJ19: ='4.9'!D51 -> 4.9.6.2 | GK19: ='4.9'!C51 -> 0 | GL19: 0 | GM19: YN | GO19: 1 | GQ19: 285 | GR19: 0.75 | GS19: ='5.1'!B47 -> 5.1.2.3 | GT19: ='5.1'!C47 -> 0 | GU19: 0 | GV19: YN | GX19: 1 | GZ19: 309 | HA19: 0.8131578947 | HB19: ='5.2.a'!B43 -> 5.2.2.1 | HC19: ='5.2.a'!C43 -> 0 | HD19: 0 | HE19: YN | HG19: 1 | HI19: 349 | HJ19: 0.9184210526 | HK19: ='5.3'!B43 -> 5.3.2.5 | HL19: ='5.3'!C43 -> 0 | HM19: =IF(HL19=99,0,HL19/HO19) -> 0 | HN19: CB2 | HO19: 6 | HP19: 1 | HR19: 366 | HS19: 0.9631578947 | HT19: ='5.4'!B45 -> 5.4.3.1 | HU19: ='5.4'!C45 -> 0 | HV19: 0 | HW19: YN | HY19: 1
B20: 3.3 | C20: Security Training | H20: =BY9/CB9 -> 0 | S20: 17 | T20: 0.04473684211 | U20: ='2.1.b'!B7 -> 2.1.3 | V20: ='2.1.b'!C7 -> 0 | W20: 0 | X20: YN | Z20: 1 | AB20: 30 | AC20: 0.07894736842 | AD20: ='2.2.b'!D44 -> 2.2.4.5 | AE20: ='2.2.b'!C44 -> 0 | AF20: =IF(AE20=1,1,0) -> 0 | AG20: YN | AI20: 1 | BC20: 94 | BD20: 0.2473684211 | BE20: ='3.1.c'!B14 -> 3.1.6 | BF20: ='3.1.c'!C14 -> 0 | BG20: =IF(BF20=99,0,BF20/BI20) -> 0 | BH20: CB2 | BI20: 7 | BJ20: 1 | CD20: 121 | CE20: 0.3184210526 | CF20: ='3.4.b'!D39 -> 3.4.1.8 | CG20: ='3.4.b'!C39 -> 0 | CH20: =IF(CG20=1,1,0) -> 0 | CI20: YN | CK20: 1 | CM20: 139 | CN20: 0.3657894737 | CO20: ='3.5.a'!B44 -> 3.5.9 | CP20: ='3.5.a'!C44 -> 0 | CQ20: 0 | CR20: YN | CT20: 1 | CV20: 165 | CW20: 0.4342105263 | CX20: ='3.6.b'!B31 -> 3.6.10 | CY20: ='3.6.b'!C31 -> 0 | CZ20: =IF(CY20=1,1,0) -> 0 | DA20: YN | DC20: 1 | DE20: 182 | DF20: 0.4789473684 | DG20: ='3.7'!B49 -> 3.7.4 | DH20: ='3.7'!C49 -> 0 | DI20: 0 | DJ20: YN | DL20: 1 | DN20: 193 | DO20: 0.5078947368 | DP20: ='4.1'!B46 -> 4.1.10 | DQ20: ='4.1'!C46 -> 0 | DR20: 0 | DS20: YN | DU20: 1 | DW20: 204 | DX20: 0.5368421053 | DY20: ='4.2'!B38 -> 4.2.7 | DZ20: ='4.2'!C38 -> 0 | EA20: 0 | EB20: YN | EC20: 1 | ED20: 1 | EF20: 219 | EG20: 0.5763157895 | EH20: ='4.3'!B46 -> 4.3.10 | EI20: ='4.3'!C46 -> 0 | EJ20: 0 | EK20: YN | EM20: 1 | GH20: 269 | GI20: 0.7078947368 | GJ20: ='4.9'!B55 -> 4.9.7 | GK20: ='4.9'!C55 -> 0 | GL20: 0 | GM20: YN | GO20: 1 | GQ20: 286 | GR20: 0.7526315789 | GS20: ='5.1'!B51 -> 5.1.2.4 | GT20: ='5.1'!C51 -> 0 | GU20: 0 | GV20: YN | GX20: 1 | GZ20: 310 | HA20: 0.8157894737 | HB20: ='5.2.a'!D47 -> 5.2.2.1.1 | HC20: ='5.2.a'!C47 -> 0 | HD20: 0 | HE20: YN | HG20: 1 | HI20: 350 | HJ20: 0.9210526316 | HK20: ='5.3'!B53 -> 5.3.2.6 | HL20: ='5.3'!C53 -> 0 | HM20: =IF(HL20=1,1,0) -> 0 | HN20: YN | HP20: 1 | HR20: 367 | HS20: 0.9657894737 | HT20: ='5.4'!B49 -> 5.4.3.2 | HU20: ='5.4'!C49 -> 0 | HV20: 0 | HW20: YN | HY20: 1
B21: 3.4 | C21: Security Force Profile | H21: =CH9/CK9 -> 0 | S21: 18 | T21: 0.04736842105 | U21: ='2.1.b'!B11 -> 2.1.4 | V21: ='2.1.b'!C11 -> 0 | W21: 0 | X21: YN | Z21: 1 | AB21: 31 | AC21: 0.08157894737 | AD21: ='2.2.b'!E48 -> 2.2.4.5.1 | AE21: ='2.2.b'!C48 -> 0 | AF21: =IF(AE21=99,0,AE21) -> 0 | AG21: CB1 | AH21: 5 | AI21: 5 | BC21: 95 | BD21: 0.25 | BE21: ='3.1.c'!B25 -> 3.1.7 | BF21: ='3.1.c'!C25 -> 0 | BG21: =IF(BF21=99,0,BF21) -> 0 | BH21: CB1 | BI21: 11 | BJ21: 11 | CD21: 122 | CE21: 0.3210526316 | CF21: ='3.4.b'!E43 -> 3.4.1.8.1 | CG21: ='3.4.b'!C43 -> 0 | CH21: =MAX(0,(1-CG21)/(1-CJ21)) -> 0 | CI21: MC | CJ21: 5 | CK21: 1 | CM21: 140 | CN21: 0.3684210526 | CO21: ='3.5.a'!B48 -> 3.5.10 | CP21: ='3.5.a'!C48 -> 0 | CQ21: 0 | CR21: YN | CT21: 1 | CV21: 166 | CW21: 0.4368421053 | CX21: ='3.6.b'!B35 -> 3.6.11 | CY21: ='3.6.b'!C35 -> 0 | CZ21: =MAX(0,(1-CY21)/(1-DB21)) -> 0 | DA21: MC | DB21: 6 | DC21: 1 | DE21: 183 | DF21: 0.4815789474 | DG21: ='3.7'!B53 -> 3.7.5 | DH21: ='3.7'!C53 -> 0 | DI21: 0 | DJ21: YN | DL21: 1 | DN21: 194 | DO21: 0.5105263158 | DP21: ='4.1'!B50 -> 4.1.11 | DQ21: ='4.1'!C50 -> 0 | DR21: 0 | DS21: YN | DU21: 1 | DW21: 205 | DX21: 0.5394736842 | DY21: ='4.2'!B50 -> 4.2.8 | DZ21: ='4.2'!C50 -> 0 | EA21: 0 | EB21: YN | EC21: 1 | ED21: 1 | EF21: 220 | EG21: 0.5789473684 | EH21: ='4.3'!D50 -> 4.3.10.1 | EI21: ='4.3'!C50 -> 0 | EJ21: 0 | EK21: YN | EM21: 1 | GH21: 270 | GI21: 0.7105263158 | GJ21: ='4.9'!B59 -> 4.9.8 | GK21: ='4.9'!C59 -> 0 | GL21: 0 | GM21: YN | GO21: 1 | GQ21: 287 | GR21: 0.7552631579 | GS21: ='5.1'!B55 -> 5.1.2.5 | GT21: ='5.1'!C55 -> 0 | GU21: 0 | GV21: YN | GX21: 1 | GZ21: 311 | HA21: 0.8184210526 | HB21: ='5.2.a'!B51 -> 5.2.2.2 | HC21: ='5.2.a'!C51 -> 0 | HD21: =MAX(0,(1-HC21)/(1-HF21)) -> 0 | HE21: MC | HF21: 4 | HG21: 1 | HI21: 351 | HJ21: 0.9236842105 | HK21: ='5.3'!B57 -> 5.3.2.7 | HL21: ='5.3'!C57 -> 0 | HM21: 0 | HN21: YN | HP21: 1 | HR21: 368 | HS21: 0.9684210526 | HT21: ='5.4'!B53 -> 5.4.3.3 | HU21: ='5.4'!C53 -> 0 | HV21: 0 | HW21: YN | HY21: 1
B22: 3.5 | C22: Physical Access Control | H22: =CQ9/CT9 -> 0 | S22: 19 | T22: 0.05 | U22: ='2.1.b'!B15 -> 2.1.5 | V22: ='2.1.b'!C15 -> 0 | W22: 0 | X22: YN | Z22: 1 | AB22: 32 | AC22: 0.08421052632 | AD22: ='2.2.b'!E57 -> 2.2.4.5.2 | AE22: ='2.2.b'!C57 -> 0 | AF22: =IF(AE22=1,1,0) -> 0 | AG22: YN | AI22: 1 | BC22: 96 | BD22: 0.2526315789 | BE22: ='3.1.c'!B40 -> 3.1.8 | BF22: ='3.1.c'!C40 -> 0 | BG22: =IF(BF22=99,0,MIN(BF22,BJ22)) -> 0 | BH22: CB3 | BI22: 19 | BJ22: 1 | CD22: 123 | CE22: 0.3236842105 | CF22: ='3.4.b'!D49 -> 3.4.1.9 | CG22: ='3.4.b'!C49 -> 0 | CH22: =IF(CG22=1,1,0) -> 0 | CI22: YN | CK22: 1 | CM22: 141 | CN22: 0.3710526316 | CO22: ='3.5.a'!B52 -> 3.5.11 | CP22: ='3.5.a'!C52 -> 0 | CQ22: 0 | CR22: YN | CT22: 1 | CV22: 167 | CW22: 0.4394736842 | CX22: ='3.6.b'!B43 -> 3.6.12 | CY22: ='3.6.b'!C43 -> 0 | CZ22: =IF(CY22=1,1,0) -> 0 | DA22: YN | DC22: 1 | DW22: 206 | DX22: 0.5421052632 | DY22: ='4.2'!B54 -> 4.2.9 | DZ22: ='4.2'!C54 -> 0 | EA22: 0 | EB22: YN | EC22: 1 | ED22: 1 | EF22: 221 | EG22: 0.5815789474 | EH22: ='4.3'!B54 -> 4.3.11 | EI22: ='4.3'!C54 -> 0 | EJ22: 0 | EK22: YN | EM22: 1 | GH22: 271 | GI22: 0.7131578947 | GJ22: ='4.9'!B63 -> 4.9.9 | GK22: ='4.9'!C63 -> 0 | GL22: 0 | GM22: YN | GO22: 1 | GQ22: 288 | GR22: 0.7578947368 | GS22: ='5.1'!B59 -> 5.1.2.6 | GT22: ='5.1'!C59 -> 0 | GU22: 0 | GV22: YN | GX22: 1 | GZ22: 312 | HA22: 0.8210526316 | HB22: ='5.2.a'!B57 -> 5.2.2.3 | HC22: ='5.2.a'!C57 -> 0 | HD22: =IF(HC22=1,1,0) -> 0 | HE22: YN | HG22: 1 | HI22: 352 | HJ22: 0.9263157895 | HK22: ='5.3'!B61 -> 5.3.2.8 | HL22: ='5.3'!C61 -> 0 | HM22: 0 | HN22: YN | HP22: 1 | HR22: 369 | HS22: 0.9710526316 | HT22: ='5.4'!B57 -> 5.4.3.4 | HU22: ='5.4'!C57 -> 0 | HV22: 0 | HW22: YN | HY22: 1
B23: 3.6 | C23: Lighting, Surveillance, and Intrusion Detection | H23: =CZ9/DC9 -> 0 | S23: 20 | T23: 0.05263157895 | U23: ='2.1.b'!B19 -> 2.1.6 | V23: ='2.1.b'!C19 -> 0 | W23: 0 | X23: YN | Z23: 1 | AB23: 33 | AC23: 0.08684210526 | AD23: ='2.2.b'!D61 -> 2.2.4.6 | AE23: ='2.2.b'!C61 -> 0 | AF23: =IF(AE23=99,0,AE23) -> 0 | AG23: CB1 | AH23: 7 | AI23: 7 | CD23: 124 | CE23: 0.3263157895 | CF23: ='3.4.b'!E53 -> 3.4.1.9.1 | CG23: ='3.4.b'!C53 -> 0 | CH23: 0 | CI23: YN | CK23: 1 | CM23: 142 | CN23: 0.3736842105 | CO23: ='3.5.a'!B56 -> 3.5.12 | CP23: ='3.5.a'!C56 -> 0 | CQ23: 0 | CR23: YN | CT23: 1 | CV23: 168 | CW23: 0.4421052632 | CX23: ='3.6.b'!B47 -> 3.6.13 | CY23: ='3.6.b'!C47 -> 0 | CZ23: 0 | DA23: YN | DC23: 1 | DW23: 207 | DX23: 0.5447368421 | DY23: ='4.2'!B58 -> 4.2.10 | DZ23: ='4.2'!C58 -> 0 | EA23: =IF(DZ$11=2,ED23, MAX(0,(1-DZ23)/(1-EC23))) -> 0 | EB23: MC | EC23: 5 | ED23: 1 | EF23: 222 | EG23: 0.5842105263 | EH23: ='4.3'!B58 -> 4.3.12 | EI23: ='4.3'!C58 -> 0 | EJ23: =IF(EI$11=2,EM23, MAX(0,(1-EI23)/(1-EL23))) -> 0 | EK23: MC | EL23: 5 | EM23: 1 | GH23: 272 | GI23: 0.7157894737 | GJ23: ='4.9'!B67 -> 4.9.10 | GK23: ='4.9'!C67 -> 0 | GL23: 0 | GM23: YN | GO23: 1 | GQ23: 289 | GR23: 0.7605263158 | GS23: ='5.1'!B66 -> 5.1.2.7 | GT23: ='5.1'!C66 -> 0 | GU23: 0 | GV23: YN | GX23: 1 | GZ23: 313 | HA23: 0.8236842105 | HB23: ='5.2.a'!D61 -> 5.2.2.3.1 | HC23: ='5.2.a'!C61 -> 0 | HD23: 0 | HE23: YN | HG23: 1 | HI23: 353 | HJ23: 0.9289473684 | HK23: ='5.3'!B67 -> 5.3.3.1 | HL23: ='5.3'!C67 -> 0 | HM23: 0 | HN23: YN | HP23: 1 | HR23: 370 | HS23: 0.9736842105 | HT23: ='5.4'!B63 -> 5.4.4.1 | HU23: ='5.4'!C63 -> 0 | HV23: 0 | HW23: YN | HY23: 1
B24: 3.7 | C24: Badging and Internal Security | H24: =DI9/DL9 -> 0 | AB24: 34 | AC24: 0.08947368421 | AD24: ='2.2.c'!D7 -> 2.2.4.7 | AE24: ='2.2.c'!C7 -> 0 | AF24: =IF(AE24=1,1,0) -> 0 | AG24: YN | AI24: 1 | CD24: 125 | CE24: 0.3289473684 | CF24: ='3.4.b'!D57 -> 3.4.1.10 | CG24: ='3.4.b'!C57 -> 0 | CH24: 0 | CI24: YN | CK24: 1 | CM24: 143 | CN24: 0.3763157895 | CO24: ='3.5.a'!B60 -> 3.5.13 | CP24: ='3.5.a'!C60 -> 0 | CQ24: 0 | CR24: YN | CT24: 1 | CV24: 169 | CW24: 0.4447368421 | CX24: ='3.6.c'!B7 -> 3.6.14 | CY24: ='3.6.c'!C7 -> 0 | CZ24: 0 | DA24: YN | DC24: 1 | DW24: 208 | DX24: 0.5473684211 | DY24: ='4.2'!B65 -> 4.2.11 | DZ24: ='4.2'!C65 -> 0 | EA24: =IF(DZ$11=2,ED24, MAX(0,(1-DZ24)/(1-EC24))) -> 0 | EB24: MC | EC24: 5 | ED24: 1 | EF24: 223 | EG24: 0.5868421053 | EH24: ='4.3'!B65 -> 4.3.13 | EI24: ='4.3'!C65 -> 0 | EJ24: =IF(EI$11=2,EM24, MAX(0,(1-EI24)/(1-EL24))) -> 0 | EK24: MC | EL24: 5 | EM24: 1 | GH24: 273 | GI24: 0.7184210526 | GJ24: ='4.9'!B71 -> 4.9.11 | GK24: ='4.9'!C71 -> 0 | GL24: 0 | GM24: YN | GO24: 1 | GQ24: 290 | GR24: 0.7631578947 | GS24: ='5.1'!B70 -> 5.1.2.8 | GT24: ='5.1'!C70 -> 0 | GU24: 0 | GV24: YN | GX24: 1 | GZ24: 314 | HA24: 0.8263157895 | HB24: ='5.2.a'!B65 -> 5.2.2.4 | HC24: ='5.2.a'!C65 -> 0 | HD24: 0 | HE24: YN | HG24: 1 | HI24: 354 | HJ24: 0.9315789474 | HK24: ='5.3'!B71 -> 5.3.3.2 | HL24: ='5.3'!C71 -> 0 | HM24: 0 | HN24: YN | HP24: 1 | HR24: 371 | HS24: 0.9763157895 | HT24: ='5.4'!B67 -> 5.4.4.2 | HU24: ='5.4'!C67 -> 0 | HV24: 0 | HW24: YN | HY24: 1
AB25: 35 | AC25: 0.09210526316 | AD25: ='2.2.c'!E11 -> 2.2.4.7.1 | AE25: ='2.2.c'!C11 -> 0 | AF25: =IF(AE25=1,1,0) -> 0 | AG25: YN | AI25: 1 | CD25: 126 | CE25: 0.3315789474 | CF25: ='3.4.b'!E61 -> 3.4.1.10.1 | CG25: ='3.4.b'!C61 -> 0 | CH25: 0 | CI25: YN | CK25: 1 | CM25: 144 | CN25: 0.3789473684 | CO25: ='3.5.b'!B7 -> 3.5.14 | CP25: ='3.5.b'!C7 -> 0 | CQ25: x | CR25: YN | CV25: 170 | CW25: 0.4473684211 | CX25: ='3.6.c'!D11 -> 3.6.14.1 | CY25: ='3.6.c'!C11 -> 0 | CZ25: 0 | DA25: YN | DC25: 1 | DW25: 209 | DX25: 0.55 | DY25: ='4.2'!B72 -> 4.2.12 | DZ25: ='4.2'!C72 -> 0 | EA25: =IF(DZ$11=2,ED25, MAX(0,(1-DZ25)/(1-EC25))) -> 0 | EB25: MC | EC25: 5 | ED25: 1 | GH25: 274 | GI25: 0.7210526316 | GJ25: ='4.9'!B75 -> 4.9.12 | GK25: ='4.9'!C75 -> 0 | GL25: 0 | GM25: YN | GO25: 1 | GQ25: 291 | GR25: 0.7657894737 | GS25: ='5.1'!B74 -> 5.1.2.9 | GT25: ='5.1'!C74 -> 0 | GU25: 0 | GV25: YN | GX25: 1 | GZ25: 315 | HA25: 0.8289473684 | HB25: ='5.2.a'!B69 -> 5.2.2.5 | HC25: ='5.2.a'!C69 -> 0 | HD25: 0 | HE25: YN | HG25: 1 | HI25: 355 | HJ25: 0.9342105263 | HK25: ='5.3'!B75 -> 5.3.3.3 | HL25: ='5.3'!C75 -> 0 | HM25: 0 | HN25: YN | HP25: 1 | HR25: 372 | HS25: 0.9789473684 | HT25: ='5.4'!B71 -> 5.4.4.3 | HU25: ='5.4'!C71 -> 0 | HV25: 0 | HW25: YN | HY25: 1
B26: 4 | C26: Critical Dependencies | H26: =DU3/DT3 -> 0 | AB26: 36 | AC26: 0.09473684211 | AD26: ='2.2.c'!D15 -> 2.2.4.8 | AE26: ='2.2.c'!C15 -> 0 | AF26: =IF(AE26=1,1,0) -> 0 | AG26: YN | AI26: 1 | CD26: 127 | CE26: 0.3342105263 | CF26: ='3.4.b'!D65 -> 3.4.1.11 | CG26: ='3.4.b'!C65 -> 0 | CH26: 0 | CI26: YN | CK26: 1 | CM26: 145 | CN26: 0.3815789474 | CO26: ='3.5.b'!D11 -> 3.5.14.1 | CP26: ='3.5.b'!C11 -> 0 | CQ26: =IF(CP25=1,1, IF(CP26=1,1,0)) -> 0 | CR26: YN | CT26: 1 | CV26: 171 | CW26: 0.45 | CX26: ='3.6.c'!D15 -> 3.6.14.2 | CY26: ='3.6.c'!C15 -> 0 | CZ26: 0 | DA26: YN | DC26: 1 | GH26: 275 | GI26: 0.7236842105 | GJ26: ='4.9'!B79 -> 4.9.13 | GK26: ='4.9'!C79 -> 0 | GL26: 0 | GM26: YN | GO26: 1 | GQ26: 292 | GR26: 0.7684210526 | GS26: ='5.1'!B80 -> 5.1.3.1 | GT26: ='5.1'!C80 -> 0 | GU26: 0 | GV26: YN | GX26: 1 | GZ26: 316 | HA26: 0.8315789474 | HB26: ='5.2.a'!D73 -> 5.2.2.5.1 | HC26: ='5.2.a'!C73 -> 0 | HD26: 0 | HE26: YN | HG26: 1 | HI26: 356 | HJ26: 0.9368421053 | HK26: ='5.3'!B79 -> 5.3.3.4 | HL26: ='5.3'!C79 -> 0 | HM26: 0 | HN26: YN | HP26: 1 | HR26: 373 | HS26: 0.9815789474 | HT26: ='5.4'!B77 -> 5.4.5.1 | HU26: ='5.4'!C77 -> 0 | HV26: 0 | HW26: YN | HY26: 1
B27: 4.1 | C27: General Dependencies | H27: =DR9/DU9 -> 0 | AB27: 37 | AC27: 0.09736842105 | AD27: ='2.2.c'!E19 -> 2.2.4.8.1 | AE27: ='2.2.c'!C19 -> 0 | AF27: =IF(AE27=1,1,0) -> 0 | AG27: YN | AI27: 1 | CD27: 128 | CE27: 0.3368421053 | CF27: ='3.4.b'!D69 -> 3.4.1.12 | CG27: ='3.4.b'!C69 -> 0 | CH27: 0 | CI27: YN | CK27: 1 | CM27: 146 | CN27: 0.3842105263 | CO27: ='3.5.b'!B15 -> 3.5.15 | CP27: ='3.5.b'!C15 -> 0 | CQ27: x | CR27: YN | CV27: 172 | CW27: 0.4526315789 | CX27: ='3.6.c'!D19 -> 3.6.14.3 | CY27: ='3.6.c'!C19 -> 0 | CZ27: 0 | DA27: YN | DC27: 1 | GH27: 276 | GI27: 0.7263157895 | GJ27: ='4.9'!B83 -> 4.9.14 | GK27: ='4.9'!C83 -> 0 | GL27: 0 | GM27: YN | GO27: 1 | GQ27: 293 | GR27: 0.7710526316 | GS27: ='5.1'!B84 -> 5.1.3.2 | GT27: ='5.1'!C84 -> 0 | GU27: 0 | GV27: YN | GX27: 1 | GZ27: 317 | HA27: 0.8342105263 | HB27: ='5.2.a'!B77 -> 5.2.2.6 | HC27: ='5.2.a'!C77 -> 0 | HD27: 0 | HE27: YN | HG27: 1 | HI27: 357 | HJ27: 0.9394736842 | HK27: ='5.3'!B83 -> 5.3.3.5 | HL27: ='5.3'!C83 -> 0 | HM27: 0 | HN27: YN | HP27: 1 | HR27: 374 | HS27: 0.9842105263 | HT27: ='5.4'!B81 -> 5.4.5.2 | HU27: ='5.4'!C81 -> 0 | HV27: 0 | HW27: YN | HY27: 1
B28: 4.2 | C28: Information Technology (IT) | H28: =EA9/ED9 -> 0 | AB28: 38 | AC28: 0.1 | AD28: ='2.2.c'!D23 -> 2.2.4.9 | AE28: ='2.2.c'!C23 -> 0 | AF28: =IF(AE28=1,1,0) -> 0 | AG28: YN | AI28: 1 | CD28: 129 | CE28: 0.3394736842 | CF28: ='3.4.b'!D73 -> 3.4.1.13 | CG28: ='3.4.b'!C73 -> 0 | CH28: 0 | CI28: YN | CK28: 1 | CM28: 147 | CN28: 0.3868421053 | CO28: ='3.5.b'!D19 -> 3.5.15.1 | CP28: ='3.5.b'!C19 -> 0 | CQ28: =IF(CP27=1,1, IF(CP28=1,1,0)) -> 0 | CR28: YN | CT28: 1 | GQ28: 294 | GR28: 0.7736842105 | GS28: ='5.1'!B88 -> 5.1.3.3 | GT28: ='5.1'!C88 -> 0 | GU28: 0 | GV28: YN | GX28: 1 | GZ28: 318 | HA28: 0.8368421053 | HB28: ='5.2.a'!B81 -> 5.2.2.7 | HC28: ='5.2.a'!C81 -> 0 | HD28: 0 | HE28: YN | HG28: 1 | HR28: 375 | HS28: 0.9868421053 | HT28: ='5.4'!B85 -> 5.4.5.3 | HU28: ='5.4'!C85 -> 0 | HV28: 0 | HW28: YN | HY28: 1
B29: 4.3 | C29: Electricity | H29: =EJ9/EM9 -> 0 | AB29: 39 | AC29: 0.1026315789 | AD29: ='2.2.c'!D27 -> 2.2.4.10 | AE29: ='2.2.c'!C27 -> 0 | AF29: =MAX(0,(1-AE29)/(1-AH29)) -> 0 | AG29: MC | AH29: 4 | AI29: 1 | CM29: 148 | CN29: 0.3894736842 | CO29: ='3.5.b'!B23 -> 3.5.16 | CP29: ='3.5.b'!C23 -> 0 | CQ29: 0 | CR29: YN | CT29: 1 | GQ29: 295 | GR29: 0.7763157895 | GS29: ='5.1'!B94 -> 5.1.3.4 | GT29: ='5.1'!C94 -> 0 | GU29: 0 | GV29: YN | GX29: 1 | GZ29: 319 | HA29: 0.8394736842 | HB29: ='5.2.a'!B85 -> 5.2.2.8 | HC29: ='5.2.a'!C85 -> 0 | HD29: 0 | HE29: YN | HG29: 1
B30: 4.4 | C30: Natural Gas | H30: =ES9/EV9 -> 0 | AB30: 40 | AC30: 0.1052631579 | AD30: ='2.2.c'!E33 -> 2.2.4.10.1 | AE30: ='2.2.c'!C33 -> 0 | AF30: =IF(AE30=1,1,0) -> 0 | AG30: YN | AI30: 1 | CM30: 149 | CN30: 0.3921052632 | CO30: ='3.5.b'!B27 -> 3.5.17 | CP30: ='3.5.b'!C27 -> 0 | CQ30: 0 | CR30: YN | CT30: 1 | GQ30: 296 | GR30: 0.7789473684 | GS30: ='5.1'!B98 -> 5.1.3.5 | GT30: ='5.1'!C98 -> 0 | GU30: 0 | GV30: YN | GX30: 1 | GZ30: 320 | HA30: 0.8421052632 | HB30: ='5.2.b'!B9 -> 5.2.3.1 | HC30: ='5.2.b'!C9 -> 0 | HD30: 0 | HE30: YN | HG30: 1
B31: 4.5 | C31: Water | H31: =FB9/FE9 -> 0 | AB31: 41 | AC31: 0.1078947368 | AD31: ='2.2.c'!E37 -> 2.2.4.10.2 | AE31: ='2.2.c'!C37 -> 0 | AF31: =IF(AE31=1,1,0) -> 0 | AG31: YN | AI31: 1 | CM31: 150 | CN31: 0.3947368421 | CO31: ='3.5.b'!B31 -> 3.5.18 | CP31: ='3.5.b'!C31 -> 0 | CQ31: 0 | CR31: YN | CT31: 1 | GQ31: 297 | GR31: 0.7815789474 | GS31: ='5.1'!B102 -> 5.1.3.6 | GT31: ='5.1'!C102 -> 0 | GU31: =IF(GT31=99,0,GT31/GW31) -> 0 | GV31: CB2 | GW31: 4 | GX31: 1 | GZ31: 321 | HA31: 0.8447368421 | HB31: ='5.2.b'!D13 -> 5.2.3.1.1 | HC31: ='5.2.b'!C13 -> 0 | HD31: 0 | HE31: YN | HG31: 1
B32: 4.6 | C32: Wastewater and Waste Disposal | H32: =FK9/FN9 -> 0 | AB32: 42 | AC32: 0.1105263158 | AD32: ='2.2.c'!E41 -> 2.2.4.10.3 | AE32: ='2.2.c'!C41 -> 0 | AF32: =IF(AE32=1,1,0) -> 0 | AG32: YN | AI32: 1 | CM32: 151 | CN32: 0.3973684211 | CO32: ='3.5.b'!B35 -> 3.5.19 | CP32: ='3.5.b'!C35 -> 0 | CQ32: 0 | CR32: YN | CT32: 1 | GQ32: 298 | GR32: 0.7842105263 | GS32: ='5.1'!B110 -> 5.1.3.7 | GT32: ='5.1'!C110 -> 0 | GU32: =MAX(0,(1-GT32)/(1-GW32)) -> 0 | GV32: MC | GW32: 4 | GX32: 1 | GZ32: 322 | HA32: 0.8473684211 | HB32: ='5.2.b'!B17 -> 5.2.3.2 | HC32: ='5.2.b'!C17 -> 0 | HD32: 0 | HE32: YN | HG32: 1
B33: 4.7 | C33: Communications | H33: =FT9/FW9 -> 0 | AB33: 43 | AC33: 0.1131578947 | AD33: ='2.2.c'!E45 -> 2.2.4.10.4 | AE33: ='2.2.c'!C45 -> 0 | AF33: =IF(AE33=1,1,0) -> 0 | AG33: YN | AI33: 1 | CM33: 152 | CN33: 0.4 | CO33: ='3.5.b'!B39 -> 3.5.20 | CP33: ='3.5.b'!C39 -> 0 | CQ33: 0 | CR33: YN | CT33: 1 | GQ33: 299 | GR33: 0.7868421053 | GS33: ='5.1'!B118 -> 5.1.4.1 | GT33: ='5.1'!C118 -> 0 | GU33: =IF(GT33=1,1,0) -> 0 | GV33: YN | GX33: 1 | GZ33: 323 | HA33: 0.85 | HB33: ='5.2.b'!D21 -> 5.2.3.2.1 | HC33: ='5.2.b'!C21 -> 0 | HD33: 0 | HE33: YN | HG33: 1
B34: 4.8 | C34: Transportation | H34: =GC9/GF9 -> 0 | AB34: 44 | AC34: 0.1157894737 | AD34: ='2.2.c'!E49 -> 2.2.4.10.5 | AE34: ='2.2.c'!C49 -> 0 | AF34: =IF(AE34=1,1,0) -> 0 | AG34: YN | AI34: 1 | CM34: 153 | CN34: 0.4026315789 | CO34: ='3.5.b'!B43 -> 3.5.21 | CP34: ='3.5.b'!C43 -> 0 | CQ34: 0 | CR34: YN | CT34: 1 | GQ34: 300 | GR34: 0.7894736842 | GS34: ='5.1'!B122 -> 5.1.4.2 | GT34: ='5.1'!C122 -> 0 | GU34: =IF(GT34=1,1,0) -> 0 | GV34: YN | GX34: 1 | GZ34: 324 | HA34: 0.8526315789 | HB34: ='5.2.b'!B25 -> 5.2.3.3 | HC34: ='5.2.b'!C25 -> 0 | HD34: 0 | HE34: YN | HG34: 1
B35: 4.9 | C35: Critical Products | H35: =GL9/GO9 -> 0 | AB35: 45 | AC35: 0.1184210526 | AD35: ='2.2.c'!E53 -> 2.2.4.10.6 | AE35: ='2.2.c'!C53 -> 0 | AF35: =IF(AE35=99,0,AE35/AH35) -> 0 | AG35: CB2 | AH35: 6 | AI35: 1 | CM35: 154 | CN35: 0.4052631579 | CO35: ='3.5.b'!B47 -> 3.5.22 | CP35: ='3.5.b'!C47 -> 0 | CQ35: 0 | CR35: YN | CT35: 1 | GZ35: 325 | HA35: 0.8552631579 | HB35: ='5.2.b'!D29 -> 5.2.3.3.1 | HC35: ='5.2.b'!C29 -> 0 | HD35: 0 | HE35: YN | HG35: 1
AB36: 46 | AC36: 0.1210526316 | AD36: ='2.2.d'!D7 -> 2.2.4.11 | AE36: ='2.2.d'!C7 -> 0 | AF36: =IF(AE36=1,1,0) -> 0 | AG36: YN | AI36: 1 | CM36: 155 | CN36: 0.4078947368 | CO36: ='3.5.b'!B51 -> 3.5.23 | CP36: ='3.5.b'!C51 -> 0 | CQ36: =IF(CP36=99,0,CP36) -> 0 | CR36: CB1 | CS36: 5 | CT36: 5 | GZ36: 326 | HA36: 0.8578947368 | HB36: ='5.2.b'!B33 -> 5.2.3.4 | HC36: ='5.2.b'!C33 -> 0 | HD36: 0 | HE36: YN | HG36: 1
B37: 5 | C37: Cybersecurity Management Profile | H37: =GX3/GW3 -> 0 | AB37: 47 | AC37: 0.1236842105 | AD37: ='2.2.d'!D11 -> 2.2.4.12 | AE37: ='2.2.d'!C11 -> 0 | AF37: =MAX(0,(1-AE37)/(1-AH37)) -> 0 | AG37: MC | AH37: 4 | AI37: 1 | GZ37: 327 | HA37: 0.8605263158 | HB37: ='5.2.b'!D37 -> 5.2.3.4.1 | HC37: ='5.2.b'!C37 -> 0 | HD37: 0 | HE37: YN | HG37: 1
B38: 5.1 | C38: Identify | H38: =GU9/GX9 -> 0 | AB38: 48 | AC38: 0.1263157895 | AD38: ='2.2.d'!D17 -> 2.2.4.13 | AE38: ='2.2.d'!C17 -> 0 | AF38: =IF(AE38=1,1,0) -> 0 | AG38: YN | AI38: 1 | GZ38: 328 | HA38: 0.8631578947 | HB38: ='5.2.b'!B41 -> 5.2.3.5 | HC38: ='5.2.b'!C41 -> 0 | HD38: 0 | HE38: YN | HG38: 1
B39: 5.2 | C39: Protect | H39: =HD9/HG9 -> 0 | AB39: 49 | AC39: 0.1289473684 | AD39: ='2.2.e'!B7 -> 2.2.5 | AE39: ='2.2.e'!C7 -> 0 | AF39: 0 | AG39: YN | AI39: 1 | GZ39: 329 | HA39: 0.8657894737 | HB39: ='5.2.b'!B45 -> 5.2.3.6 | HC39: ='5.2.b'!C45 -> 0 | HD39: 0 | HE39: YN | HG39: 1
B40: 5.3 | C40: Detect | H40: =HM9/HP9 -> 0 | AB40: 50 | AC40: 0.1315789474 | AD40: ='2.2.e'!B11 -> 2.2.6 | AE40: ='2.2.e'!C11 -> 0 | AF40: 0 | AG40: YN | AI40: 1 | GZ40: 330 | HA40: 0.8684210526 | HB40: ='5.2.b'!B51 -> 5.2.4.1 | HC40: ='5.2.b'!C51 -> 0 | HD40: 0 | HE40: YN | HG40: 1
B41: 5.4 | C41: Response | H41: =HV9/HY9 -> 0 | AB41: 51 | AC41: 0.1342105263 | AD41: ='2.2.e'!B15 -> 2.2.7 | AE41: ='2.2.e'!C15 -> 0 | AF41: 0 | AG41: YN | AI41: 1 | GZ41: 331 | HA41: 0.8710526316 | HB41: ='5.2.b'!B55 -> 5.2.4.2 | HC41: ='5.2.b'!C55 -> 0 | HD41: 0 | HE41: YN | HG41: 1
B42: 5.5 | C42: Recovery | H42: =IE9/IH9 -> 0 | AB42: 52 | AC42: 0.1368421053 | AD42: ='2.2.e'!B19 -> 2.2.8 | AE42: ='2.2.e'!C19 -> 0 | AF42: 0 | AG42: YN | AI42: 1 | GZ42: 332 | HA42: 0.8736842105 | HB42: ='5.2.b'!B59 -> 5.2.4.3 | HC42: ='5.2.b'!C59 -> 0 | HD42: 0 | HE42: YN | HG42: 1
AB43: 53 | AC43: 0.1394736842 | AD43: ='2.2.e'!D23 -> 2.2.8.1 | AE43: ='2.2.e'!C23 -> 0 | AF43: 0 | AG43: YN | AI43: 1 | GZ43: 333 | HA43: 0.8763157895 | HB43: ='5.2.b'!B63 -> 5.2.4.4 | HC43: ='5.2.b'!C63 -> 0 | HD43: 0 | HE43: YN | HG43: 1
AB44: 54 | AC44: 0.1421052632 | AD44: ='2.2.e'!B27 -> 2.2.9 | AE44: ='2.2.e'!C27 -> 0 | AF44: 0 | AG44: YN | AI44: 1 | GZ44: 334 | HA44: 0.8789473684 | HB44: ='5.2.b'!B67 -> 5.2.4.5 | HC44: ='5.2.b'!C67 -> 0 | HD44: 0 | HE44: YN | HG44: 1
B45: Formulas: | AB45: 55 | AC45: 0.1447368421 | AD45: ='2.2.e'!B31 -> 2.2.10 | AE45: ='2.2.e'!C31 -> 0 | AF45: 0 | AG45: YN | AI45: 1 | GZ45: 335 | HA45: 0.8815789474 | HB45: ='5.2.b'!B71 -> 5.2.4.6 | HC45: ='5.2.b'!C71 -> 0 | HD45: 0 | HE45: YN | HG45: 1
B46: Response | C46: Score | D46: Type | E46: Max Response | F46: Max Score | AB46: =AB45+1 -> 56 | AC46: 0.1473684211 | AD46: ='2.2.e'!D35 -> 2.2.10.1 | AE46: ='2.2.e'!C35 -> 0 | AF46: 0 | AG46: YN | AI46: 1 | GZ46: =GZ45+1 -> 336 | HA46: 0.8842105263 | HB46: ='5.2.b'!B77 -> 5.2.5.1 | HC46: ='5.2.b'!C77 -> 0 | HD46: 0 | HE46: YN | HG46: 1
B47: 1 | C47: =IF(B47=1,1,0) -> 1 | D47: YN | F47: 1 | G47: <-- Y=1, N=0 | AB47: 57 | AC47: 0.15 | AD47: ='2.2.e'!B39 -> 2.2.11 | AE47: ='2.2.e'!C39 -> 0 | AF47: =IF(AE47=99,0,AE47) -> 0 | AG47: CB1 | AH47: 6 | AI47: 6 | GZ47: 337 | HA47: 0.8868421053 | HB47: ='5.2.b'!B81 -> 5.2.5.2 | HC47: ='5.2.b'!C81 -> 0 | HD47: 0 | HE47: YN | HG47: 1
B48: 2 | C48: =IF(B48=99,0,B48) -> 2 | D48: CB1 | E48: 11 | F48: 11 | G48: <-- each check worth one point | AB48: 58 | AC48: 0.1526315789 | AD48: ='2.2.f'!B7 -> 2.2.12 | AE48: ='2.2.f'!C7 -> 0 | AF48: =IF(AE48=99,0,AE48) -> 0 | AG48: CB1 | AH48: 5 | AI48: 5 | GZ48: 338 | HA48: 0.8894736842 | HB48: ='5.2.b'!B87 -> 5.2.6.1 | HC48: ='5.2.b'!C87 -> 0 | HD48: 0 | HE48: YN | HG48: 1
B49: 2 | C49: =IF(B49=99,0,B49/E49) -> 0.3333333333 | D49: CB2 | E49: 6 | F49: 1 | G49: <-- each check worth equal fraction | AB49: 59 | AC49: 0.1552631579 | AD49: ='2.2.f'!B16 -> 2.2.13 | AE49: ='2.2.f'!C16 -> 0 | AF49: =IF(AE49=1,1,0) -> 0 | AG49: YN | AI49: 1 | GZ49: 339 | HA49: 0.8921052632 | HB49: ='5.2.b'!B91 -> 5.2.6.2 | HC49: ='5.2.b'!C91 -> 0 | HD49: 0 | HE49: YN | HG49: 1
B50: 2 | C50: =IF(B50=99,0,MIN(B50,F50)) -> 1 | D50: CB3 | E50: 6 | F50: 1 | G50: <-- full point for at least one check | AB50: 60 | AC50: 0.1578947368 | AD50: ='2.2.f'!D20 -> 2.2.13.1 | AE50: ='2.2.f'!C20 -> 0 | AF50: =IF(AE50=1,1,0) -> 0 | AG50: YN | AI50: 1 | GZ50: 340 | HA50: 0.8947368421 | HB50: ='5.2.b'!B95 -> 5.2.6.3 | HC50: ='5.2.b'!C95 -> 0 | HD50: 0 | HE50: YN | HG50: 1
B51: 2 | C51: =MAX(0,(1-B51)/(1-E51)) -> 0.3333333333 | D51: MC | E51: 4 | F51: 1 | G51: <-- equal fraction progression from 0 to 1 | AB51: 61 | AC51: 0.1605263158 | AD51: ='2.2.f'!B24 -> 2.2.14 | AE51: ='2.2.f'!C24 -> 0 | AF51: =IF(AE51=99,0,MIN(AE51,AI51)) -> 0 | AG51: CB3 | AH51: 6 | AI51: 1
AB52: =AB51+1 -> 62 | AC52: 0.1631578947 | AD52: ='2.2.f'!D34 -> 2.2.14.1 | AE52: ='2.2.f'!C34 -> 0 | AF52: =IF(AE52=1,1,0) -> 0 | AG52: YN | AI52: 1
AB53: 63 | AC53: 0.1657894737 | AD53: ='2.2.f'!B38 -> 2.2.15 | AE53: ='2.2.f'!C38 -> 0 | AF53: =IF(AE53=99,0,AE53/AH53) -> 0 | AG53: CB2 | AH53: 7 | AI53: 1
AB54: 64 | AC54: 0.1684210526 | AD54: ='2.2.f'!B49 -> 2.2.16 | AE54: ='2.2.f'!C49 -> 0 | AF54: =IF(AE54=1,1,0) -> 0 | AG54: YN | AI54: 1
AB55: 65 | AC55: 0.1710526316 | AD55: ='2.2.f'!B53 -> 2.2.17 | AE55: ='2.2.f'!C53 -> 0 | AF55: =IF(AE55=1,1,0) -> 0 | AG55: YN | AI55: 1
AB56: 66 | AC56: 0.1736842105 | AD56: ='2.2.f'!B57 -> 2.2.18 | AE56: ='2.2.f'!C57 -> 0 | AF56: =IF(AE56=1,1,0) -> 0 | AG56: YN | AI56: 1
AB57: 67 | AC57: 0.1763157895 | AD57: ='2.2.f'!D61 -> 2.2.18.1 | AE57: ='2.2.f'!C61 -> 0 | AF57: =IF(AE57=1,1,0) -> 0 | AG57: YN | AI57: 1
AB58: 68 | AC58: 0.1789473684 | AD58: ='2.2.f'!B65 -> 2.2.19 | AE58: ='2.2.f'!C65 -> 0 | AF58: =IF(AE58=1,1,0) -> 0 | AG58: YN | AI58: 1
AB59: 69 | AC59: 0.1815789474 | AD59: ='2.2.f'!B69 -> 2.2.20 | AE59: ='2.2.f'!C69 -> 0 | AF59: =IF(AE59=99,0,AE59/AH59) -> 0 | AG59: CB2 | AH59: 3 | AI59: 1
AB60: 70 | AC60: 0.1842105263 | AD60: ='2.2.f'!B76 -> 2.2.21 | AE60: ='2.2.f'!C76 -> 0 | AF60: =IF(AE60=1,1,0) -> 0 | AG60: YN | AI60: 1

Sheet Export (hidden)
A1: Facility: | B1: 0
A2: Question | B2: Response | C2: Score
A3: 1.1.1 | B3: 0 | C3: x
A4: 1.1.2 | B4: 0 | C4: x
A5: 1.1.3 | B5: 0 | C5: x
A6: 1.1.4 | B6: 0 | C6: x
A7: 1.1.5 | B7: 0 | C7: x
A8: 1.1.6 | B8: 0 | C8: x
A9: 1.1.7 | B9: 0 | C9: x
A10: 2.1.1 | B10: 0 | C10: 0
A11: 2.1.2 | B11: 0 | C11: 0
A12: 2.1.2.1 | B12: 0 | C12: 0
A13: 2.1.2.2 | B13: 0 | C13: 0
A14: 2.1.2.3 | B14: 0 | C14: 0
A15: 2.1.2.4 | B15: 0 | C15: 0
A16: 2.1.2.5 | B16: 0 | C16: 0
A17: 2.1.2.6 | B17: 0 | C17: 0
A18: 2.1.2.7 | B18: 0 | C18: 0
A19: 2.1.3 | B19: 0 | C19: 0
A20: 2.1.4 | B20: 0 | C20: 0
A21: 2.1.5 | B21: 0 | C21: 0
A22: 2.1.6 | B22: 0 | C22: 0
A23: 2.2.1 | B23: 0 | C23: x
A24: 2.2.2 | B24: 0 | C24: 0
A25: 2.2.3 | B25: 0 | C25: 0
A26: 2.2.3.1 | B26: 0 | C26: 0
A27: 2.2.4 | B27: 0 | C27: 0
A28: 2.2.4.1 | B28: 0 | C28: 0
A29: 2.2.4.2 | B29: 0 | C29: 0
A30: 2.2.4.3 | B30: 0 | C30: 0
A31: 2.2.4.4 | B31: 0 | C31: 0
A32: 2.2.4.5 | B32: 0 | C32: 0
A33: 2.2.4.5.1 | B33: 0 | C33: 0
A34: 2.2.4.5.2 | B34: 0 | C34: 0
A35: 2.2.4.6 | B35: 0 | C35: 0
A36: 2.2.4.7 | B36: 0 | C36: 0
A37: 2.2.4.7.1 | B37: 0 | C37: 0
A38: 2.2.4.8 | B38: 0 | C38: 0
A39: 2.2.4.8.1 | B39: 0 | C39: 0
A40: 2.2.4.9 | B40: 0 | C40: 0
A41: 2.2.4.10 | B41: 0 | C41: 0
A42: 2.2.4.10.1 | B42: 0 | C42: 0
A43: 2.2.4.10.2 | B43: 0 | C43: 0
A44: 2.2.4.10.3 | B44: 0 | C44: 0
A45: 2.2.4.10.4 | B45: 0 | C45: 0
A46: 2.2.4.10.5 | B46: 0 | C46: 0
A47: 2.2.4.10.6 | B47: 0 | C47: 0
A48: 2.2.4.11 | B48: 0 | C48: 0
A49: 2.2.4.12 | B49: 0 | C49: 0
A50: 2.2.4.13 | B50: 0 | C50: 0
A51: 2.2.5 | B51: 0 | C51: 0
A52: 2.2.6 | B52: 0 | C52: 0
A53: 2.2.7 | B53: 0 | C53: 0
A54: 2.2.8 | B54: 0 | C54: 0
A55: 2.2.8.1 | B55: 0 | C55: 0
A56: 2.2.9 | B56: 0 | C56: 0
A57: 2.2.10 | B57: 0 | C57: 0
A58: 2.2.10.1 | B58: 0 | C58: 0
A59: 2.2.11 | B59: 0 | C59: 0
A60: 2.2.12 | B60: 0 | C60: 0
A61: 2.2.13 | B61: 0 | C61: 0
A62: 2.2.13.1 | B62: 0 | C62: 0
A63: 2.2.14 | B63: 0 | C63: 0
A64: 2.2.14.1 | B64: 0 | C64: 0
A65: 2.2.15 | B65: 0 | C65: 0
A66: 2.2.16 | B66: 0 | C66: 0
A67: 2.2.17 | B67: 0 | C67: 0
A68: 2.2.18 | B68: 0 | C68: 0
A69: 2.2.18.1 | B69: 0 | C69: 0
A70: 2.2.19 | B70: 0 | C70: 0
A71: 2.2.20 | B71: 0 | C71: 0
A72: 2.2.21 | B72: 0 | C72: 0
A73: 2.3.1 | B73: 0 | C73: 0
A74: 2.3.2 | B74: 0 | C74: 0
A75: 2.3.2 | B75: 0 | C75: 0
A76: 2.3.2 | B76: 0 | C76: 0
A77: 2.3.3 | B77: 0 | C77: 0
A78: 2.4.1 | B78: 0 | C78: 0
A79: 2.4.2 | B79: 0 | C79: 0
A80: 2.4.3 | B80: 0 | C80: 0
A81: 2.4.4 | B81: 0 | C81: 0
A82: 2.4.4.1 | B82: 0 | C82: 0
A83: 2.4.5 | B83: 0 | C83: 0
A84: 2.4.6 | B84: 0 | C84: 0
A85: 2.4.7 | B85: 0 | C85: 0
A86: 2.4.8 | B86: 0 | C86: 0
A87: 3.1.1 | B87: 0 | C87: 0
A88: 3.1.1.1 | B88: 0 | C88: 0
A89: 3.1.2 | B89: 0 | C89: 0
A90: 3.1.2.1 | B90: 0 | C90: 0
A91: 3.1.2.2 | B91: 3 | C91: 0.6666666667
A92: 3.1.2.3 | B92: 2 | C92: 0.5
A93: 3.1.3 | B93: 0 | C93: 0
A94: 3.1.4 | B94: 0 | C94: 0
A95: 3.1.5 | B95: 0 | C95: 0
A96: 3.1.6 | B96: 0 | C96: 0
A97: 3.1.7 | B97: 0 | C97: 0
A98: 3.1.8 | B98: 0 | C98: 0
A99: 3.2.1 | B99: 0 | C99: 0
A100: 3.2.2 | B100: 0 | C100: 0
A101: 3.2.3 | B101: 0 | C101: 0
A102: 3.2.4 | B102: 0 | C102: 0
A103: 3.2.5 | B103: 0 | C103: 0
A104: 3.2.6 | B104: 0 | C104: 0
A105: 3.2.7 | B105: 0 | C105: 0
A106: 3.3.1 | B106: 0 | C106: 0
A107: 3.3.2 | B107: 0 | C107: 0
A108: 3.3.3 | B108: 0 | C108: 0
A109: 3.3.4 | B109: 0 | C109: 0
A110: 3.3.5 | B110: 0 | C110: 0
A111: 3.3.6 | B111: 0 | C111: 0
A112: 3.3.7 | B112: 0 | C112: 0
A113: 3.3.8 | B113: 0 | C113: 0
A114: 3.4.1 | B114: 0 | C114: x
A115: 3.4.2 | B115: 0 | C115: 0
A116: 3.4.1.1 | B116: 0 | C116: 0
A117: 3.4.1.2 | B117: 0 | C117: 0
A118: 3.4.1.3 | B118: 0 | C118: 0
A119: 3.4.1.4 | B119: 0 | C119: 0
A120: 3.4.1.5 | B120: 0 | C120: 0
A121: 3.4.1.6 | B121: 0 | C121: 0
A122: 3.4.1.7 | B122: 0 | C122: 0
A123: 3.4.1.8 | B123: 0 | C123: 0
A124: 3.4.1.8.1 | B124: 0 | C124: 0
A125: 3.4.1.9 | B125: 0 | C125: 0
A126: 3.4.1.9.1 | B126: 0 | C126: 0
A127: 3.4.1.10 | B127: 0 | C127: 0
A128: 3.4.1.10.1 | B128: 0 | C128: 0
A129: 3.4.1.11 | B129: 0 | C129: 0
A130: 3.4.1.12 | B130: 0 | C130: 0
A131: 3.4.1.13 | B131: 0 | C131: 0
A132: 3.5.1 | B132: 0 | C132: 0
A133: 3.5.2 | B133: 0 | C133: x
A134: 3.5.2.1 | B134: 0 | C134: 0
A135: 3.5.3 | B135: 0 | C135: 0
A136: 3.5.4 | B136: 0 | C136: 0
A137: 3.5.5 | B137: 0 | C137: 0
A138: 3.5.6 | B138: 0 | C138: 0
A139: 3.5.7 | B139: 0 | C139: 0
A140: 3.5.8 | B140: 0 | C140: 0
A141: 3.5.9 | B141: 0 | C141: 0
A142: 3.5.10 | B142: 0 | C142: 0
A143: 3.5.11 | B143: 0 | C143: 0
A144: 3.5.12 | B144: 0 | C144: 0
A145: 3.5.13 | B145: 0 | C145: 0
A146: 3.5.14 | B146: 0 | C146: x
A147: 3.5.14.1 | B147: 0 | C147: 0
A148: 3.5.15 | B148: 0 | C148: x
A149: 3.5.15.1 | B149: 0 | C149: 0
A150: 3.5.16 | B150: 0 | C150: 0
A151: 3.5.17 | B151: 0 | C151: 0
A152: 3.5.18 | B152: 0 | C152: 0
A153: 3.5.19 | B153: 0 | C153: 0
A154: 3.5.20 | B154: 0 | C154: 0
A155: 3.5.21 | B155: 0 | C155: 0
A156: 3.5.22 | B156: 0 | C156: 0
A157: 3.5.23 | B157: 0 | C157: 0
A158: 3.6.1 | B158: 0 | C158: 0
A159: 3.6.2 | B159: 0 | C159: 0
A160: 3.6.3 | B160: 0 | C160: 0
A161: 3.6.4 | B161: 0 | C161: 0
A162: 3.6.5 | B162: 0 | C162: 0
A163: 3.6.6 | B163: 0 | C163: 0
A164: 3.6.7 | B164: 0 | C164: 0
A165: 3.6.8 | B165: 0 | C165: 0
A166: 3.6.9 | B166: 0 | C166: 0
A167: 3.6.10 | B167: 0 | C167: 0
A168: 3.6.11 | B168: 0 | C168: 0
A169: 3.6.12 | B169: 0 | C169: 0
A170: 3.6.13 | B170: 0 | C170: 0
A171: 3.6.14 | B171: 0 | C171: 0
A172: 3.6.14.1 | B172: 0 | C172: 0
A173: 3.6.14.2 | B173: 0 | C173: 0
A174: 3.6.14.3 | B174: 0 | C174: 0
A175: 3.7.1 | B175: 0 | C175: 0
A176: 3.7.2 | B176: 0 | C176: 0
A177: 3.7.2.7 | B177: 0 | C177: 0
A178: 3.7.2.8 | B178: 0 | C178: 0
A179: 3.7.2.9 | B179: 0 | C179: 0
A180: 3.7.2.10 | B180: 0 | C180: 0
A181: 3.7.2.11 | B181: 0 | C181: 0
A182: 3.7.2.12 | B182: 0 | C182: 0
A183: 3.7.3 | B183: 0 | C183: 0
A184: 3.7.4 | B184: 0 | C184: 0
A185: 3.7.5 | B185: 0 | C185: 0
A186: 4.1.1 | B186: 0 | C186: 0
A187: 4.1.2 | B187: 0 | C187: 0
A188: 4.1.3 | B188: 0 | C188: 0
A189: 4.1.4 | B189: 0 | C189: 0
A190: 4.1.5 | B190: 0 | C190: 0
A191: 4.1.6 | B191: 0 | C191: 0
A192: 4.1.7 | B192: 0 | C192: 0
A193: 4.1.8 | B193: 0 | C193: 0
A194: 4.1.9 | B194: 0 | C194: 0
A195: 4.1.10 | B195: 0 | C195: 0
A196: 4.1.11 | B196: 0 | C196: 0
A197: 4.2.1 | B197: 0 | C197: x
A198: 4.2.2 | B198: 0 | C198: 0
A199: 4.2.2.1 | B199: 0 | C199: 0
A200: 4.2.3 | B200: 0
... 182 more rows
